Service Area,Service Division,Expense Type,Expense Code,Detailed Expense Type,Payment Date,Transaction Number,Amount Exc Vat,Supplier Name
Adults Wellbeing and Health,Commissioning inc Supporting People,Supplies and Services,384540,Miscellaneous Expenses,01-Aug-2012,2477427-100000903210,729.60,TMP (UK) LTD (RECRUITMENT).
Adults Wellbeing and Health,Commissioning inc Supporting People,Supplies and Services,384199,Miscellaneous Expenses,01-Aug-2012,2477295-19/06-16/07/2012,"2,280.00",JANE NATTRASS.
Adults Wellbeing and Health,Commissioning inc Supporting People,Supplies and Services,338047,Services,01-Aug-2012,2477439-IN12018965,550.01,UNIVERSAL PICTURES INTERNATIONAL UK & EIRE LTD.
Adults Wellbeing and Health,Commissioning inc Supporting People,Supplies and Services,384199,Miscellaneous Expenses,01-Aug-2012,2477255-1217,"22,692.86",EVENT INTERNATIONAL CO LTD.
Adults Wellbeing and Health,Commissioning inc Supporting People,Supplies and Services,384199,Miscellaneous Expenses,01-Aug-2012,2477251-342,"9,372.00",EDINBURGH INTERNATIONAL JAZZ FESTIVAL LTD.
Adults Wellbeing and Health,Commissioning inc Supporting People,Supplies and Services,384302,Miscellaneous Expenses,01-Aug-2012,209985-G,550.00,KIM GOODWIN.
Adults Wellbeing and Health,Commissioning inc Supporting People,Third Party Payments,479111,Purchase of Care,01-Aug-2012,2477203-SMH29,"13,296.50",BRIDGE TRAINING OPPORTUNITIES FOR WOMEN.
Adults Wellbeing and Health,Commissioning inc Supporting People,Supplies and Services,338047,Services,01-Aug-2012,2477247-ACOM,716.45,DURHAM CATHEDRAL LTD.
Adults Wellbeing and Health,Commissioning inc Supporting People,Third Party Payments,479111,Purchase of Care,01-Aug-2012,2477367-10388/13,"48,750.00",PIONEERING CARE PARTNERSHIP.
Adults Wellbeing and Health,Commissioning inc Supporting People,Third Party Payments,473111,Purchase of Care,01-Aug-2012,2477166-C1/7/12-30/9/12,"24,288.00",ALL SAINTS DAY CENTRE.
Adults Wellbeing and Health,Commissioning inc Supporting People,Supplies and Services,384199,Miscellaneous Expenses,01-Aug-2012,2477281-64058,"2,000.00",HILLPRINT MEDIA LTD.
Adults Wellbeing and Health,Commissioning inc Supporting People,Supplies and Services,384199,Miscellaneous Expenses,01-Aug-2012,2477433-OrderNo1173483,"21,015.00",TRAVELEX PAYMENTS LTD.
Adults Wellbeing and Health,Commissioning inc Supporting People,Supplies and Services,384199,Miscellaneous Expenses,01-Aug-2012,2477433-OrderNo1173485,"1,811.46",TRAVELEX PAYMENTS LTD.
Adults Wellbeing and Health,Commissioning inc Supporting People,Third Party Payments,479111,Purchase of Care,01-Aug-2012,2477406-CRM2535,"12,175.00",STROKE ASSOCIATION.
Adults Wellbeing and Health,Financing-Adult Services,Creditors,952035,Creditor-housing benefit-eqpt,01-Aug-2012,2477291-HH01,814.00,J & D CARPETS T/A THE FLOORING STORE.
Adults Wellbeing and Health,Head of Adults,Premises,108099,Service Repairs and Maintenance,01-Aug-2012,2477440-727,"1,734.99",UPNORTH FOODSERVICE EQUIPMENT LTD.
Adults Wellbeing and Health,Head of Adults,Summary reporting level,720033,Fees and Charges,01-Aug-2012,2477339-R,508.64,REDACTED - PAYMENT TO INDIVIDUAL
Adults Wellbeing and Health,Head of Adults,Summary reporting level,720045,Fees and Charges,01-Aug-2012,210012-R,"3,021.20",REDACTED - PAYMENT TO INDIVIDUAL
Adults Wellbeing and Health,Head of Adults,Third Party Payments,474101,Purchase of Care,01-Aug-2012,2477398-CF-ER/JS,"6,738.85",SOUTHERN CROSS HEALTHCARE GROUP PLC.
Adults Wellbeing and Health,Head of Adults,Third Party Payments,479101,Purchase of Care,01-Aug-2012,2477421-430022613,"6,832.00",TEES ESK & WEAR VALLEY NHS FOUNDATION TRUST.
Adults Wellbeing and Health,Head of Adults,Employees,080025,Agency Staff,01-Aug-2012,2477421-430022641,"1,627.42",TEES ESK & WEAR VALLEY NHS FOUNDATION TRUST.
Adults Wellbeing and Health,Head of Adults,Employees,080025,Agency Staff,01-Aug-2012,2477421-430022643,"1,036.36",TEES ESK & WEAR VALLEY NHS FOUNDATION TRUST.
Adults Wellbeing and Health,Head of Adults,Employees,080025,Agency Staff,01-Aug-2012,2477421-430022646,"4,149.13",TEES ESK & WEAR VALLEY NHS FOUNDATION TRUST.
Adults Wellbeing and Health,Head of Adults,Employees,080025,Agency Staff,01-Aug-2012,2477421-430022738,"4,254.42",TEES ESK & WEAR VALLEY NHS FOUNDATION TRUST.
Adults Wellbeing and Health,Head of Adults,Premises,125009,Rents,01-Aug-2012,2477240-RMIN/00000324,650.00,DERWENTSIDE HOMES LTD.
Adults Wellbeing and Health,Head of Adults,Transport,230005,Contract Hire,01-Aug-2012,210008-MSM1/SED073APR-JUN12,858.00,MR M MCNAMARA.
Adults Wellbeing and Health,Head of Adults,Supplies and Services,384616,Miscellaneous Expenses,01-Aug-2012,2477375-CSIV1905,903.12,PROGRESS CARE HOUSING ASSOCIATION LTD.
Adults Wellbeing and Health,Service Strategy,Supplies and Services,372009,Subscriptions,01-Aug-2012,209912-2363,"1,535.00",ADASS.
Adults Wellbeing and Health,Social Inclusion,Supplies and Services,384199,Miscellaneous Expenses,01-Aug-2012,2477279-3864,915.00,HI LIGHTS THEATRE SERVICES.
Adults Wellbeing and Health,Social Inclusion,Premises,120009,Energy Costs,01-Aug-2012,2477353-NNO677S4,"1,171.83",NPOWER.
Assistant Chief Executive,Partnerships & Community Engagement Div.,Supplies and Services,384085,Miscellaneous Expenses,01-Aug-2012,209951-BARD02-12,600.00,DURHAM DODGERS NETBALL CLUB.
Assistant Chief Executive,Partnerships & Community Engagement Div.,Supplies and Services,384085,Miscellaneous Expenses,01-Aug-2012,209992-ALVJ04-12,500.00,LOWHILLS BOWLING CLUB.
Assistant Chief Executive,Partnerships & Community Engagement Div.,Supplies and Services,384085,Miscellaneous Expenses,01-Aug-2012,210038-CRUR06-12.,500.00,PETERLEE YOUTH CENTRE.
Assistant Chief Executive,Partnerships & Community Engagement Div.,Cap Exp on Grants & Other Financial Assistance (REFCUS),918004,Contributions to other bodies,01-Aug-2012,210058-12NB-TEES005-A,"10,000.00",ST MARY`S BARNARD CASTLE PCC.
Assistant Chief Executive,Partnerships & Community Engagement Div.,Supplies and Services,384086,Miscellaneous Expenses,01-Aug-2012,2477273-12NB-CHES009,"2,001.00",GREAT LUMLEY COMMUNITY ASSOCIATION.
Assistant Chief Executive,Partnerships & Community Engagement Div.,Supplies and Services,312010,"Newspapers, Books and Periodicals",01-Aug-2012,2477342-236681/0,830.54,NATIONAL LEAFLET CO LTD.
Assistant Chief Executive,Partnerships & Community Engagement Div.,Transfer Payments,525030,Other,01-Aug-2012,2477417-GAF,"3,500.00",TANFIELD LEA & DISTRICT COMMUNITY ASSOCIATION.
Children and Young Peoples Services,CYPS - Local Authority,Summary reporting level,720115,Fees and Charges,01-Aug-2012,209918-00001,"1,200.00",AYLSSA COWELL.
Children and Young Peoples Services,CYPS - Local Authority,Transport,230005,Contract Hire,01-Aug-2012,209927-4-20/7/12,"2,850.00",C STEWART.
Children and Young Peoples Services,CYPS - Local Authority,Supplies and Services,338045,Services,01-Aug-2012,209969-MCC/01,700.00,HMCTS.
Children and Young Peoples Services,CYPS - Local Authority,Supplies and Services,338045,Services,01-Aug-2012,209969-UA11C00049,"2,600.00",HMCTS.
Children and Young Peoples Services,CYPS - Local Authority,Supplies and Services,338045,Services,01-Aug-2012,209969-UA12C00005-B/T,"2,600.00",HMCTS.
Children and Young Peoples Services,CYPS - Local Authority,Supplies and Services,338045,Services,01-Aug-2012,209970-ND12C00018,700.00,HMCTS.
Children and Young Peoples Services,CYPS - Local Authority,Supplies and Services,384507,Miscellaneous Expenses,01-Aug-2012,210003-G,660.00,REDACTED - PAYMENT TO INDIVIDUAL
Children and Young Peoples Services,CYPS - Local Authority,Transport,230007,Contract Hire,01-Aug-2012,2477145-A220731,"1,668.45",A MURRAY TRAVEL.
Children and Young Peoples Services,CYPS - Local Authority,Transport,230007,Contract Hire,01-Aug-2012,2477150-B18/S,"1,236.55",AABAT TAXIS.
Children and Young Peoples Services,CYPS - Local Authority,Transport,230007,Contract Hire,01-Aug-2012,2477150-B21/S,"1,184.10",AABAT TAXIS.
Children and Young Peoples Services,CYPS - Local Authority,Transport,230007,Contract Hire,01-Aug-2012,2477150-B24/S,"1,140.00",AABAT TAXIS.
Children and Young Peoples Services,CYPS - Local Authority,Transport,230007,Contract Hire,01-Aug-2012,2477150-B25/S,"1,230.45",AABAT TAXIS.
Children and Young Peoples Services,CYPS - Local Authority,Transport,230007,Contract Hire,01-Aug-2012,2477150-B26/S,"1,276.43",AABAT TAXIS.
Children and Young Peoples Services,CYPS - Local Authority,Transport,230007,Contract Hire,01-Aug-2012,2477150-B27/S,"1,275.00",AABAT TAXIS.
Children and Young Peoples Services,CYPS - Local Authority,Transport,230007,Contract Hire,01-Aug-2012,2477150-B29/S,900.00,AABAT TAXIS.
Children and Young Peoples Services,CYPS - Local Authority,Transport,230007,Contract Hire,01-Aug-2012,2477151-07/12,"1,058.54",ABA TAXIS.
Children and Young Peoples Services,CYPS - Local Authority,Transport,230007,Contract Hire,01-Aug-2012,2477154-16,"1,066.50",ACE TAXIS..
Children and Young Peoples Services,CYPS - Local Authority,Transport,230007,Contract Hire,01-Aug-2012,2477162-0239,"1,225.00",AJS PRIVATE HIRE.
Children and Young Peoples Services,CYPS - Local Authority,Transport,230007,Contract Hire,01-Aug-2012,2477167-AT014,900.00,AMBER TRAVEL.
Children and Young Peoples Services,CYPS - Local Authority,Transport,230007,Contract Hire,01-Aug-2012,2477183-275,"1,750.95",AT TAXIS LTD.
Children and Young Peoples Services,CYPS - Local Authority,Transport,230007,Contract Hire,01-Aug-2012,2477183-276,600.00,AT TAXIS LTD.
Children and Young Peoples Services,CYPS - Local Authority,Transport,230007,Contract Hire,01-Aug-2012,2477184-DCCJULY1,"1,981.38",ATLAS TAXIS BISHOP AUCKLAND.
Children and Young Peoples Services,CYPS - Local Authority,Transport,230007,Contract Hire,01-Aug-2012,2477184-DCCJULY10,"1,522.50",ATLAS TAXIS BISHOP AUCKLAND.
Children and Young Peoples Services,CYPS - Local Authority,Transport,230007,Contract Hire,01-Aug-2012,2477184-DCCJULY12,"1,185.00",ATLAS TAXIS BISHOP AUCKLAND.
Children and Young Peoples Services,CYPS - Local Authority,Transport,230007,Contract Hire,01-Aug-2012,2477184-DCCJULY2,"1,150.00",ATLAS TAXIS BISHOP AUCKLAND.
Children and Young Peoples Services,CYPS - Local Authority,Transport,230007,Contract Hire,01-Aug-2012,2477184-DCCJULY3,"1,953.80",ATLAS TAXIS BISHOP AUCKLAND.
Children and Young Peoples Services,CYPS - Local Authority,Transport,230007,Contract Hire,01-Aug-2012,2477184-DCCJULY4,"1,200.00",ATLAS TAXIS BISHOP AUCKLAND.
Children and Young Peoples Services,CYPS - Local Authority,Transport,230007,Contract Hire,01-Aug-2012,2477184-DCCJULY6,"1,244.16",ATLAS TAXIS BISHOP AUCKLAND.
Children and Young Peoples Services,CYPS - Local Authority,Transport,230007,Contract Hire,01-Aug-2012,2477184-DCCJULY8,"1,963.20",ATLAS TAXIS BISHOP AUCKLAND.
Children and Young Peoples Services,CYPS - Local Authority,Transport,230007,Contract Hire,01-Aug-2012,2477184-DCCJUNE6,"1,429.68",ATLAS TAXIS BISHOP AUCKLAND.
Children and Young Peoples Services,CYPS - Local Authority,Third Party Payments,425040,Rendered by Voluntary Organisations,01-Aug-2012,2477187-104305214,"3,666.99",BARNARDOS.
Children and Young Peoples Services,CYPS - Local Authority,Third Party Payments,425040,Rendered by Voluntary Organisations,01-Aug-2012,2477187-104305257,"3,972.03",BARNARDOS.
Children and Young Peoples Services,CYPS - Local Authority,Third Party Payments,425040,Rendered by Voluntary Organisations,01-Aug-2012,2477187-104305263,"3,972.03",BARNARDOS.
Children and Young Peoples Services,CYPS - Local Authority,Supplies and Services,338076,Services,01-Aug-2012,2477188-204101295,"4,083.33",BARNARDOS.
Children and Young Peoples Services,CYPS - Local Authority,Transport,230007,Contract Hire,01-Aug-2012,2477191-S/1JULY12,"1,367.52",BEELINE PRIVATE HIRE.
Children and Young Peoples Services,CYPS - Local Authority,Transport,230007,Contract Hire,01-Aug-2012,2477191-S/2JULY12,934.50,BEELINE PRIVATE HIRE.
Children and Young Peoples Services,CYPS - Local Authority,Transport,230007,Contract Hire,01-Aug-2012,2477191-S/3JULY12,"1,260.00",BEELINE PRIVATE HIRE.
Children and Young Peoples Services,CYPS - Local Authority,Transport,230007,Contract Hire,01-Aug-2012,2477191-S/4JULY12,"1,400.00",BEELINE PRIVATE HIRE.
Children and Young Peoples Services,CYPS - Local Authority,Transport,230007,Contract Hire,01-Aug-2012,2477192-9,540.00,BEELINE TAXIS.
Children and Young Peoples Services,CYPS - Local Authority,Transport,230007,Contract Hire,01-Aug-2012,2477196-58,934.50,BL TAXIS.
Children and Young Peoples Services,CYPS - Local Authority,Transport,230007,Contract Hire,01-Aug-2012,2477198-7,"1,120.00",BOBS TAXIS.
Children and Young Peoples Services,CYPS - Local Authority,Transport,230007,Contract Hire,01-Aug-2012,2477202-0712,"1,557.60",BRIAN WAKE.
Children and Young Peoples Services,CYPS - Local Authority,Transport,230005,Contract Hire,01-Aug-2012,2477211-BIL0012,934.50,CA MUSGROVE.
Children and Young Peoples Services,CYPS - Local Authority,Supplies and Services,384550,Miscellaneous Expenses,01-Aug-2012,2477222-511243,"1,185.00",CO DURHAM PCT .
Children and Young Peoples Services,CYPS - Local Authority,Employees,080025,Agency Staff,01-Aug-2012,2477224-518428,"225,192.69",COMENSURA LTD.
Children and Young Peoples Services,CYPS - Local Authority,Employees,080025,Agency Staff,01-Aug-2012,2477224-518667,"180,501.26",COMENSURA LTD.
Children and Young Peoples Services,CYPS - Local Authority,Transport,230007,Contract Hire,01-Aug-2012,2477229-4003/07/12,"2,772.45",COUNTY COACHES.
Children and Young Peoples Services,CYPS - Local Authority,Transport,230007,Contract Hire,01-Aug-2012,2477229-4021/07/12,"1,713.30",COUNTY COACHES.
Children and Young Peoples Services,CYPS - Local Authority,Transport,230007,Contract Hire,01-Aug-2012,2477229-4026/07/12,"1,401.75",COUNTY COACHES.
Children and Young Peoples Services,CYPS - Local Authority,Transport,230007,Contract Hire,01-Aug-2012,2477229-4029/07/12,"1,417.35",COUNTY COACHES.
Children and Young Peoples Services,CYPS - Local Authority,Transport,230005,Contract Hire,01-Aug-2012,2477231-3505,"2,643.25",CROFT BUSINESS SERVICES (UK) LTD T/A CROFT TAXIS.
Children and Young Peoples Services,CYPS - Local Authority,Transport,230005,Contract Hire,01-Aug-2012,2477231-3542,"1,760.35",CROFT BUSINESS SERVICES (UK) LTD T/A CROFT TAXIS.
Children and Young Peoples Services,CYPS - Local Authority,Transport,230007,Contract Hire,01-Aug-2012,2477235-230672,975.00,DALELINK PRIVATE HIRE.
Children and Young Peoples Services,CYPS - Local Authority,Transport,230007,Contract Hire,01-Aug-2012,2477235-230673,"2,100.00",DALELINK PRIVATE HIRE.
Children and Young Peoples Services,CYPS - Local Authority,Transport,230007,Contract Hire,01-Aug-2012,2477260-0211,"1,097.25",FMR SILVA PITA.
Children and Young Peoples Services,CYPS - Local Authority,Transport,230007,Contract Hire,01-Aug-2012,2477260-0212,622.95,FMR SILVA PITA.
Children and Young Peoples Services,CYPS - Local Authority,Transport,230007,Contract Hire,01-Aug-2012,2477260-0213,513.90,FMR SILVA PITA.
Children and Young Peoples Services,CYPS - Local Authority,Third Party Payments,425040,Rendered by Voluntary Organisations,01-Aug-2012,2477261-630042706,"4,180.58",FOSTER CARE ASSOCIATES LTD.
Children and Young Peoples Services,CYPS - Local Authority,Third Party Payments,425040,Rendered by Voluntary Organisations,01-Aug-2012,2477261-630043134,"3,374.35",FOSTER CARE ASSOCIATES LTD.
Children and Young Peoples Services,CYPS - Local Authority,Third Party Payments,425040,Rendered by Voluntary Organisations,01-Aug-2012,2477261-630043756,"4,079.43",FOSTER CARE ASSOCIATES LTD.
Children and Young Peoples Services,CYPS - Local Authority,Third Party Payments,425040,Rendered by Voluntary Organisations,01-Aug-2012,2477262-2141,"3,232.68",FOSTER CARE SOLUTIONS LTD.
Children and Young Peoples Services,CYPS - Local Authority,Third Party Payments,425040,Rendered by Voluntary Organisations,01-Aug-2012,2477263-FC010388,730.00,FOSTER CARES LTD.
Children and Young Peoples Services,CYPS - Local Authority,Third Party Payments,425040,Rendered by Voluntary Organisations,01-Aug-2012,2477263-FC010435,730.00,FOSTER CARES LTD.
Children and Young Peoples Services,CYPS - Local Authority,Third Party Payments,425040,Rendered by Voluntary Organisations,01-Aug-2012,2477263-FC010450,980.00,FOSTER CARES LTD.
Children and Young Peoples Services,CYPS - Local Authority,Third Party Payments,425040,Rendered by Voluntary Organisations,01-Aug-2012,2477263-FC010451,760.00,FOSTER CARES LTD.
Children and Young Peoples Services,CYPS - Local Authority,Third Party Payments,425040,Rendered by Voluntary Organisations,01-Aug-2012,2477263-FC010482,980.00,FOSTER CARES LTD.
Children and Young Peoples Services,CYPS - Local Authority,Supplies and Services,340001,Postages,01-Aug-2012,2477264-54370-13/07/2012,"1,000.00",FP TELESET.
Children and Young Peoples Services,CYPS - Local Authority,Supplies and Services,364352,Grants to Voluntary Organisations,01-Aug-2012,2477267-SIGN/00029554,846.95,GENTOO CONSTRUCTION LTD.
Children and Young Peoples Services,CYPS - Local Authority,Supplies and Services,384507,Miscellaneous Expenses,01-Aug-2012,2477275-13046,966.00,H JOHNSON.
Children and Young Peoples Services,CYPS - Local Authority,Transport,230007,Contract Hire,01-Aug-2012,2477277-08/2012,"1,288.20",HARRY DICKSON.
Children and Young Peoples Services,CYPS - Local Authority,Transport,230007,Contract Hire,01-Aug-2012,2477293-064,"1,512.00",J YOUNG T/A VIP TAXIS.
Children and Young Peoples Services,CYPS - Local Authority,Transport,230007,Contract Hire,01-Aug-2012,2477293-065,529.52,J YOUNG T/A VIP TAXIS.
Children and Young Peoples Services,CYPS - Local Authority,Transport,230007,Contract Hire,01-Aug-2012,2477293-066,"1,875.00",J YOUNG T/A VIP TAXIS.
Children and Young Peoples Services,CYPS - Local Authority,Transport,230007,Contract Hire,01-Aug-2012,2477293-067,690.00,J YOUNG T/A VIP TAXIS.
Children and Young Peoples Services,CYPS - Local Authority,Transport,230007,Contract Hire,01-Aug-2012,2477309-110261012,770.00,KEITH STONELY.
Children and Young Peoples Services,CYPS - Local Authority,Transport,230007,Contract Hire,01-Aug-2012,2477309-11026111,825.00,KEITH STONELY.
Children and Young Peoples Services,CYPS - Local Authority,Transport,230005,Contract Hire,01-Aug-2012,2477313-2707,"3,328.00",LINCAB TAXIS.
Children and Young Peoples Services,CYPS - Local Authority,Transport,230005,Contract Hire,01-Aug-2012,2477315-1161,"1,644.00",LOCAL TRANSPORT LTD.
Children and Young Peoples Services,CYPS - Local Authority,Transport,230005,Contract Hire,01-Aug-2012,2477315-1162,"2,675.00",LOCAL TRANSPORT LTD.
Children and Young Peoples Services,CYPS - Local Authority,Transport,230005,Contract Hire,01-Aug-2012,2477315-1164,"1,026.00",LOCAL TRANSPORT LTD.
Children and Young Peoples Services,CYPS - Local Authority,Transport,230007,Contract Hire,01-Aug-2012,2477316-4C-20/7/12,"1,190.00",MA BODDY.
Children and Young Peoples Services,CYPS - Local Authority,Transport,230007,Contract Hire,01-Aug-2012,2477316-4D-20/7/12,872.20,MA BODDY.
Children and Young Peoples Services,CYPS - Local Authority,Transport,230007,Contract Hire,01-Aug-2012,2477317-623,510.00,MACS TAXIS DURHAM LTD.
Children and Young Peoples Services,CYPS - Local Authority,Transport,230007,Contract Hire,01-Aug-2012,2477318-4536,677.55,MAKEPEACE MOTORS.
Children and Young Peoples Services,CYPS - Local Authority,Transport,230007,Contract Hire,01-Aug-2012,2477318-4537,895.20,MAKEPEACE MOTORS.
Children and Young Peoples Services,CYPS - Local Authority,Transport,230007,Contract Hire,01-Aug-2012,2477318-4538,778.50,MAKEPEACE MOTORS.
Children and Young Peoples Services,CYPS - Local Authority,Transport,230007,Contract Hire,01-Aug-2012,2477321-4317,675.00,MARKS TAXIS.
Children and Young Peoples Services,CYPS - Local Authority,Supplies and Services,338045,Services,01-Aug-2012,2477326-284535/INVPM55,"1,800.00",MISS PAULINE MOULDER.
Children and Young Peoples Services,CYPS - Local Authority,Transport,230007,Contract Hire,01-Aug-2012,2477328-415,"2,475.00",MR AD HOWARD.
Children and Young Peoples Services,CYPS - Local Authority,Transport,230007,Contract Hire,01-Aug-2012,2477328-416,"2,100.00",MR AD HOWARD.
Children and Young Peoples Services,CYPS - Local Authority,Transport,230007,Contract Hire,01-Aug-2012,2477333-NU-7-12,936.00,MR J AGAR T/A PARK TAXIS.
Children and Young Peoples Services,CYPS - Local Authority,Transport,230007,Contract Hire,01-Aug-2012,2477334-1190712,658.00,MR JOHN CHISHOLM.
Children and Young Peoples Services,CYPS - Local Authority,Transport,230007,Contract Hire,01-Aug-2012,2477334-E0540712,885.00,MR JOHN CHISHOLM.
Children and Young Peoples Services,CYPS - Local Authority,Transport,230007,Contract Hire,01-Aug-2012,2477335-N072/07/12,"1,140.00",MR M ALLISON.
Children and Young Peoples Services,CYPS - Local Authority,Transport,230007,Contract Hire,01-Aug-2012,2477335-N187/07/12,560.00,MR M ALLISON.
Children and Young Peoples Services,CYPS - Local Authority,Transport,230007,Contract Hire,01-Aug-2012,2477335-NO81/07/12,915.00,MR M ALLISON.
Children and Young Peoples Services,CYPS - Local Authority,Transport,230007,Contract Hire,01-Aug-2012,2477335-NO84/07/12,705.00,MR M ALLISON.
Children and Young Peoples Services,CYPS - Local Authority,Transport,230007,Contract Hire,01-Aug-2012,2477336-110,"2,025.00",MR S BALL.
Children and Young Peoples Services,CYPS - Local Authority,Third Party Payments,425040,Rendered by Voluntary Organisations,01-Aug-2012,2477341-NFA64115,"3,000.00",NATIONAL FOSTERING AGENCY LTD.
Children and Young Peoples Services,CYPS - Local Authority,Supplies and Services,308011,Furniture,01-Aug-2012,2477344-I0120907,760.00,NESS FURNITURE LTD.
Children and Young Peoples Services,CYPS - Local Authority,Premises,120009,Energy Costs,01-Aug-2012,2477353-NNO677S5,"9,275.81",NPOWER.
Children and Young Peoples Services,CYPS - Local Authority,Third Party Payments,425040,Rendered by Voluntary Organisations,01-Aug-2012,2477358-02186,"1,355.71",ORCHARD CARE (NORTH EAST) LTD.
Children and Young Peoples Services,CYPS - Local Authority,Transport,230007,Contract Hire,01-Aug-2012,2477363-0196,"1,760.00",PETER`S PRIVATE HIRE/PETER BEST.
Children and Young Peoples Services,CYPS - Local Authority,Transport,230007,Contract Hire,01-Aug-2012,2477363-0197,736.00,PETER`S PRIVATE HIRE/PETER BEST.
Children and Young Peoples Services,CYPS - Local Authority,Transport,230007,Contract Hire,01-Aug-2012,2477363-0198,600.00,PETER`S PRIVATE HIRE/PETER BEST.
Children and Young Peoples Services,CYPS - Local Authority,Transport,230007,Contract Hire,01-Aug-2012,2477371-120739,"1,174.50",PRATTS TAXIS.
Children and Young Peoples Services,CYPS - Local Authority,Transport,230007,Contract Hire,01-Aug-2012,2477371-120740,959.50,PRATTS TAXIS.
Children and Young Peoples Services,CYPS - Local Authority,Transport,230007,Contract Hire,01-Aug-2012,2477371-120741,"2,256.75",PRATTS TAXIS.
Children and Young Peoples Services,CYPS - Local Authority,Transport,230007,Contract Hire,01-Aug-2012,2477371-120745,980.00,PRATTS TAXIS.
Children and Young Peoples Services,CYPS - Local Authority,Transport,230007,Contract Hire,01-Aug-2012,2477379-2071,"1,844.50",RICHIES TAXIS.
Children and Young Peoples Services,CYPS - Local Authority,Transport,230007,Contract Hire,01-Aug-2012,2477383-34,"1,170.00",ROAD RUNNERS (N.E) LTD.
Children and Young Peoples Services,CYPS - Local Authority,Transport,230007,Contract Hire,01-Aug-2012,2477383-35,570.00,ROAD RUNNERS (N.E) LTD.
Children and Young Peoples Services,CYPS - Local Authority,Transport,230007,Contract Hire,01-Aug-2012,2477385-043,"1,050.00",ROBBIE`S PRIVATE HIRE.
Children and Young Peoples Services,CYPS - Local Authority,Transport,230007,Contract Hire,01-Aug-2012,2477386-6269,"2,312.24",ROBERTS OF WINGATE.
Children and Young Peoples Services,CYPS - Local Authority,Transport,230007,Contract Hire,01-Aug-2012,2477386-6270,"2,289.56",ROBERTS OF WINGATE.
Children and Young Peoples Services,CYPS - Local Authority,Transport,230007,Contract Hire,01-Aug-2012,2477386-6271,"8,983.80",ROBERTS OF WINGATE.
Children and Young Peoples Services,CYPS - Local Authority,Transport,230007,Contract Hire,01-Aug-2012,2477388-SA019,592.50,S & A TAXIS.
Children and Young Peoples Services,CYPS - Local Authority,Transport,230005,Contract Hire,01-Aug-2012,2477393-41431-5/5/12,757.00,SHOTTON PRIVATE HIRE.
Children and Young Peoples Services,CYPS - Local Authority,Transport,230007,Contract Hire,01-Aug-2012,2477396-1686,"2,010.00",SNOWDON COACHES.
Children and Young Peoples Services,CYPS - Local Authority,Transport,230007,Contract Hire,01-Aug-2012,2477396-1688,"1,736.00",SNOWDON COACHES.
Children and Young Peoples Services,CYPS - Local Authority,Transport,230007,Contract Hire,01-Aug-2012,2477396-1689,"7,245.00",SNOWDON COACHES.
Children and Young Peoples Services,CYPS - Local Authority,Transport,230007,Contract Hire,01-Aug-2012,2477403-2014,"2,424.00",STANLEY TRAVEL (NORTH EAST) LTD.
Children and Young Peoples Services,CYPS - Local Authority,Transport,230007,Contract Hire,01-Aug-2012,2477403-2015,"1,230.00",STANLEY TRAVEL (NORTH EAST) LTD.
Children and Young Peoples Services,CYPS - Local Authority,Transport,230007,Contract Hire,01-Aug-2012,2477403-2050,"2,424.00",STANLEY TRAVEL (NORTH EAST) LTD.
Children and Young Peoples Services,CYPS - Local Authority,Transport,230007,Contract Hire,01-Aug-2012,2477403-2053,996.75,STANLEY TRAVEL (NORTH EAST) LTD.
Children and Young Peoples Services,CYPS - Local Authority,Transport,230007,Contract Hire,01-Aug-2012,2477403-2054,"1,722.00",STANLEY TRAVEL (NORTH EAST) LTD.
Children and Young Peoples Services,CYPS - Local Authority,Transport,230007,Contract Hire,01-Aug-2012,2477403-2055,"1,409.43",STANLEY TRAVEL (NORTH EAST) LTD.
Children and Young Peoples Services,CYPS - Local Authority,Transport,230007,Contract Hire,01-Aug-2012,2477403-2056,"1,042.50",STANLEY TRAVEL (NORTH EAST) LTD.
Children and Young Peoples Services,CYPS - Local Authority,Transport,230007,Contract Hire,01-Aug-2012,2477403-2057,930.00,STANLEY TRAVEL (NORTH EAST) LTD.
Children and Young Peoples Services,CYPS - Local Authority,Transport,230007,Contract Hire,01-Aug-2012,2477403-2058,"1,575.00",STANLEY TRAVEL (NORTH EAST) LTD.
Children and Young Peoples Services,CYPS - Local Authority,Transport,230007,Contract Hire,01-Aug-2012,2477403-2059,"1,485.00",STANLEY TRAVEL (NORTH EAST) LTD.
Children and Young Peoples Services,CYPS - Local Authority,Transport,230007,Contract Hire,01-Aug-2012,2477403-2061,"1,905.00",STANLEY TRAVEL (NORTH EAST) LTD.
Children and Young Peoples Services,CYPS - Local Authority,Transport,230007,Contract Hire,01-Aug-2012,2477403-2062,"1,230.00",STANLEY TRAVEL (NORTH EAST) LTD.
Children and Young Peoples Services,CYPS - Local Authority,Transport,230007,Contract Hire,01-Aug-2012,2477404-123,"3,270.75",STEPHEN MAUDE LTD T/A MAUDES COACHES.
Children and Young Peoples Services,CYPS - Local Authority,Transport,230007,Contract Hire,01-Aug-2012,2477404-124,"1,449.75",STEPHEN MAUDE LTD T/A MAUDES COACHES.
Children and Young Peoples Services,CYPS - Local Authority,Transport,230007,Contract Hire,01-Aug-2012,2477404-125,"3,083.85",STEPHEN MAUDE LTD T/A MAUDES COACHES.
Children and Young Peoples Services,CYPS - Local Authority,Transport,230007,Contract Hire,01-Aug-2012,2477404-126,"2,249.85",STEPHEN MAUDE LTD T/A MAUDES COACHES.
Children and Young Peoples Services,CYPS - Local Authority,Third Party Payments,425040,Rendered by Voluntary Organisations,01-Aug-2012,2477409-115837,"1,069.00",SWIIS FOSTER CARE LTD.
Children and Young Peoples Services,CYPS - Local Authority,Third Party Payments,425040,Rendered by Voluntary Organisations,01-Aug-2012,2477409-115844,911.00,SWIIS FOSTER CARE LTD.
Children and Young Peoples Services,CYPS - Local Authority,Transport,230007,Contract Hire,01-Aug-2012,2477412-1307A,"1,245.00",T MOORE & SON.
Children and Young Peoples Services,CYPS - Local Authority,Transport,230007,Contract Hire,01-Aug-2012,2477412-1407B,"1,006.65",T MOORE & SON.
Children and Young Peoples Services,CYPS - Local Authority,Transport,230007,Contract Hire,01-Aug-2012,2477412-1507C,521.70,T MOORE & SON.
Children and Young Peoples Services,CYPS - Local Authority,Transport,230007,Contract Hire,01-Aug-2012,2477412-1707E,904.41,T MOORE & SON.
Children and Young Peoples Services,CYPS - Local Authority,Transport,230007,Contract Hire,01-Aug-2012,2477412-1807F,507.00,T MOORE & SON.
Children and Young Peoples Services,CYPS - Local Authority,Transport,230007,Contract Hire,01-Aug-2012,2477413-039/3188,"1,407.75",TA TRAVEL.
Children and Young Peoples Services,CYPS - Local Authority,Transport,230007,Contract Hire,01-Aug-2012,2477413-039/W012,"1,260.00",TA TRAVEL.
Children and Young Peoples Services,CYPS - Local Authority,Transport,230007,Contract Hire,01-Aug-2012,2477413-039/W023,"1,035.00",TA TRAVEL.
Children and Young Peoples Services,CYPS - Local Authority,Transport,230007,Contract Hire,01-Aug-2012,2477413-039/W055,"1,551.00",TA TRAVEL.
Children and Young Peoples Services,CYPS - Local Authority,Transport,230007,Contract Hire,01-Aug-2012,2477413-039/W084,"2,162.00",TA TRAVEL.
Children and Young Peoples Services,CYPS - Local Authority,Transport,230007,Contract Hire,01-Aug-2012,2477414-1157,"1,170.00",TAILORMADE TRAVEL.
Children and Young Peoples Services,CYPS - Local Authority,Transport,230007,Contract Hire,01-Aug-2012,2477414-1158,"1,090.20",TAILORMADE TRAVEL.
Children and Young Peoples Services,CYPS - Local Authority,Transport,230007,Contract Hire,01-Aug-2012,2477415-1753,815.00,TALBOTS TAXIS.
Children and Young Peoples Services,CYPS - Local Authority,Transport,230007,Contract Hire,01-Aug-2012,2477415-1755,"1,054.00",TALBOTS TAXIS.
Children and Young Peoples Services,CYPS - Local Authority,Transport,230007,Contract Hire,01-Aug-2012,2477416-B553,750.00,TALBOTS TRAVEL LTD.
Children and Young Peoples Services,CYPS - Local Authority,Transport,230007,Contract Hire,01-Aug-2012,2477418-07/2012/06,"1,165.20",TARN`S TAXIS.
Children and Young Peoples Services,CYPS - Local Authority,Transport,230007,Contract Hire,01-Aug-2012,2477418-07/2012/063,"1,596.54",TARN`S TAXIS.
Children and Young Peoples Services,CYPS - Local Authority,Transport,230007,Contract Hire,01-Aug-2012,2477418-07/2012/065,930.00,TARN`S TAXIS.
Children and Young Peoples Services,CYPS - Local Authority,Transport,230007,Contract Hire,01-Aug-2012,2477418-07/2012/067,519.20,TARN`S TAXIS.
Children and Young Peoples Services,CYPS - Local Authority,Third Party Payments,425040,Rendered by Voluntary Organisations,01-Aug-2012,2477419-17259,"6,111.34",TEAM FOSTERING.
Children and Young Peoples Services,CYPS - Local Authority,Third Party Payments,425040,Rendered by Voluntary Organisations,01-Aug-2012,2477419-17274,"9,831.34",TEAM FOSTERING.
Children and Young Peoples Services,CYPS - Local Authority,Third Party Payments,425040,Rendered by Voluntary Organisations,01-Aug-2012,2477419-17287,"3,232.68",TEAM FOSTERING.
Children and Young Peoples Services,CYPS - Local Authority,Third Party Payments,425040,Rendered by Voluntary Organisations,01-Aug-2012,2477419-17299,"6,332.68",TEAM FOSTERING.
Children and Young Peoples Services,CYPS - Local Authority,Third Party Payments,425040,Rendered by Voluntary Organisations,01-Aug-2012,2477419-17301,"3,232.68",TEAM FOSTERING.
Children and Young Peoples Services,CYPS - Local Authority,Third Party Payments,425040,Rendered by Voluntary Organisations,01-Aug-2012,2477419-17302,"3,232.68",TEAM FOSTERING.
Children and Young Peoples Services,CYPS - Local Authority,Third Party Payments,425040,Rendered by Voluntary Organisations,01-Aug-2012,2477419-17305,"3,232.68",TEAM FOSTERING.
Children and Young Peoples Services,CYPS - Local Authority,Third Party Payments,425040,Rendered by Voluntary Organisations,01-Aug-2012,2477419-17306,"3,232.68",TEAM FOSTERING.
Children and Young Peoples Services,CYPS - Local Authority,Transport,230007,Contract Hire,01-Aug-2012,2477420-SB005,"1,308.02",TED WILFORD COACHES.
Children and Young Peoples Services,CYPS - Local Authority,Transport,230007,Contract Hire,01-Aug-2012,2477420-SH005,"1,090.20",TED WILFORD COACHES.
Children and Young Peoples Services,CYPS - Local Authority,Transport,230007,Contract Hire,01-Aug-2012,2477425-26,559.00,THE TAXI CO.
Children and Young Peoples Services,CYPS - Local Authority,Transport,230007,Contract Hire,01-Aug-2012,2477425-30,"1,950.00",THE TAXI CO.
Children and Young Peoples Services,CYPS - Local Authority,Employees,040001,"Recruitment, Instruction and Training",01-Aug-2012,2477427-100000903206,552.00,TMP (UK) LTD (RECRUITMENT).
Children and Young Peoples Services,CYPS - Local Authority,Transport,230005,Contract Hire,01-Aug-2012,2477429-503,966.00,TONYS TAXIS (A BIRCH).
Children and Young Peoples Services,CYPS - Local Authority,Transport,230005,Contract Hire,01-Aug-2012,2477429-504,902.00,TONYS TAXIS (A BIRCH).
Children and Young Peoples Services,CYPS - Local Authority,Transport,230005,Contract Hire,01-Aug-2012,2477429-505,"1,747.00",TONYS TAXIS (A BIRCH).
Children and Young Peoples Services,CYPS - Local Authority,Transport,230005,Contract Hire,01-Aug-2012,2477429-509,672.00,TONYS TAXIS (A BIRCH).
Children and Young Peoples Services,CYPS - Local Authority,Transport,230007,Contract Hire,01-Aug-2012,2477432-9,600.00,TRAVEL 6.
Children and Young Peoples Services,CYPS - Local Authority,Transport,230007,Contract Hire,01-Aug-2012,2477445-643,735.00,WAYNE`S TAXIS.
Children and Young Peoples Services,CYPS - Local Authority,Transport,230007,Contract Hire,01-Aug-2012,2477445-644,"1,275.00",WAYNE`S TAXIS.
Children and Young Peoples Services,CYPS - Local Authority,Transport,230007,Contract Hire,01-Aug-2012,2477445-645,"1,434.60",WAYNE`S TAXIS.
Children and Young Peoples Services,CYPS - Local Authority,Transport,230007,Contract Hire,01-Aug-2012,2477446-906,638.70,WE CONNOR.
Children and Young Peoples Services,Dedicated Schools Grant,Transport,230007,Contract Hire,01-Aug-2012,2477154-17,720.00,ACE TAXIS..
Children and Young Peoples Services,Dedicated Schools Grant,Transport,230007,Contract Hire,01-Aug-2012,2477172-FH07/12,"1,330.00",ANDY`S TAXIS.
Children and Young Peoples Services,Dedicated Schools Grant,Transport,230007,Contract Hire,01-Aug-2012,2477183-278,"1,185.00",AT TAXIS LTD.
Children and Young Peoples Services,Dedicated Schools Grant,Transport,230007,Contract Hire,01-Aug-2012,2477220-40/12,780.00,CLARKS TAXIS LTD.
Children and Young Peoples Services,Dedicated Schools Grant,Third Party Payments,410037,Rendered by Other Local Authorities,01-Aug-2012,2477236-2172112,"5,509.00",DARLINGTON BOROUGH COUNCIL.
Children and Young Peoples Services,Dedicated Schools Grant,Third Party Payments,410037,Rendered by Other Local Authorities,01-Aug-2012,2477236-2172120,"2,878.00",DARLINGTON BOROUGH COUNCIL.
Children and Young Peoples Services,Dedicated Schools Grant,Third Party Payments,410037,Rendered by Other Local Authorities,01-Aug-2012,2477236-2172146,"3,915.00",DARLINGTON BOROUGH COUNCIL.
Children and Young Peoples Services,Dedicated Schools Grant,Third Party Payments,410037,Rendered by Other Local Authorities,01-Aug-2012,2477236-2172162,"3,915.00",DARLINGTON BOROUGH COUNCIL.
Children and Young Peoples Services,Dedicated Schools Grant,Third Party Payments,410037,Rendered by Other Local Authorities,01-Aug-2012,2477236-2172188,"2,878.00",DARLINGTON BOROUGH COUNCIL.
Children and Young Peoples Services,Dedicated Schools Grant,Third Party Payments,410037,Rendered by Other Local Authorities,01-Aug-2012,2477236-2172219,"3,915.00",DARLINGTON BOROUGH COUNCIL.
Children and Young Peoples Services,Dedicated Schools Grant,Third Party Payments,410037,Rendered by Other Local Authorities,01-Aug-2012,2477236-2172235,"2,878.00",DARLINGTON BOROUGH COUNCIL.
Children and Young Peoples Services,Dedicated Schools Grant,Third Party Payments,410037,Rendered by Other Local Authorities,01-Aug-2012,2477236-2172285,"2,878.00",DARLINGTON BOROUGH COUNCIL.
Children and Young Peoples Services,Dedicated Schools Grant,Transport,230007,Contract Hire,01-Aug-2012,2477286-005,"1,040.00",IAN SOULSBY.
Children and Young Peoples Services,Dedicated Schools Grant,Transport,230007,Contract Hire,01-Aug-2012,2477334-0880712,"1,410.00",MR JOHN CHISHOLM.
Children and Young Peoples Services,Dedicated Schools Grant,Transport,230007,Contract Hire,01-Aug-2012,2477403-2063,845.00,STANLEY TRAVEL (NORTH EAST) LTD.
Children and Young Peoples Services,Dedicated Schools Grant,Supplies and Services,384199,Miscellaneous Expenses,01-Aug-2012,2477421-430022644,920.56,TEES ESK & WEAR VALLEY NHS FOUNDATION TRUST.
Children and Young Peoples Services,Dedicated Schools Grant,Transport,230007,Contract Hire,01-Aug-2012,2477431-TS13,"1,650.00",TOP STAR TRAVEL.
Corporate Resources,Asset Management,Premises,106099,Centrally Controlled Rep and Maint,01-Aug-2012,2477422-D1156,637.50,TEESDALE COMMUNICATION & SECURITY.
Corporate Resources,Corporate Services Financing,Debtors,930022,Debtor-electricity holding account,01-Aug-2012,2477240-N-E-R,"1,081.81",DERWENTSIDE HOMES LTD.
Corporate Resources,Human Resources Total,Supplies and Services,338380,Services,01-Aug-2012,2477387-INV009596,"1,000.00",ROYAL COLLEGE OF PHYSICIANS.
Corporate Resources,ICT Services incl. Design and Print,Supplies and Services,338027,Services,01-Aug-2012,2477399-OP/L503777,850.00,SPECIALIST COMPUTER CENTRES PLC.
Corporate Resources,Legal & Democratic Services,Supplies and Services,384999,Miscellaneous Expenses,01-Aug-2012,210065-I165938,673.55,THOMAS FATTORINI LTD.
Corporate Resources,Legal & Democratic Services,Supplies and Services,384965,Miscellaneous Expenses,01-Aug-2012,2477340-1114,"1,105.00",NAME DROP PROMOTIONS LTD.
Corporate Resources,Legal & Democratic Services,Supplies and Services,384965,Miscellaneous Expenses,01-Aug-2012,2477340-1115,"1,740.00",NAME DROP PROMOTIONS LTD.
Neighbourhood Services,Direct Services,Third Party Payments,430105,Rendered by Private Contractors,01-Aug-2012,210028-040,"1,415.15",NE GREEN WASTE RECYCLING LTD.
Neighbourhood Services,Direct Services,Third Party Payments,430105,Rendered by Private Contractors,01-Aug-2012,210028-042,"2,122.26",NE GREEN WASTE RECYCLING LTD.
Neighbourhood Services,Direct Services,Supplies and Services,304221,Equipment and Materials,01-Aug-2012,210042-139187,787.00,QUILL INTERNATIONAL GROUP.
Neighbourhood Services,Direct Services,Third Party Payments,430100,Rendered by Private Contractors,01-Aug-2012,210042-15149,893.00,QUILL INTERNATIONAL GROUP.
Neighbourhood Services,Direct Services,Third Party Payments,430100,Rendered by Private Contractors,01-Aug-2012,210042-15175,893.00,QUILL INTERNATIONAL GROUP.
Neighbourhood Services,Direct Services,Third Party Payments,430100,Rendered by Private Contractors,01-Aug-2012,210042-15205,509.25,QUILL INTERNATIONAL GROUP.
Neighbourhood Services,Direct Services,Stock,926900,Stock in hand-Inventory system,01-Aug-2012,2477147-LLI256327,"2,765.00",A THOMPSON & SONS LTD.
Neighbourhood Services,Direct Services,Stock,926900,Stock in hand-Inventory system,01-Aug-2012,2477147-LLI256408,"3,950.00",A THOMPSON & SONS LTD.
Neighbourhood Services,Direct Services,Third Party Payments,430100,Rendered by Private Contractors,01-Aug-2012,2477157-21556543-61,599.45,ADT FIRE & SECURITY PLC.
Neighbourhood Services,Direct Services,Supplies and Services,324117,Provisions,01-Aug-2012,2477199-23841637,549.52,BRAKE BROS FOODSERVICE LTD.
Neighbourhood Services,Direct Services,Supplies and Services,324117,Provisions,01-Aug-2012,2477199-23867509,629.33,BRAKE BROS FOODSERVICE LTD.
Neighbourhood Services,Direct Services,Supplies and Services,324117,Provisions,01-Aug-2012,2477199-23869070,967.68,BRAKE BROS FOODSERVICE LTD.
Neighbourhood Services,Direct Services,Supplies and Services,304221,Equipment and Materials,01-Aug-2012,2477207-1650/0889997,"2,006.93",BSS GROUP PLC.
Neighbourhood Services,Direct Services,Supplies and Services,304357,Equipment and Materials,01-Aug-2012,2477237-060436,"1,440.00",DAWSONRENTALS/SWEEPERS.
Neighbourhood Services,Direct Services,Third Party Payments,430100,Rendered by Private Contractors,01-Aug-2012,2477243-9100600529,"1,849.10",DORMA UK LTD.
Neighbourhood Services,Direct Services,Stock,926900,Stock in hand-Inventory system,01-Aug-2012,2477252-059-102238,694.40,EDMUNDSON ELECTRICAL LTD.
Neighbourhood Services,Direct Services,Stock,926900,Stock in hand-Inventory system,01-Aug-2012,2477259-OP/I260651,546.60,FLEMING & CO (MACHINERY) LTD.
Neighbourhood Services,Direct Services,Stock,926900,Stock in hand-Inventory system,01-Aug-2012,2477259-OP/I260812,566.41,FLEMING & CO (MACHINERY) LTD.
Neighbourhood Services,Direct Services,Third Party Payments,430100,Rendered by Private Contractors,01-Aug-2012,2477284-1958,"5,825.00",IAN C LIDDLE.
Neighbourhood Services,Direct Services,Supplies and Services,324117,Provisions,01-Aug-2012,2477307-L39392,667.66,JR HOLLAND FOOD SERVICES LTD.
Neighbourhood Services,Direct Services,Third Party Payments,430100,Rendered by Private Contractors,01-Aug-2012,2477346-61447,620.00,NOBLET MUNICIPAL SERVICES LTD.
Neighbourhood Services,Direct Services,Third Party Payments,430100,Rendered by Private Contractors,01-Aug-2012,2477346-61796,"3,100.00",NOBLET MUNICIPAL SERVICES LTD.
Neighbourhood Services,Direct Services,Third Party Payments,430100,Rendered by Private Contractors,01-Aug-2012,2477346-62209,"3,875.00",NOBLET MUNICIPAL SERVICES LTD.
Neighbourhood Services,Direct Services,Third Party Payments,430100,Rendered by Private Contractors,01-Aug-2012,2477346-62211,"2,780.00",NOBLET MUNICIPAL SERVICES LTD.
Neighbourhood Services,Direct Services,Supplies and Services,304254,Equipment and Materials,01-Aug-2012,2477348-114183,"1,664.15",NORTH EAST VENDING LTD.
Neighbourhood Services,Direct Services,Premises,120009,Energy Costs,01-Aug-2012,2477353-NNO677S6,"3,504.12",NPOWER.
Neighbourhood Services,Direct Services,Premises,108251,Service Repairs and Maintenance,01-Aug-2012,2477376-2549,"6,266.88",QW SECURITY LTD.
Neighbourhood Services,Direct Services,Third Party Payments,430100,Rendered by Private Contractors,01-Aug-2012,2477382-15616,"3,868.00",RJ UTILITY SERVICES LTD.
Neighbourhood Services,Direct Services,Debtors,930046,Debtor-leasing,01-Aug-2012,2477389-10009909,"15,164.00",S JENNINGS LTD.
Neighbourhood Services,Direct Services,Debtors,930046,Debtor-leasing,01-Aug-2012,2477389-10009910,"15,164.00",S JENNINGS LTD.
Neighbourhood Services,Direct Services,Stock,926900,Stock in hand-Inventory system,01-Aug-2012,2477426-N/IN77000,845.38,THOMAS OWEN & SONS (NEWCASTLE) LTD.
Neighbourhood Services,Direct Services,Stock,926900,Stock in hand-Inventory system,01-Aug-2012,2477426-N/IN77305,"1,269.00",THOMAS OWEN & SONS (NEWCASTLE) LTD.
Neighbourhood Services,Direct Services,Stock,926900,Stock in hand-Inventory system,01-Aug-2012,2477426-N/IN77854,908.40,THOMAS OWEN & SONS (NEWCASTLE) LTD.
Neighbourhood Services,Direct Services,Stock,926900,Stock in hand-Inventory system,01-Aug-2012,2477426-N/IN77856,591.92,THOMAS OWEN & SONS (NEWCASTLE) LTD.
Neighbourhood Services,Direct Services,Stock,926900,Stock in hand-Inventory system,01-Aug-2012,2477426-N/IN77858,640.24,THOMAS OWEN & SONS (NEWCASTLE) LTD.
Neighbourhood Services,Direct Services,Stock,926900,Stock in hand-Inventory system,01-Aug-2012,2477426-N/IN78311,"3,032.08",THOMAS OWEN & SONS (NEWCASTLE) LTD.
Neighbourhood Services,Direct Services,Supplies and Services,304221,Equipment and Materials,01-Aug-2012,2477428-91664,"4,833.05",TOMMY WARDLE.
Neighbourhood Services,Direct Services,Supplies and Services,304221,Equipment and Materials,01-Aug-2012,2477434-2174AE8599,"1,316.00",TRAVIS PERKINS TRADING CO LTD.
Neighbourhood Services,Direct Services,Supplies and Services,304357,Equipment and Materials,01-Aug-2012,2477436-TUC02200,740.00,TUC PLANT HIRE LTD.
Neighbourhood Services,Direct Services,Supplies and Services,304221,Equipment and Materials,01-Aug-2012,2477450-30869,821.84,WILLOWCRETE MFG CO LTD.
Neighbourhood Services,"Environment,Health & Consumer Protection",Supplies and Services,384956,Miscellaneous Expenses,01-Aug-2012,210071-0000014000,"1,046.96",VIP SYSTEM LTD.
Neighbourhood Services,"Environment,Health & Consumer Protection",Employees,040149,"Recruitment, Instruction and Training",01-Aug-2012,2477245-10009351,"2,850.00",DURHAM & DARLINGTON FIRE & RESCUE.
Neighbourhood Services,Projects and Business services,Third Party Payments,430105,Rendered by Private Contractors,01-Aug-2012,2477304-025252,"2,680.00",JOHN WADE (HAULAGE) LTD.
Neighbourhood Services,Projects and Business services,Supplies and Services,384199,Miscellaneous Expenses,01-Aug-2012,2477381-REINV20823,"1,900.20",RIVERSIDE EVENTS LLP.
Neighbourhood Services,Sport & Leisure,Supplies and Services,384700,Miscellaneous Expenses,01-Aug-2012,209920-CGF,500.00,BENFIELDSIDE BLACKHILL BRIDGEHILL & SHOTLEY BRIDGE COMMUNITY PARTNERSHIP.
Neighbourhood Services,Sport & Leisure,Supplies and Services,384700,Miscellaneous Expenses,01-Aug-2012,210050-CG,500.00,SCYPAN (YOUTH WORKER).
Neighbourhood Services,Sport & Leisure,Supplies and Services,384700,Miscellaneous Expenses,01-Aug-2012,210050-SGF,500.00,SCYPAN (YOUTH WORKER).
Neighbourhood Services,Sport & Leisure,Supplies and Services,384700,Miscellaneous Expenses,01-Aug-2012,210070-C-G,500.00,VINEYARD CHURCH.
Neighbourhood Services,Sport & Leisure,Supplies and Services,304221,Equipment and Materials,01-Aug-2012,2477152-116197924,"2,071.65",AC ENTERTAINMENT TECHNOLOGIES.
Neighbourhood Services,Sport & Leisure,Premises,135005,Water Services,01-Aug-2012,2477352-210334670021036,"1,539.96",NORTHUMBRIAN WATER LTD.
Neighbourhood Services,Sport & Leisure,Premises,120009,Energy Costs,01-Aug-2012,2477353-NNO677S3,"4,527.70",NPOWER.
Neighbourhood Services,Sport & Leisure,Premises,115125,Repairs to Grounds,01-Aug-2012,2477366-58868740,556.98,PHS GROUP PLC.
Neighbourhood Services,Sport & Leisure,Premises,125009,Rents,01-Aug-2012,2477395-0424-048997,750.00,SMITHS GORE.
Neighbourhood Services,Technical Services,Supplies and Services,342053,Computers and Communications,01-Aug-2012,209921-47451373,665.00,BENTLEY SYSTEMS INTERNATIONAL LTD.
Neighbourhood Services,Technical Services,Supplies and Services,304040,Equipment and Materials,01-Aug-2012,2477147-LLI256358,"1,347.96",A THOMPSON & SONS LTD.
Neighbourhood Services,Technical Services,Supplies and Services,304221,Equipment and Materials,01-Aug-2012,2477159-16735432,973.93,AGGREGATE INDUSTRIES UK LTD.
Neighbourhood Services,Technical Services,Supplies and Services,304221,Equipment and Materials,01-Aug-2012,2477160-16740942,"3,003.00",AGGREGATE INDUSTRIES UK LTD.
Neighbourhood Services,Technical Services,Supplies and Services,304221,Equipment and Materials,01-Aug-2012,2477160-16741656,608.90,AGGREGATE INDUSTRIES UK LTD.
Neighbourhood Services,Technical Services,Supplies and Services,304221,Equipment and Materials,01-Aug-2012,2477160-16741657,555.65,AGGREGATE INDUSTRIES UK LTD.
Neighbourhood Services,Technical Services,Supplies and Services,304221,Equipment and Materials,01-Aug-2012,2477160-16741658,"4,471.69",AGGREGATE INDUSTRIES UK LTD.
Neighbourhood Services,Technical Services,Third Party Payments,460256,Contract Payments,01-Aug-2012,2477168-IWS(N1161,"9,488.00",ANDEL LTD.
Neighbourhood Services,Technical Services,Supplies and Services,304252,Equipment and Materials,01-Aug-2012,2477201-53044574,664.40,BRANDON HIRE PLC.
Neighbourhood Services,Technical Services,Supplies and Services,304221,Equipment and Materials,01-Aug-2012,2477206-INV097393,"1,792.00",BROXAP LTD.
Neighbourhood Services,Technical Services,Supplies and Services,304221,Equipment and Materials,01-Aug-2012,2477241-DN/2944,754.66,DIAMOND NORTHERN 91.
Neighbourhood Services,Technical Services,Supplies and Services,304357,Equipment and Materials,01-Aug-2012,2477269-8815,740.00,GEORGE VARDY HAULAGE.
Neighbourhood Services,Technical Services,Supplies and Services,304357,Equipment and Materials,01-Aug-2012,2477269-8816,"1,295.00",GEORGE VARDY HAULAGE.
Neighbourhood Services,Technical Services,Supplies and Services,304357,Equipment and Materials,01-Aug-2012,2477269-8817,666.00,GEORGE VARDY HAULAGE.
Neighbourhood Services,Technical Services,Supplies and Services,304357,Equipment and Materials,01-Aug-2012,2477269-8820,703.00,GEORGE VARDY HAULAGE.
Neighbourhood Services,Technical Services,Supplies and Services,304357,Equipment and Materials,01-Aug-2012,2477269-8821,666.00,GEORGE VARDY HAULAGE.
Neighbourhood Services,Technical Services,Supplies and Services,304357,Equipment and Materials,01-Aug-2012,2477269-8837,"4,662.00",GEORGE VARDY HAULAGE.
Neighbourhood Services,Technical Services,Supplies and Services,304357,Equipment and Materials,01-Aug-2012,2477269-8838,666.00,GEORGE VARDY HAULAGE.
Neighbourhood Services,Technical Services,Third Party Payments,460350,Contract Payments,01-Aug-2012,2477292-202,672.00,J & JG GILL & SONS LTD.
Neighbourhood Services,Technical Services,Supplies and Services,304221,Equipment and Materials,01-Aug-2012,2477301-00071087,"1,873.50",JOBLING PURSER LTD.
Neighbourhood Services,Technical Services,Supplies and Services,304221,Equipment and Materials,01-Aug-2012,2477301-00071088,"1,786.00",JOBLING PURSER LTD.
Neighbourhood Services,Technical Services,Supplies and Services,304358,Equipment and Materials,01-Aug-2012,2477304-0000077393,"1,147.50",JOHN WADE (HAULAGE) LTD.
Neighbourhood Services,Technical Services,Supplies and Services,304358,Equipment and Materials,01-Aug-2012,2477304-0000077394,"1,462.50",JOHN WADE (HAULAGE) LTD.
Neighbourhood Services,Technical Services,Third Party Payments,460351,Contract Payments,01-Aug-2012,2477349-028641,"1,184.96",NORTHERN DISPOSAL SERVICES LTD.
Neighbourhood Services,Technical Services,Premises,120009,Energy Costs,01-Aug-2012,2477353-NNO7BLC2,709.73,NPOWER.
Neighbourhood Services,Technical Services,Supplies and Services,304221,Equipment and Materials,01-Aug-2012,2477373-047215,741.76,PREMIER WASTE MANAGEMENT LTD.
Neighbourhood Services,Technical Services,Supplies and Services,304221,Equipment and Materials,01-Aug-2012,2477373-047308,571.07,PREMIER WASTE MANAGEMENT LTD.
Neighbourhood Services,Technical Services,Supplies and Services,304358,Equipment and Materials,01-Aug-2012,2477392-2012073,"1,944.00",SHIREHAVEN LTD.
RED HRA,East Durham Homes - HRA Rent Control Account,Supplies and Services,384999,Miscellaneous Expenses,01-Aug-2012,210004-R1037631008,"1,093.57",REDACTED - PAYMENT TO INDIVIDUAL
RED HRA,Housing Revenue Account,Construction Work,908105,Construction work,01-Aug-2012,2477234-80001194,"11,000.00",DALE & VALLEY HOMES.
RED HRA,Housing Revenue Account,Supplies and Services,384999,Miscellaneous Expenses,01-Aug-2012,2477250-SINV/00002797,"2,270.49",EAST DURHAM HOMES.
RED HRA,Housing Revenue Account,Supplies and Services,338027,Services,01-Aug-2012,2477296-STS,"1,375.00",JANIS DEAN ASSOCIATES.
RED HRA,HRA Capital,Construction Work,908105,Construction work,01-Aug-2012,209922-C/26450/70,870.00,BH NELSON & CO LTD.
RED HRA,HRA Capital,Construction Work,908105,Construction work,01-Aug-2012,209971-SIN047298,"6,790.00",HODGSON & ALLON LTD.
RED HRA,HRA Capital,Construction Work,908105,Construction work,01-Aug-2012,209971-SIN047514,"2,393.00",HODGSON & ALLON LTD.
RED HRA,HRA Capital,Construction Work,908105,Construction work,01-Aug-2012,2477265-120814,"283,784.40",FRANK HASLAM MILAN & CO LTD.
RED HRA,HRA Capital,Construction Work,908105,Construction work,01-Aug-2012,2477362-0000057765,"1,442.00",PEART ACCESS RAMPS.
Regeneration & Economic Development,Economic Development and Housing,Supplies and Services,338045,Services,01-Aug-2012,210006-AS,"8,750.00",MR ANTOINE TINNION.
Regeneration & Economic Development,Economic Development and Housing,Supplies and Services,384437,Miscellaneous Expenses,01-Aug-2012,2477190-SIN010640,860.00,BEAMISH MUSEUM LTD.
Regeneration & Economic Development,Economic Development and Housing,Supplies and Services,384437,Miscellaneous Expenses,01-Aug-2012,2477226-12-056,"4,306.67",CONSETT YMCA.
Regeneration & Economic Development,Economic Development and Housing,Supplies and Services,384999,Miscellaneous Expenses,01-Aug-2012,2477246-215,"1,805.40",DURHAM ACTION ON SINGLE HOUSING.
Regeneration & Economic Development,Economic Development and Housing,Supplies and Services,384437,Miscellaneous Expenses,01-Aug-2012,2477248-15911,"2,450.00",DURHAM CITY COACHES.
Regeneration & Economic Development,Economic Development and Housing,Supplies and Services,308011,Furniture,01-Aug-2012,2477287-4789,"2,487.78",INGRAMS REMOVERS & STORERS.
Regeneration & Economic Development,Economic Development and Housing,Third Party Payments,440999,Other Third Party Payments,01-Aug-2012,2477340-1090,"5,084.00",NAME DROP PROMOTIONS LTD.
Regeneration & Economic Development,Economic Development and Housing,Supplies and Services,344033,Telephones,01-Aug-2012,2477365-002527996,"1,236.40",PHONE CO-OP.
Regeneration & Economic Development,Economic Development and Housing,Supplies and Services,336005,Advertising,01-Aug-2012,2477427-100000903202,826.80,TMP (UK) LTD (RECRUITMENT).
Regeneration & Economic Development,Economic Development and Housing,Supplies and Services,384437,Miscellaneous Expenses,01-Aug-2012,2477433-OrderNo1173468,"7,367.72",TRAVELEX PAYMENTS LTD.
Regeneration & Economic Development,Economic Development and Housing,Supplies and Services,384437,Miscellaneous Expenses,01-Aug-2012,2477433-OrderNo1173469,"3,243.60",TRAVELEX PAYMENTS LTD.
Regeneration & Economic Development,Economic Development and Housing,Supplies and Services,384437,Miscellaneous Expenses,01-Aug-2012,2477433-OrderNo1173470,"2,589.83",TRAVELEX PAYMENTS LTD.
Regeneration & Economic Development,Economic Development and Housing,Supplies and Services,384437,Miscellaneous Expenses,01-Aug-2012,2477433-OrderNo1173473,"3,682.46",TRAVELEX PAYMENTS LTD.
Regeneration & Economic Development,Economic Development and Housing,Supplies and Services,384437,Miscellaneous Expenses,01-Aug-2012,2477433-OrderNo1173474,"4,356.29",TRAVELEX PAYMENTS LTD.
Regeneration & Economic Development,Economic Development and Housing,Supplies and Services,384437,Miscellaneous Expenses,01-Aug-2012,2477433-OrderNo1173477,"4,112.12",TRAVELEX PAYMENTS LTD.
Regeneration & Economic Development,Economic Development and Housing,Supplies and Services,384437,Miscellaneous Expenses,01-Aug-2012,2477433-OrderNo1173479,"2,904.91",TRAVELEX PAYMENTS LTD.
Regeneration & Economic Development,Economic Development and Housing,Supplies and Services,384437,Miscellaneous Expenses,01-Aug-2012,2477433-OrderNo1173481,"7,873.09",TRAVELEX PAYMENTS LTD.
Regeneration & Economic Development,Economic Development and Housing,Supplies and Services,384437,Miscellaneous Expenses,01-Aug-2012,2477433-OrderNo1173482,"5,701.99",TRAVELEX PAYMENTS LTD.
Regeneration & Economic Development,Economic Development and Housing,Supplies and Services,384437,Miscellaneous Expenses,01-Aug-2012,2477433-OrderNo1173505,"8,320.75",TRAVELEX PAYMENTS LTD.
Regeneration & Economic Development,Housing General Fund,Cap Exp on Grants & Other Financial Assistance (REFCUS),918401,Capital grants,01-Aug-2012,209916-1313,"2,559.49",REDACTED - PAYMENT TO INDIVIDUAL
Regeneration & Economic Development,Housing General Fund,Cap Exp on Grants & Other Financial Assistance (REFCUS),918401,Capital grants,01-Aug-2012,209916-1319,"1,865.89",REDACTED - PAYMENT TO INDIVIDUAL
Regeneration & Economic Development,Housing General Fund,Cap Exp on Grants & Other Financial Assistance (REFCUS),918401,Capital grants,01-Aug-2012,2477164-GDFG092/12-23TM,"2,292.00",ALAN LEE & SON.
Regeneration & Economic Development,Housing General Fund,Cap Exp on Grants & Other Financial Assistance (REFCUS),918401,Capital grants,01-Aug-2012,2477256-DFG110/12,"3,610.00",F TIFFEN BUILDING SERVICES.
Regeneration & Economic Development,Housing General Fund,Cap Exp on Grants & Other Financial Assistance (REFCUS),918401,Capital grants,01-Aug-2012,2477256-DFG86/12,"2,425.00",F TIFFEN BUILDING SERVICES.
Regeneration & Economic Development,"Spatial Policy, Planning, Assets & Environment",Supplies and Services,384999,Miscellaneous Expenses,01-Aug-2012,209968-5765,750.00,HEXHAM & NORTHERN RURAL.
Regeneration & Economic Development,"Spatial Policy, Planning, Assets & Environment",Supplies and Services,384199,Miscellaneous Expenses,01-Aug-2012,2477314-2012,650.00,REDACTED - PAYMENT TO INDIVIDUAL
Regeneration & Economic Development,"Spatial Policy, Planning, Assets & Environment",Supplies and Services,336005,Advertising,01-Aug-2012,2477427-100000903201,"1,476.43",TMP (UK) LTD (RECRUITMENT).
Regeneration & Economic Development,Strategy Programmes and Performance,Supplies and Services,384899,Miscellaneous Expenses,01-Aug-2012,2477397-ED060/02,"1,150.93",SOIL ASSOCIATION CERTIFICATION LTD.
Regeneration & Economic Development,Transport,Third Party Payments,440999,Other Third Party Payments,01-Aug-2012,2477189-15972,"1,594.00",BAYDALE CONTROL SYSTEMS LTD.
Regeneration & Economic Development,Transport,Construction Work,908105,Construction work,01-Aug-2012,2477209-18648,"2,804.01",BUS SHELTERS LTD.
Regeneration & Economic Development,Transport,Construction Work,908105,Construction work,01-Aug-2012,2477209-18784,"2,927.08",BUS SHELTERS LTD.
Regeneration & Economic Development,Transport,Supplies and Services,304245,Equipment and Materials,01-Aug-2012,2477289-161063,"5,294.80",INTECHNOLOGY PLC T/A INHEALTHCARE.
Regeneration & Economic Development,Transport,Supplies and Services,336005,Advertising,01-Aug-2012,2477427-100000903204,989.97,TMP (UK) LTD (RECRUITMENT).
Adults Wellbeing and Health,Commissioning inc Supporting People,Supplies and Services,338027,Services,02-Aug-2012,2477529-17/04/2012,673.77,BLAIZE.
Adults Wellbeing and Health,Commissioning inc Supporting People,Supplies and Services,384302,Miscellaneous Expenses,02-Aug-2012,2477751-58,"1,500.00",REDACTED - PAYMENT TO INDIVIDUAL
Adults Wellbeing and Health,Commissioning inc Supporting People,Supplies and Services,338047,Services,02-Aug-2012,2478029-GB12B0037346,558.37,TWENTIETH CENTURY FOX FILM CO LTD.
Adults Wellbeing and Health,Commissioning inc Supporting People,Supplies and Services,338047,Services,02-Aug-2012,2478029-GB12B0037452,"2,530.50",TWENTIETH CENTURY FOX FILM CO LTD.
Adults Wellbeing and Health,Commissioning inc Supporting People,Supplies and Services,338047,Services,02-Aug-2012,2478029-GB12B0037453,"1,505.86",TWENTIETH CENTURY FOX FILM CO LTD.
Adults Wellbeing and Health,Commissioning inc Supporting People,Supplies and Services,338047,Services,02-Aug-2012,2478029-GB12B0037454,812.92,TWENTIETH CENTURY FOX FILM CO LTD.
Adults Wellbeing and Health,Commissioning inc Supporting People,Supplies and Services,338047,Services,02-Aug-2012,2478047-22059406,591.59,WARNER BROS ENTERTAINMENT UK LTD.
Adults Wellbeing and Health,Commissioning inc Supporting People,Supplies and Services,338047,Services,02-Aug-2012,2478047-22060280,594.75,WARNER BROS ENTERTAINMENT UK LTD.
Adults Wellbeing and Health,Commissioning inc Supporting People,Third Party Payments,479102,Purchase of Care,02-Aug-2012,2477596-13/040679,"2,333.00",COLLECTIVE ENTERPRISES LTD T/A FOUNDATIONS.
Adults Wellbeing and Health,Commissioning inc Supporting People,Premises,108301,Service Repairs and Maintenance,02-Aug-2012,2477474-21552347-61,826.49,ADT FIRE & SECURITY PLC.
Adults Wellbeing and Health,Commissioning inc Supporting People,Third Party Payments,479111,Purchase of Care,02-Aug-2012,2477539-823,"1,490.00",BRIDGE TRAINING OPPORTUNITIES FOR WOMEN.
Adults Wellbeing and Health,Commissioning inc Supporting People,Third Party Payments,479111,Purchase of Care,02-Aug-2012,2477804-555/02012,"14,830.50",MENTAL HEALTH MATTERS.
Adults Wellbeing and Health,Commissioning inc Supporting People,Third Party Payments,479111,Purchase of Care,02-Aug-2012,2477804-555/02142,"14,830.50",MENTAL HEALTH MATTERS.
Adults Wellbeing and Health,Commissioning inc Supporting People,Third Party Payments,479101,Purchase of Care,02-Aug-2012,2477996-430021742,"4,088.33",TEES ESK & WEAR VALLEY NHS FOUNDATION TRUST.
Adults Wellbeing and Health,Commissioning inc Supporting People,Supplies and Services,384540,Miscellaneous Expenses,02-Aug-2012,2477588-0101781013,"3,200.00",CLEAR CHANNEL UK LTD.
Adults Wellbeing and Health,Commissioning inc Supporting People,Supplies and Services,338099,Services,02-Aug-2012,2477879-3702840,"3,812.07",PERFORMING RIGHTS SOCIETY LTD.
Adults Wellbeing and Health,Financing-Adult Services,Debtors,930131,Debtor-Hospital Re-Admission Avoidance Project,02-Aug-2012,2477766-15257,883.56,KELLY PARK CARING AGENCY LTD.
Adults Wellbeing and Health,Head of Adults,Summary reporting level,720033,Fees and Charges,02-Aug-2012,2477834-R,962.56,REDACTED - PAYMENT TO INDIVIDUAL
Adults Wellbeing and Health,Head of Adults,Supplies and Services,338370,Services,02-Aug-2012,2477594-3137483,"115,862.00",CO DURHAM & DARLINGTON NHS FOUNDATION TRUST.
Adults Wellbeing and Health,Head of Adults,Supplies and Services,338370,Services,02-Aug-2012,2477594-3137484,"68,367.00",CO DURHAM & DARLINGTON NHS FOUNDATION TRUST.
Adults Wellbeing and Health,Head of Adults,Premises,145023,Cleaning and Domestic Supplies,02-Aug-2012,2477712-06/420088,678.94,GREENHAM TRADING LTD.
Adults Wellbeing and Health,Head of Adults,Transport,240001,Car Allowances,02-Aug-2012,2477746-LWH/JBS/82,919.80,JB SKILLCARE LTD.
Adults Wellbeing and Health,Head of Adults,Supplies and Services,324117,Provisions,02-Aug-2012,2477763-L39380,698.30,JR HOLLAND FOOD SERVICES LTD.
Adults Wellbeing and Health,Head of Adults,Third Party Payments,478101,Purchase of Care,02-Aug-2012,2477618-0000097468,"1,494.08",CREATIVE SUPPORT LTD.
Adults Wellbeing and Health,Head of Adults,Third Party Payments,478101,Purchase of Care,02-Aug-2012,2477618-0000097469,"1,494.08",CREATIVE SUPPORT LTD.
Adults Wellbeing and Health,Social Inclusion,Supplies and Services,304259,Equipment and Materials,02-Aug-2012,2478001-34271,540.00,TEXTILE TOWN.
Adults Wellbeing and Health,Social Inclusion,Supplies and Services,384199,Miscellaneous Expenses,02-Aug-2012,2477525-SINV21806,"1,543.33",BISHOP AUCKLAND COLLEGE.
Adults Wellbeing and Health,Social Inclusion,Transport,235057,Public Transport,02-Aug-2012,2477577-397989,"1,694.60",CHRISTINE NUGENT BUSINESS TRAVEL LTD.
Adults Wellbeing and Health,Social Inclusion,Supplies and Services,304252,Equipment and Materials,02-Aug-2012,2477614-15041,631.57,COVERGOLD LTD.
Assistant Chief Executive,Partnerships & Community Engagement Div.,Supplies and Services,384085,Miscellaneous Expenses,02-Aug-2012,2477552-HUGS07-12,500.00,BUTTERKNOWLE & DIST VILLAGE HALL ASSOCIATION.
Children and Young Peoples Services,CYPS - Local Authority,Transport,230007,Contract Hire,02-Aug-2012,2477459-A220732,794.40,A MURRAY TRAVEL.
Children and Young Peoples Services,CYPS - Local Authority,Transport,230007,Contract Hire,02-Aug-2012,2477466-B19//S,855.00,AABAT TAXIS.
Children and Young Peoples Services,CYPS - Local Authority,Transport,230007,Contract Hire,02-Aug-2012,2477467-12,"1,350.00",AALPHA TAXIS.
Children and Young Peoples Services,CYPS - Local Authority,Transport,230007,Contract Hire,02-Aug-2012,2477483-197505,"1,050.00",ALANS CABS.
Children and Young Peoples Services,CYPS - Local Authority,Premises,120021,Energy Costs,02-Aug-2012,2477542-131366233,"1,020.57",BRITISH GAS BUSINESS.
Children and Young Peoples Services,CYPS - Local Authority,Transport,230007,Contract Hire,02-Aug-2012,2477553-A06607,"1,120.00",C & R TAXIS.
Children and Young Peoples Services,CYPS - Local Authority,Transport,230007,Contract Hire,02-Aug-2012,2477557-249,630.00,CARE FREE PRIVATE HIRE.
Children and Young Peoples Services,CYPS - Local Authority,Supplies and Services,338099,Services,02-Aug-2012,2477562-CASA/893/2012,750.00,CASA SAFETY TRAINING SERVICES LTD.
Children and Young Peoples Services,CYPS - Local Authority,Transport,230007,Contract Hire,02-Aug-2012,2477563-55,"1,950.38",CASTLE CARS.
Children and Young Peoples Services,CYPS - Local Authority,Transport,230007,Contract Hire,02-Aug-2012,2477573-129,810.00,CENTRAL TAXIS (PETERLEE) LTD.
Children and Young Peoples Services,CYPS - Local Authority,Transport,230007,Contract Hire,02-Aug-2012,2477573-130,"1,080.00",CENTRAL TAXIS (PETERLEE) LTD.
Children and Young Peoples Services,CYPS - Local Authority,Transport,230007,Contract Hire,02-Aug-2012,2477573-131,525.00,CENTRAL TAXIS (PETERLEE) LTD.
Children and Young Peoples Services,CYPS - Local Authority,Transport,230007,Contract Hire,02-Aug-2012,2477573-132,700.00,CENTRAL TAXIS (PETERLEE) LTD.
Children and Young Peoples Services,CYPS - Local Authority,Transport,230007,Contract Hire,02-Aug-2012,2477582-43370,"4,999.65",CJ GRIERSON.
Children and Young Peoples Services,CYPS - Local Authority,Transport,230007,Contract Hire,02-Aug-2012,2477582-43375,"1,557.60",CJ GRIERSON.
Children and Young Peoples Services,CYPS - Local Authority,Transport,230007,Contract Hire,02-Aug-2012,2477582-43376,"5,840.70",CJ GRIERSON.
Children and Young Peoples Services,CYPS - Local Authority,Transport,230007,Contract Hire,02-Aug-2012,2477584-006,"2,018.52",CJS TAXIS.
Children and Young Peoples Services,CYPS - Local Authority,Transport,230007,Contract Hire,02-Aug-2012,2477586-3/W008JULY2012,"1,555.20",CLARKS MINIBUSES & TAXIS.
Children and Young Peoples Services,CYPS - Local Authority,Transport,230007,Contract Hire,02-Aug-2012,2477625-OAK007,"1,129.26",D IRVING T/A BJ TAXIS.
Children and Young Peoples Services,CYPS - Local Authority,Transport,230007,Contract Hire,02-Aug-2012,2477625-WAL007,"1,120.00",D IRVING T/A BJ TAXIS.
Children and Young Peoples Services,CYPS - Local Authority,Transport,230007,Contract Hire,02-Aug-2012,2477627-1198,825.00,DA TAXIS.
Children and Young Peoples Services,CYPS - Local Authority,Transport,230007,Contract Hire,02-Aug-2012,2477627-1199,"1,237.50",DA TAXIS.
Children and Young Peoples Services,CYPS - Local Authority,Transport,230007,Contract Hire,02-Aug-2012,2477627-1203,"1,340.00",DA TAXIS.
Children and Young Peoples Services,CYPS - Local Authority,Transport,230007,Contract Hire,02-Aug-2012,2477627-1205,750.00,DA TAXIS.
Children and Young Peoples Services,CYPS - Local Authority,Transport,230007,Contract Hire,02-Aug-2012,2477632-230671,"1,950.00",DALELINK PRIVATE HIRE.
Children and Young Peoples Services,CYPS - Local Authority,Supplies and Services,338099,Services,02-Aug-2012,2477648-105.,"1,270.00",DEPENDABLE PRODUCTIONS.
Children and Young Peoples Services,CYPS - Local Authority,Transport,230007,Contract Hire,02-Aug-2012,2477660-15977,"2,024.85",DURHAM CITY COACHES.
Children and Young Peoples Services,CYPS - Local Authority,Transport,230007,Contract Hire,02-Aug-2012,2477660-15978,"6,118.20",DURHAM CITY COACHES.
Children and Young Peoples Services,CYPS - Local Authority,Transport,230007,Contract Hire,02-Aug-2012,2477660-15979,"2,024.85",DURHAM CITY COACHES.
Children and Young Peoples Services,CYPS - Local Authority,Transport,230007,Contract Hire,02-Aug-2012,2477660-15980,"2,324.85",DURHAM CITY COACHES.
Children and Young Peoples Services,CYPS - Local Authority,Supplies and Services,304259,Equipment and Materials,02-Aug-2012,2477687-6234,"1,211.50",FAMILY LINKS.
Children and Young Peoples Services,CYPS - Local Authority,Third Party Payments,425040,Rendered by Voluntary Organisations,02-Aug-2012,2477693-630042707,"6,367.65",FOSTER CARE ASSOCIATES LTD.
Children and Young Peoples Services,CYPS - Local Authority,Third Party Payments,425040,Rendered by Voluntary Organisations,02-Aug-2012,2477693-630042903,"4,181.44",FOSTER CARE ASSOCIATES LTD.
Children and Young Peoples Services,CYPS - Local Authority,Third Party Payments,425040,Rendered by Voluntary Organisations,02-Aug-2012,2477693-630043004,"4,181.44",FOSTER CARE ASSOCIATES LTD.
Children and Young Peoples Services,CYPS - Local Authority,Third Party Payments,425040,Rendered by Voluntary Organisations,02-Aug-2012,2477693-630043133,"3,374.35",FOSTER CARE ASSOCIATES LTD.
Children and Young Peoples Services,CYPS - Local Authority,Third Party Payments,425040,Rendered by Voluntary Organisations,02-Aug-2012,2477693-630043170,"4,225.86",FOSTER CARE ASSOCIATES LTD.
Children and Young Peoples Services,CYPS - Local Authority,Third Party Payments,425040,Rendered by Voluntary Organisations,02-Aug-2012,2477693-630043699,"4,079.43",FOSTER CARE ASSOCIATES LTD.
Children and Young Peoples Services,CYPS - Local Authority,Third Party Payments,425040,Rendered by Voluntary Organisations,02-Aug-2012,2477693-630043937,"4,079.43",FOSTER CARE ASSOCIATES LTD.
Children and Young Peoples Services,CYPS - Local Authority,Third Party Payments,425040,Rendered by Voluntary Organisations,02-Aug-2012,2477693-630045093,"2,954.16",FOSTER CARE ASSOCIATES LTD.
Children and Young Peoples Services,CYPS - Local Authority,Third Party Payments,425040,Rendered by Voluntary Organisations,02-Aug-2012,2477693-630045098,"4,162.68",FOSTER CARE ASSOCIATES LTD.
Children and Young Peoples Services,CYPS - Local Authority,Third Party Payments,425040,Rendered by Voluntary Organisations,02-Aug-2012,2477694-2180,600.00,FOSTER CARE SOLUTIONS LTD.
Children and Young Peoples Services,CYPS - Local Authority,Third Party Payments,425040,Rendered by Voluntary Organisations,02-Aug-2012,2477694-2181,"3,100.00",FOSTER CARE SOLUTIONS LTD.
Children and Young Peoples Services,CYPS - Local Authority,Third Party Payments,425040,Rendered by Voluntary Organisations,02-Aug-2012,2477694-2182,600.00,FOSTER CARE SOLUTIONS LTD.
Children and Young Peoples Services,CYPS - Local Authority,Third Party Payments,425040,Rendered by Voluntary Organisations,02-Aug-2012,2477694-2183,"3,100.00",FOSTER CARE SOLUTIONS LTD.
Children and Young Peoples Services,CYPS - Local Authority,Supplies and Services,340001,Postages,02-Aug-2012,2477695-54370-2/8/12,"2,000.00",FP TELESET.
Children and Young Peoples Services,CYPS - Local Authority,Transport,230007,Contract Hire,02-Aug-2012,2477742-062,"3,069.36",J YOUNG T/A VIP TAXIS.
Children and Young Peoples Services,CYPS - Local Authority,Transport,230007,Contract Hire,02-Aug-2012,2477758-21,780.00,JOHNS TAXIS (CHESTER LE STREET).
Children and Young Peoples Services,CYPS - Local Authority,Transport,230007,Contract Hire,02-Aug-2012,2477758-22,"1,125.00",JOHNS TAXIS (CHESTER LE STREET).
Children and Young Peoples Services,CYPS - Local Authority,Transport,230007,Contract Hire,02-Aug-2012,2477760-T17,"1,095.00",JOVIAL PRIVATE HIRE.
Children and Young Peoples Services,CYPS - Local Authority,Transport,230007,Contract Hire,02-Aug-2012,2477768-10712,675.00,KEVIN EDMUNDSON.
Children and Young Peoples Services,CYPS - Local Authority,Transport,230007,Contract Hire,02-Aug-2012,2477813-47-20/7/12,"1,620.00",MR BW YOUNG.
Children and Young Peoples Services,CYPS - Local Authority,Supplies and Services,338045,Services,02-Aug-2012,2477816-287335/INVDWM33,575.00,MR DONALD MACFAUL.
Children and Young Peoples Services,CYPS - Local Authority,Transport,230007,Contract Hire,02-Aug-2012,2477821-106,930.00,MR S BALL.
Children and Young Peoples Services,CYPS - Local Authority,Transport,230007,Contract Hire,02-Aug-2012,2477821-108-13/7/12,675.00,MR S BALL.
Children and Young Peoples Services,CYPS - Local Authority,Transport,230007,Contract Hire,02-Aug-2012,2477822-2694,540.00,MR S BOWERS.
Children and Young Peoples Services,CYPS - Local Authority,Third Party Payments,425040,Rendered by Voluntary Organisations,02-Aug-2012,2477842-NFA64114,"3,000.00",NATIONAL FOSTERING AGENCY LTD.
Children and Young Peoples Services,CYPS - Local Authority,Premises,145009,Cleaning and Domestic Supplies,02-Aug-2012,2477882-58403639,730.43,PHS GROUP PLC.
Children and Young Peoples Services,CYPS - Local Authority,Transport,230007,Contract Hire,02-Aug-2012,2477954-W058CJULY12,"1,945.29",SIMON ELLIFF.
Children and Young Peoples Services,CYPS - Local Authority,Third Party Payments,425020,Rendered by Voluntary Organisations,02-Aug-2012,2477971-1130254,"7,571.00",ST CUTHBERTS CARE.
Children and Young Peoples Services,CYPS - Local Authority,Third Party Payments,425040,Rendered by Voluntary Organisations,02-Aug-2012,2477985-115347,901.00,SWIIS FOSTER CARE LTD.
Children and Young Peoples Services,CYPS - Local Authority,Third Party Payments,425040,Rendered by Voluntary Organisations,02-Aug-2012,2477985-115348,"1,069.00",SWIIS FOSTER CARE LTD.
Children and Young Peoples Services,CYPS - Local Authority,Third Party Payments,425040,Rendered by Voluntary Organisations,02-Aug-2012,2477985-115349,"1,075.00",SWIIS FOSTER CARE LTD.
Children and Young Peoples Services,CYPS - Local Authority,Third Party Payments,425040,Rendered by Voluntary Organisations,02-Aug-2012,2477985-115350,774.00,SWIIS FOSTER CARE LTD.
Children and Young Peoples Services,CYPS - Local Authority,Third Party Payments,425040,Rendered by Voluntary Organisations,02-Aug-2012,2477985-115351,795.00,SWIIS FOSTER CARE LTD.
Children and Young Peoples Services,CYPS - Local Authority,Third Party Payments,425040,Rendered by Voluntary Organisations,02-Aug-2012,2477985-115352,"1,058.00",SWIIS FOSTER CARE LTD.
Children and Young Peoples Services,CYPS - Local Authority,Third Party Payments,425040,Rendered by Voluntary Organisations,02-Aug-2012,2477985-115353,910.00,SWIIS FOSTER CARE LTD.
Children and Young Peoples Services,CYPS - Local Authority,Third Party Payments,425040,Rendered by Voluntary Organisations,02-Aug-2012,2477985-115354,"1,091.00",SWIIS FOSTER CARE LTD.
Children and Young Peoples Services,CYPS - Local Authority,Third Party Payments,425040,Rendered by Voluntary Organisations,02-Aug-2012,2477985-115355,911.00,SWIIS FOSTER CARE LTD.
Children and Young Peoples Services,CYPS - Local Authority,Third Party Payments,425040,Rendered by Voluntary Organisations,02-Aug-2012,2477994-17264,"3,232.68",TEAM FOSTERING.
Children and Young Peoples Services,CYPS - Local Authority,Third Party Payments,425040,Rendered by Voluntary Organisations,02-Aug-2012,2477994-17304,"3,011.34",TEAM FOSTERING.
Children and Young Peoples Services,CYPS - Local Authority,Transport,230007,Contract Hire,02-Aug-2012,2478002-64200,"1,874.25",TGM GROUP LTD T/A CLASSIC COACHES (CONTINENTAL) LTD.
Children and Young Peoples Services,CYPS - Local Authority,Transport,230005,Contract Hire,02-Aug-2012,2478019-507,"1,848.00",TONYS TAXIS (A BIRCH).
Children and Young Peoples Services,CYPS - Local Authority,Transport,230007,Contract Hire,02-Aug-2012,2478045-45-J2012,930.00,WALTONS TAXIS.
Children and Young Peoples Services,CYPS - Local Authority,Transport,230007,Contract Hire,02-Aug-2012,2478048-000488,"1,401.75",WATSON OF SPENNYMOOR.
Children and Young Peoples Services,CYPS - Local Authority,Transport,230007,Contract Hire,02-Aug-2012,2478049-DURJOH/JULY/121,"3,892.00",WEARDALE MOTOR SERVICES LTD.
Children and Young Peoples Services,CYPS - Local Authority,Transport,230007,Contract Hire,02-Aug-2012,2478049-DURJOH/JULY/122,"1,946.00",WEARDALE MOTOR SERVICES LTD.
Children and Young Peoples Services,CYPS - Local Authority,Transport,230007,Contract Hire,02-Aug-2012,2478049-PH/JULY/12,"3,083.85",WEARDALE MOTOR SERVICES LTD.
Children and Young Peoples Services,CYPS - Local Authority,Transport,230007,Contract Hire,02-Aug-2012,2478050-4118,824.55,WEARDALE PRIVATE HIRE.
Children and Young Peoples Services,CYPS - Local Authority,Transport,230007,Contract Hire,02-Aug-2012,2478058-02/02/12-7,545.00,WOLSINGHAM TAXIS.
Children and Young Peoples Services,Dedicated Schools Grant,Transport,230007,Contract Hire,02-Aug-2012,2477573-133,600.00,CENTRAL TAXIS (PETERLEE) LTD.
Corporate Resources,ICT Services incl. Design and Print,Stock,926900,Stock in hand-Inventory system,02-Aug-2012,2477642-7401946108,865.06,DELL COMPUTER CORPORATION LTD.
Corporate Resources,ICT Services incl. Design and Print,Stock,926900,Stock in hand-Inventory system,02-Aug-2012,2477643-7401947453,"2,509.64",DELL COMPUTER CORPORATION LTD.
Corporate Resources,ICT Services incl. Design and Print,Stock,926900,Stock in hand-Inventory system,02-Aug-2012,2477643-7401947732,"1,663.40",DELL COMPUTER CORPORATION LTD.
Corporate Resources,ICT Services incl. Design and Print,Stock,926900,Stock in hand-Inventory system,02-Aug-2012,2477643-7401948561,"2,595.18",DELL COMPUTER CORPORATION LTD.
Corporate Resources,ICT Services incl. Design and Print,Stock,926900,Stock in hand-Inventory system,02-Aug-2012,2477643-7401948887,"2,162.65",DELL COMPUTER CORPORATION LTD.
Corporate Resources,ICT Services incl. Design and Print,Stock,926900,Stock in hand-Inventory system,02-Aug-2012,2477643-7401949187,"2,509.64",DELL COMPUTER CORPORATION LTD.
Corporate Resources,ICT Services incl. Design and Print,Supplies and Services,332029,"Printing, Stationery and Gen Off Exps",02-Aug-2012,2477649-62936,659.00,DESIGN X PRESS LTD.
Neighbourhood Services,Direct Services,Stock,926900,Stock in hand-Inventory system,02-Aug-2012,2477460-LLI256250,661.36,A THOMPSON & SONS LTD.
Neighbourhood Services,Direct Services,Stock,926900,Stock in hand-Inventory system,02-Aug-2012,2477461-LLI255190,"1,113.80",A THOMPSON & SONS LTD.
Neighbourhood Services,Direct Services,Third Party Payments,430100,Rendered by Private Contractors,02-Aug-2012,2477503-201274,720.00,ASTBURY CONTRACTS.
Neighbourhood Services,Direct Services,Stock,926900,Stock in hand-Inventory system,02-Aug-2012,2477510-INV070623,"1,113.55",AZTEC CHEMICALS LTD.
Neighbourhood Services,Direct Services,Supplies and Services,304259,Equipment and Materials,02-Aug-2012,2477515-94753211,"2,734.41",BALL COLEGRAVE LTD.
Neighbourhood Services,Direct Services,Supplies and Services,304221,Equipment and Materials,02-Aug-2012,2477523-B83843,601.80,BIDDLE AIR SYSTEMS LTD.
Neighbourhood Services,Direct Services,Supplies and Services,324117,Provisions,02-Aug-2012,2477538-5878429,909.84,BRAMBLES FOODS LTD.
Neighbourhood Services,Direct Services,Supplies and Services,304221,Equipment and Materials,02-Aug-2012,2477548-1650/0105515,686.54,BSS GROUP PLC.
Neighbourhood Services,Direct Services,Supplies and Services,304221,Equipment and Materials,02-Aug-2012,2477548-1650/0109486,"1,044.35",BSS GROUP PLC.
Neighbourhood Services,Direct Services,Supplies and Services,304221,Equipment and Materials,02-Aug-2012,2477548-1650/0116747,751.54,BSS GROUP PLC.
Neighbourhood Services,Direct Services,Supplies and Services,304221,Equipment and Materials,02-Aug-2012,2477549-1650/0894182,"1,457.28",BSS GROUP PLC.
Neighbourhood Services,Direct Services,Supplies and Services,304221,Equipment and Materials,02-Aug-2012,2477549-1650/0894183,"1,012.59",BSS GROUP PLC.
Neighbourhood Services,Direct Services,Stock,926900,Stock in hand-Inventory system,02-Aug-2012,2477621-9950/01490192,"1,330.60",CTD.
Neighbourhood Services,Direct Services,Supplies and Services,304221,Equipment and Materials,02-Aug-2012,2477646-RENTAL1/7/12,"1,500.00",DENEWOOD DEVELOPMENTS LTD.
Neighbourhood Services,Direct Services,Stock,926900,Stock in hand-Inventory system,02-Aug-2012,2477712-06/418709,639.22,GREENHAM TRADING LTD.
Neighbourhood Services,Direct Services,Stock,926900,Stock in hand-Inventory system,02-Aug-2012,2477712-06/419901,984.40,GREENHAM TRADING LTD.
Neighbourhood Services,Direct Services,Stock,926900,Stock in hand-Inventory system,02-Aug-2012,2477712-06/420545,"1,151.23",GREENHAM TRADING LTD.
Neighbourhood Services,Direct Services,Stock,926900,Stock in hand-Inventory system,02-Aug-2012,2477762-00000339,580.00,JP MATERIALS & PLANT HIRE LTD.
Neighbourhood Services,Direct Services,Supplies and Services,324117,Provisions,02-Aug-2012,2477763-L39374,"1,876.44",JR HOLLAND FOOD SERVICES LTD.
Neighbourhood Services,Direct Services,Supplies and Services,304357,Equipment and Materials,02-Aug-2012,2477771-6125,608.00,LAE VEHICLE RENTAL LTD.
Neighbourhood Services,Direct Services,Supplies and Services,304221,Equipment and Materials,02-Aug-2012,2477887-4120/135313,972.88,PLUMBING TRADE SUPPLIES LTD.
Neighbourhood Services,Direct Services,Supplies and Services,304221,Equipment and Materials,02-Aug-2012,2477887-4120/135319,670.83,PLUMBING TRADE SUPPLIES LTD.
Neighbourhood Services,Direct Services,Supplies and Services,304221,Equipment and Materials,02-Aug-2012,2477913-2534,525.00,RINGLAND SCAFFOLDING.
Neighbourhood Services,Direct Services,Third Party Payments,430100,Rendered by Private Contractors,02-Aug-2012,2477943-104833,"2,517.00",SERVICE 2000 COMMERCIAL LTD.
Neighbourhood Services,Direct Services,Stock,926900,Stock in hand-Inventory system,02-Aug-2012,2477953-58099,"2,615.40",SIMMONSIGNS LTD.
Neighbourhood Services,Direct Services,Stock,926900,Stock in hand-Inventory system,02-Aug-2012,2477966-7006456433,"1,160.00",SPEEDY ASSET SERVICES LTD.
Neighbourhood Services,Direct Services,Third Party Payments,430105,Rendered by Private Contractors,02-Aug-2012,2477979-042119,"1,694.50",STONEGRAVE AGGREGATES LTD.
Neighbourhood Services,Direct Services,Third Party Payments,430105,Rendered by Private Contractors,02-Aug-2012,2477979-042164,"1,529.50",STONEGRAVE AGGREGATES LTD.
Neighbourhood Services,Direct Services,Stock,926900,Stock in hand-Inventory system,02-Aug-2012,2478010-N/IN77960,"2,969.22",THOMAS OWEN & SONS (NEWCASTLE) LTD.
Neighbourhood Services,Direct Services,Stock,926900,Stock in hand-Inventory system,02-Aug-2012,2478024-INV14453,537.40,TRENT CASTINGS LTD.
Neighbourhood Services,Direct Services,"Vehicles, Equipment, Furniture and Fittings",912529,Purchase-equipment,02-Aug-2012,2478026-IN092521,"1,330.00",TRISCAN SYSTEMS LTD.
Neighbourhood Services,Direct Services,Supplies and Services,304252,Equipment and Materials,02-Aug-2012,2478026-IN094401,"2,920.00",TRISCAN SYSTEMS LTD.
Neighbourhood Services,Direct Services,Supplies and Services,304252,Equipment and Materials,02-Aug-2012,2478026-S084762,"4,960.00",TRISCAN SYSTEMS LTD.
Neighbourhood Services,Direct Services,Stock,926900,Stock in hand-Inventory system,02-Aug-2012,2478046-14381,944.00,WARD TIMBER LTD.
Neighbourhood Services,Projects and Business services,Third Party Payments,430103,Rendered by Private Contractors,02-Aug-2012,2477611-RCC1,"2,765.94",COUNTY DURHAM FURNITURE HELP SCHEME.
Neighbourhood Services,Projects and Business services,Third Party Payments,430105,Rendered by Private Contractors,02-Aug-2012,2477979-042774,"1,130.47",STONEGRAVE AGGREGATES LTD.
Neighbourhood Services,Projects and Business services,Third Party Payments,430105,Rendered by Private Contractors,02-Aug-2012,2477979-042777,"1,558.81",STONEGRAVE AGGREGATES LTD.
Neighbourhood Services,Sport & Leisure,Supplies and Services,336005,Advertising,02-Aug-2012,2477511-46162,613.00,AZTEC COLOUR PRINT NORTH EAST LTD.
Neighbourhood Services,Sport & Leisure,Supplies and Services,384199,Miscellaneous Expenses,02-Aug-2012,2477610-509,"5,086.00",COUNTY DURHAM EMS.
Neighbourhood Services,Sport & Leisure,Supplies and Services,384199,Miscellaneous Expenses,02-Aug-2012,2477749-S4116,"6,303.25",JEFF DOBSON MARQUEE HIRE.
Neighbourhood Services,Sport & Leisure,Supplies and Services,304259,Equipment and Materials,02-Aug-2012,2477761-613489,651.01,JP LENNARD LTD.
Neighbourhood Services,Sport & Leisure,Supplies and Services,304337,Equipment and Materials,02-Aug-2012,2478016-4524,970.78,TOGGSHOP.
Neighbourhood Services,Technical Services,Supplies and Services,304221,Equipment and Materials,02-Aug-2012,2477479-16723817,"2,264.20",AGGREGATE INDUSTRIES UK LTD.
Neighbourhood Services,Technical Services,Supplies and Services,304221,Equipment and Materials,02-Aug-2012,2477479-16729504,591.50,AGGREGATE INDUSTRIES UK LTD.
Neighbourhood Services,Technical Services,Supplies and Services,304221,Equipment and Materials,02-Aug-2012,2477479-16735431,512.47,AGGREGATE INDUSTRIES UK LTD.
Neighbourhood Services,Technical Services,Supplies and Services,304221,Equipment and Materials,02-Aug-2012,2477546-INV095890,"1,224.40",BROXAP LTD.
Neighbourhood Services,Technical Services,Supplies and Services,304221,Equipment and Materials,02-Aug-2012,2477546-INV097048,"2,289.00",BROXAP LTD.
Neighbourhood Services,Technical Services,Supplies and Services,304221,Equipment and Materials,02-Aug-2012,2477571-3005327250,"2,071.54",CEMEX UK MATERIALS LTD.
Neighbourhood Services,Technical Services,Supplies and Services,304221,Equipment and Materials,02-Aug-2012,2477571-3005331832,887.29,CEMEX UK MATERIALS LTD.
Neighbourhood Services,Technical Services,Supplies and Services,304221,Equipment and Materials,02-Aug-2012,2477571-3005348746,"1,791.34",CEMEX UK MATERIALS LTD.
Neighbourhood Services,Technical Services,Supplies and Services,304221,Equipment and Materials,02-Aug-2012,2477571-3005348747,554.90,CEMEX UK MATERIALS LTD.
Neighbourhood Services,Technical Services,Supplies and Services,304221,Equipment and Materials,02-Aug-2012,2477574-OP/I012161,566.00,CENTREWIRE LTD.
Neighbourhood Services,Technical Services,Supplies and Services,304358,Equipment and Materials,02-Aug-2012,2477743-5304058,614.40,JA GILSON (AGRICULTURAL CONTRACTORS) LTD.
Neighbourhood Services,Technical Services,Supplies and Services,304358,Equipment and Materials,02-Aug-2012,2477743-5304069,646.40,JA GILSON (AGRICULTURAL CONTRACTORS) LTD.
Neighbourhood Services,Technical Services,Supplies and Services,304358,Equipment and Materials,02-Aug-2012,2477743-5304078,998.40,JA GILSON (AGRICULTURAL CONTRACTORS) LTD.
Neighbourhood Services,Technical Services,Supplies and Services,304358,Equipment and Materials,02-Aug-2012,2477743-5304079,998.40,JA GILSON (AGRICULTURAL CONTRACTORS) LTD.
Neighbourhood Services,Technical Services,Supplies and Services,304358,Equipment and Materials,02-Aug-2012,2477743-5304080,998.40,JA GILSON (AGRICULTURAL CONTRACTORS) LTD.
Neighbourhood Services,Technical Services,Supplies and Services,304358,Equipment and Materials,02-Aug-2012,2477757-12025,960.80,JOHN R BUTTERFIELD LTD.
Neighbourhood Services,Technical Services,Supplies and Services,304358,Equipment and Materials,02-Aug-2012,2477789-650,"4,258.80",M & E & MR WALTON.
Neighbourhood Services,Technical Services,Third Party Payments,430100,Rendered by Private Contractors,02-Aug-2012,2477857-DI20U6012,997.11,NORTHERN POWERGRID (NORTHEAST) LTD..
Neighbourhood Services,Technical Services,Supplies and Services,304358,Equipment and Materials,02-Aug-2012,2477945-2012069,640.00,SHIREHAVEN LTD.
Neighbourhood Services,Technical Services,Supplies and Services,304358,Equipment and Materials,02-Aug-2012,2477945-2012072,"1,344.00",SHIREHAVEN LTD.
Neighbourhood Services,Technical Services,Supplies and Services,304358,Equipment and Materials,02-Aug-2012,2478000-4227,"1,780.00",TEWARD BROS LTD.
Neighbourhood Services,Technical Services,Supplies and Services,304358,Equipment and Materials,02-Aug-2012,2478015-094,"2,643.80",TN WILSON.
Neighbourhood Services,Technical Services,Supplies and Services,304358,Equipment and Materials,02-Aug-2012,2478043-33822,"1,121.25",W MARLEY AGRICULTURAL CONTRACTORS LTD.
Neighbourhood Services,Technical Services,Supplies and Services,304358,Equipment and Materials,02-Aug-2012,2478063-2661,740.00,YOULL CONSTRUCTION LTD.
Neighbourhood Services,Technical Services,Supplies and Services,304358,Equipment and Materials,02-Aug-2012,2478063-2662,740.00,YOULL CONSTRUCTION LTD.
Neighbourhood Services,Technical Services,Supplies and Services,304358,Equipment and Materials,02-Aug-2012,2478063-2663,818.75,YOULL CONSTRUCTION LTD.
Neighbourhood Services,Technical Services,Supplies and Services,304358,Equipment and Materials,02-Aug-2012,2478063-2664,740.00,YOULL CONSTRUCTION LTD.
Neighbourhood Services,Technical Services,Supplies and Services,304358,Equipment and Materials,02-Aug-2012,2478063-2665,661.25,YOULL CONSTRUCTION LTD.
RED HRA,East Durham Homes - HRA Rent Control Account,Supplies and Services,384999,Miscellaneous Expenses,02-Aug-2012,2477820-RR,870.15,REDACTED - PAYMENT TO INDIVIDUAL
RED HRA,East Durham Homes - HRA Rent Control Account,Supplies and Services,384999,Miscellaneous Expenses,02-Aug-2012,2477832-R1024743009,607.38,REDACTED - PAYMENT TO INDIVIDUAL
RED HRA,Housing Revenue Account,Premises,105013,HRA Repair & Maintenance,02-Aug-2012,2477644-147990,"3,341.91",DELTA ELECTRICAL & MECHANICAL SERVICES.
RED HRA,HRA Capital,Construction Work,908105,Construction work,02-Aug-2012,2477644-147992,"26,949.92",DELTA ELECTRICAL & MECHANICAL SERVICES.
RED HRA,HRA Capital,Construction Work,908105,Construction work,02-Aug-2012,2477672-146511,"5,497.20",EDMUNDSON ELECTRICAL LTD.
RED HRA,HRA Capital,Construction Work,908105,Construction work,02-Aug-2012,2477672-146514,"4,871.76",EDMUNDSON ELECTRICAL LTD.
RED HRA,HRA Capital,Construction Work,908105,Construction work,02-Aug-2012,2477672-147977,"23,495.64",EDMUNDSON ELECTRICAL LTD.
RED HRA,HRA Capital,Construction Work,908105,Construction work,02-Aug-2012,2477672-148522,721.79,EDMUNDSON ELECTRICAL LTD.
RED HRA,HRA Capital,Fees,901002,Professional Fees,02-Aug-2012,2477679-ED/05/12/18,"2,406.25",ELLIOTT DENT LTD.
Regeneration & Economic Development,Economic Development and Housing,Construction Work,908105,Construction work,02-Aug-2012,2477477-60216682-65,"3,947.83",AECOM LTD.
Regeneration & Economic Development,Economic Development and Housing,Supplies and Services,338066,Services,02-Aug-2012,2477512-10418,"4,250.00",B SUPPLIED LTD.
Regeneration & Economic Development,Economic Development and Housing,Construction Work,908105,Construction work,02-Aug-2012,2477514-5090394/17,"412,379.18",BALFOUR BEATTY CIVIL ENGINEERING LTD.
Regeneration & Economic Development,Economic Development and Housing,Supplies and Services,384700,Miscellaneous Expenses,02-Aug-2012,2477518-YR1CW-BH,"1,425.60",BEAUMONT CHATEAU LTD.
Regeneration & Economic Development,Economic Development and Housing,Fees,901002,Professional Fees,02-Aug-2012,2477725-HR27603,"2,314.00",HENRY RILEY T/A RILEY CONSULTING.
Regeneration & Economic Development,Economic Development and Housing,Supplies and Services,384700,Miscellaneous Expenses,02-Aug-2012,2477782-WS-JA,"1,314.54",LINDEN GROUP LTD.
Regeneration & Economic Development,Economic Development and Housing,Supplies and Services,384700,Miscellaneous Expenses,02-Aug-2012,2477782-YR1CONT-WS,"1,309.54",LINDEN GROUP LTD.
Regeneration & Economic Development,Economic Development and Housing,Supplies and Services,340001,Postages,02-Aug-2012,2477845-415291-147,800.00,NEOPOST LTD CREDIFON RCB ACCOUNT.
Regeneration & Economic Development,Economic Development and Housing,Premises,106099,Centrally Controlled Rep and Maint,02-Aug-2012,2477931-34037,690.30,SAFEGUARD SECURITY SERVICES (NORTHERN) LTD.
Regeneration & Economic Development,Economic Development and Housing,Fees,901002,Professional Fees,02-Aug-2012,2478055-B20101/28-213,"2,020.00",WILKINSON COWAN PARTNERSHIP LTD.
Regeneration & Economic Development,Housing General Fund,Cap Exp on Grants & Other Financial Assistance (REFCUS),918401,Capital grants,02-Aug-2012,2478013-SIP-119267,"4,191.00",THYSSENKRUPP ENCASA LTD.
Regeneration & Economic Development,Housing General Fund,Cap Exp on Grants & Other Financial Assistance (REFCUS),918401,Capital grants,02-Aug-2012,2478013-SIP-119298,"3,265.00",THYSSENKRUPP ENCASA LTD.
Regeneration & Economic Development,Housing General Fund,Cap Exp on Grants & Other Financial Assistance (REFCUS),918401,Capital grants,02-Aug-2012,2478013-SIP-119365,"3,586.00",THYSSENKRUPP ENCASA LTD.
Regeneration & Economic Development,"Spatial Policy, Planning, Assets & Environment",Supplies and Services,338027,Services,02-Aug-2012,2477477-60155102-82,"1,674.00",AECOM LTD.
Regeneration & Economic Development,"Spatial Policy, Planning, Assets & Environment",Supplies and Services,312009,"Newspapers, Books and Periodicals",02-Aug-2012,2477722-0008997328,"2,450.00",HAYMARKET MEDIA GROUP.
Regeneration & Economic Development,"Spatial Policy, Planning, Assets & Environment",Supplies and Services,338027,Services,02-Aug-2012,2477924-6/6/12B,"4,633.20",RS DRUMMOND HAY.
Regeneration & Economic Development,Transport,Employees,080025,Agency Staff,02-Aug-2012,2477478-60216682-62,"2,655.75",AECOM LTD.
Regeneration & Economic Development,Transport,Employees,080025,Agency Staff,02-Aug-2012,2477478-60216682-66,"1,329.00",AECOM LTD.
Regeneration & Economic Development,Transport,Other Expenses,914001,Other capital expenses,02-Aug-2012,2477613-INS-B-S,"1,830.28",COUPE LINE LTD.
Regeneration & Economic Development,Transport,Other Expenses,914001,Other capital expenses,02-Aug-2012,2477613-INS-V-L,715.68,COUPE LINE LTD.
Regeneration & Economic Development,Transport,Supplies and Services,328041,"Clothing, Uniforms and Laundry",02-Aug-2012,2477783-D218,734.74,LINKHILL MARKETING LTD T/A JOHN MARKS.
Adults Wellbeing and Health,Commissioning inc Supporting People,Supplies and Services,384199,Miscellaneous Expenses,03-Aug-2012,2478235-0040,643.35,NORTH EXHIBITION SERVICES LTD.
Adults Wellbeing and Health,Commissioning inc Supporting People,Premises,108099,Service Repairs and Maintenance,03-Aug-2012,2478130-65224,994.00,DISCOUNT FURNITURE.
Adults Wellbeing and Health,Commissioning inc Supporting People,Third Party Payments,479111,Purchase of Care,03-Aug-2012,2478280-9,"11,994.75",VISUAL IMPAIRMENT PROBLEM SOLVING.
Adults Wellbeing and Health,Commissioning inc Supporting People,Third Party Payments,473111,Purchase of Care,03-Aug-2012,2478129-082/12/1201,"35,810.00",DISC LTD.
Adults Wellbeing and Health,Head of Adults,Summary reporting level,720033,Fees and Charges,03-Aug-2012,2478228-R,"1,022.64",REDACTED - PAYMENT TO INDIVIDUAL
Adults Wellbeing and Health,Head of Adults,Summary reporting level,720047,Fees and Charges,03-Aug-2012,2478127-RF,"1,577.35",REDACTED - PAYMENT TO INDIVIDUAL
Adults Wellbeing and Health,Head of Adults,Third Party Payments,470101,Purchase of Care,03-Aug-2012,2478197-29/06/2012,728.65,KINDSTREAM CARE LTD.
Adults Wellbeing and Health,Head of Adults,Third Party Payments,472101,Purchase of Care,03-Aug-2012,2478212-NEC141/11,606.94,MOMENTUM SCOTLAND LTD.
Assistant Chief Executive,Partnerships & Community Engagement Div.,Supplies and Services,384086,Miscellaneous Expenses,03-Aug-2012,2478138-12NB-EDUR015/018,"19,300.00",EAST DURHAM CITIZENS ADVICE BUREAU.
Assistant Chief Executive,Partnerships & Community Engagement Div.,Supplies and Services,384700,Miscellaneous Expenses,03-Aug-2012,2478139-KS,"4,500.00",EAST STANLEY ALLOTMENT ASSOCIATION.
Assistant Chief Executive,Partnerships & Community Engagement Div.,Transfer Payments,525030,Other,03-Aug-2012,2478261-W003-AB10,"5,000.00",SOUTH DURHAM ENTERPRISE AGENCY LTD.
Children and Young Peoples Services,CYPS - Local Authority,Transport,230007,Contract Hire,03-Aug-2012,2478069-B17/S,"1,207.50",AABAT TAXIS.
Children and Young Peoples Services,CYPS - Local Authority,Transport,230007,Contract Hire,03-Aug-2012,2478069-B28/S,"1,475.00",AABAT TAXIS.
Children and Young Peoples Services,CYPS - Local Authority,Transport,230007,Contract Hire,03-Aug-2012,2478070-47,690.00,ABLE NOVAK TAXIS.
Children and Young Peoples Services,CYPS - Local Authority,Transport,230007,Contract Hire,03-Aug-2012,2478070-48,"1,200.00",ABLE NOVAK TAXIS.
Children and Young Peoples Services,CYPS - Local Authority,Transfer Payments,510032,School Children,03-Aug-2012,2478085-DFE2YRO/S2012,902.10,BISHOP AUCKLAND COLLEGE NURSERY.
Children and Young Peoples Services,CYPS - Local Authority,Transport,230007,Contract Hire,03-Aug-2012,2478086-0077,"1,308.30",BOBBY DOVE.
Children and Young Peoples Services,CYPS - Local Authority,Transport,230007,Contract Hire,03-Aug-2012,2478086-0078,"1,050.00",BOBBY DOVE.
Children and Young Peoples Services,CYPS - Local Authority,Transport,230007,Contract Hire,03-Aug-2012,2478095-PS0017,669.20,BURNDALE TAXIS.
Children and Young Peoples Services,CYPS - Local Authority,Transfer Payments,510032,School Children,03-Aug-2012,2478097-DFE-S2012,"1,207.65",BUTTERCUP NURSERIES LTD.
Children and Young Peoples Services,CYPS - Local Authority,Transfer Payments,510032,School Children,03-Aug-2012,2478097-DFE-S2012-P,931.20,BUTTERCUP NURSERIES LTD.
Children and Young Peoples Services,CYPS - Local Authority,Transport,230007,Contract Hire,03-Aug-2012,2478109-MD005,"1,218.00",CHIPPERS TAXIS.
Children and Young Peoples Services,CYPS - Local Authority,Transport,230007,Contract Hire,03-Aug-2012,2478114-43373,"2,660.00",CJ GRIERSON.
Children and Young Peoples Services,CYPS - Local Authority,Transport,230007,Contract Hire,03-Aug-2012,2478114-43374,"1,744.40",CJ GRIERSON.
Children and Young Peoples Services,CYPS - Local Authority,Transport,230007,Contract Hire,03-Aug-2012,2478116-C/7120,"3,779.58",COCHRANES T/A KELVIN TRAVEL.
Children and Young Peoples Services,CYPS - Local Authority,Transport,230007,Contract Hire,03-Aug-2012,2478116-C/7121,"1,680.00",COCHRANES T/A KELVIN TRAVEL.
Children and Young Peoples Services,CYPS - Local Authority,Transport,230007,Contract Hire,03-Aug-2012,2478117-12,"1,125.00",COLIN E GLEAVE.
Children and Young Peoples Services,CYPS - Local Authority,Transport,230007,Contract Hire,03-Aug-2012,2478119-051,"1,370.55",CONNORS MINI BUSES.
Children and Young Peoples Services,CYPS - Local Authority,Transport,230007,Contract Hire,03-Aug-2012,2478119-052,"1,246.65",CONNORS MINI BUSES.
Children and Young Peoples Services,CYPS - Local Authority,Transport,230007,Contract Hire,03-Aug-2012,2478119-053,"1,083.30",CONNORS MINI BUSES.
Children and Young Peoples Services,CYPS - Local Authority,Transport,230007,Contract Hire,03-Aug-2012,2478119-054,"1,426.05",CONNORS MINI BUSES.
Children and Young Peoples Services,CYPS - Local Authority,Transport,230007,Contract Hire,03-Aug-2012,2478119-055,"1,105.20",CONNORS MINI BUSES.
Children and Young Peoples Services,CYPS - Local Authority,Transport,230005,Contract Hire,03-Aug-2012,2478123-3512,"1,033.60",CROFT BUSINESS SERVICES (UK) LTD T/A CROFT TAXIS.
Children and Young Peoples Services,CYPS - Local Authority,Transport,230007,Contract Hire,03-Aug-2012,2478125-1201,"1,125.00",DA TAXIS.
Children and Young Peoples Services,CYPS - Local Authority,Transport,230007,Contract Hire,03-Aug-2012,2478125-1202,"1,050.00",DA TAXIS.
Children and Young Peoples Services,CYPS - Local Authority,Transport,230007,Contract Hire,03-Aug-2012,2478125-1204,"1,350.00",DA TAXIS.
Children and Young Peoples Services,CYPS - Local Authority,Transport,230007,Contract Hire,03-Aug-2012,2478126-15,"1,050.00",DAVES TAXIS.
Children and Young Peoples Services,CYPS - Local Authority,Transport,230007,Contract Hire,03-Aug-2012,2478133-A1202/11,"2,255.55",DMG PRIVATE HIRE.
Children and Young Peoples Services,CYPS - Local Authority,Transport,230007,Contract Hire,03-Aug-2012,2478133-A1202/12,"2,043.30",DMG PRIVATE HIRE.
Children and Young Peoples Services,CYPS - Local Authority,Transport,230007,Contract Hire,03-Aug-2012,2478141-5975/0712,622.50,ELLIOTTS OF TRIMDON.
Children and Young Peoples Services,CYPS - Local Authority,Transport,230007,Contract Hire,03-Aug-2012,2478141-E009/0712,"1,104.66",ELLIOTTS OF TRIMDON.
Children and Young Peoples Services,CYPS - Local Authority,Transport,230007,Contract Hire,03-Aug-2012,2478142-0500,"1,949.08",EN ROUTE TRAVEL.
Children and Young Peoples Services,CYPS - Local Authority,Transport,230007,Contract Hire,03-Aug-2012,2478142-0501,"1,190.00",EN ROUTE TRAVEL.
Children and Young Peoples Services,CYPS - Local Authority,Third Party Payments,425040,Rendered by Voluntary Organisations,03-Aug-2012,2478149-FC010516,980.00,FOSTER CARES LTD.
Children and Young Peoples Services,CYPS - Local Authority,Third Party Payments,425040,Rendered by Voluntary Organisations,03-Aug-2012,2478149-FC010517,760.00,FOSTER CARES LTD.
Children and Young Peoples Services,CYPS - Local Authority,Transport,230007,Contract Hire,03-Aug-2012,2478153-7260/011-31/7/12,610.54,G & I PRIVATE HIRE LTD.
Children and Young Peoples Services,CYPS - Local Authority,Transport,230007,Contract Hire,03-Aug-2012,2478154-14593,"3,570.00",GARNETTS LTD (COACHES).
Children and Young Peoples Services,CYPS - Local Authority,Transport,230007,Contract Hire,03-Aug-2012,2478154-14594,"2,320.65",GARNETTS LTD (COACHES).
Children and Young Peoples Services,CYPS - Local Authority,Transport,230007,Contract Hire,03-Aug-2012,2478154-14596,"2,320.65",GARNETTS LTD (COACHES).
Children and Young Peoples Services,CYPS - Local Authority,Transport,230007,Contract Hire,03-Aug-2012,2478154-14598,"10,305.00",GARNETTS LTD (COACHES).
Children and Young Peoples Services,CYPS - Local Authority,Transport,230007,Contract Hire,03-Aug-2012,2478154-14599,"2,242.80",GARNETTS LTD (COACHES).
Children and Young Peoples Services,CYPS - Local Authority,Transport,230007,Contract Hire,03-Aug-2012,2478154-14600,"6,968.70",GARNETTS LTD (COACHES).
Children and Young Peoples Services,CYPS - Local Authority,Transport,230007,Contract Hire,03-Aug-2012,2478154-14601,"2,626.50",GARNETTS LTD (COACHES).
Children and Young Peoples Services,CYPS - Local Authority,Transport,230007,Contract Hire,03-Aug-2012,2478154-14603,"5,204.22",GARNETTS LTD (COACHES).
Children and Young Peoples Services,CYPS - Local Authority,Transport,230007,Contract Hire,03-Aug-2012,2478154-14604,"2,385.00",GARNETTS LTD (COACHES).
Children and Young Peoples Services,CYPS - Local Authority,Transport,230007,Contract Hire,03-Aug-2012,2478155-622,799.54,GEM TRAVEL.
Children and Young Peoples Services,CYPS - Local Authority,Transport,230007,Contract Hire,03-Aug-2012,2478156-103907,750.00,GEORDIES TAXIS.
Children and Young Peoples Services,CYPS - Local Authority,Transport,230007,Contract Hire,03-Aug-2012,2478159-022/W119JUL12,"1,020.00",GMC TAXIS NORTH EAST.
Children and Young Peoples Services,CYPS - Local Authority,Transport,230007,Contract Hire,03-Aug-2012,2478159-030,900.00,GMC TAXIS NORTH EAST.
Children and Young Peoples Services,CYPS - Local Authority,Transport,230007,Contract Hire,03-Aug-2012,2478160-88V,"1,189.20",GRAHAMS MOTOR SERVICES.
Children and Young Peoples Services,CYPS - Local Authority,Transport,230007,Contract Hire,03-Aug-2012,2478162-7929,"1,178.10",GREENCROFT MINI COACHES.
Children and Young Peoples Services,CYPS - Local Authority,Transport,230007,Contract Hire,03-Aug-2012,2478162-7931,"1,066.65",GREENCROFT MINI COACHES.
Children and Young Peoples Services,CYPS - Local Authority,Transport,230007,Contract Hire,03-Aug-2012,2478169-008442,525.00,HODGSONS COACH OPERATORS LTD.
Children and Young Peoples Services,CYPS - Local Authority,Transport,230007,Contract Hire,03-Aug-2012,2478169-008443,780.00,HODGSONS COACH OPERATORS LTD.
Children and Young Peoples Services,CYPS - Local Authority,Transport,230007,Contract Hire,03-Aug-2012,2478169-008444,"1,920.30",HODGSONS COACH OPERATORS LTD.
Children and Young Peoples Services,CYPS - Local Authority,Transport,230007,Contract Hire,03-Aug-2012,2478169-008446,"2,265.00",HODGSONS COACH OPERATORS LTD.
Children and Young Peoples Services,CYPS - Local Authority,Transport,230007,Contract Hire,03-Aug-2012,2478174-021,"1,200.00",I CLYDESDALE T/A BURNOPFIELD TAXIS.
Children and Young Peoples Services,CYPS - Local Authority,Transport,230007,Contract Hire,03-Aug-2012,2478174-022-31/7/12,"1,370.55",I CLYDESDALE T/A BURNOPFIELD TAXIS.
Children and Young Peoples Services,CYPS - Local Authority,Transport,230007,Contract Hire,03-Aug-2012,2478174-023-31/7/12,"1,200.00",I CLYDESDALE T/A BURNOPFIELD TAXIS.
Children and Young Peoples Services,CYPS - Local Authority,Transport,230007,Contract Hire,03-Aug-2012,2478179-118,900.00,JACKSONS TAXIS LTD .
Children and Young Peoples Services,CYPS - Local Authority,Transport,230007,Contract Hire,03-Aug-2012,2478180-2021,"1,492.35",JEFF ANDERSON COACHES LTD.
Children and Young Peoples Services,CYPS - Local Authority,Transport,230007,Contract Hire,03-Aug-2012,2478182-5/3236JUL12,750.00,JK TAXIS.
Children and Young Peoples Services,CYPS - Local Authority,Transport,230007,Contract Hire,03-Aug-2012,2478183-6A,990.00,JL EBDON.
Children and Young Peoples Services,CYPS - Local Authority,Transport,230007,Contract Hire,03-Aug-2012,2478183-6C,750.00,JL EBDON.
Children and Young Peoples Services,CYPS - Local Authority,Transport,230007,Contract Hire,03-Aug-2012,2478183-6E,750.00,JL EBDON.
Children and Young Peoples Services,CYPS - Local Authority,Transport,230007,Contract Hire,03-Aug-2012,2478183-6F,930.00,JL EBDON.
Children and Young Peoples Services,CYPS - Local Authority,Transport,230007,Contract Hire,03-Aug-2012,2478184-2012/23,"1,099.95",JM HUMBLE COACH HIRE.
Children and Young Peoples Services,CYPS - Local Authority,Transport,230007,Contract Hire,03-Aug-2012,2478185-7,585.00,JOHN RIDLEY.
Children and Young Peoples Services,CYPS - Local Authority,Transport,230007,Contract Hire,03-Aug-2012,2478186-SJ49,"1,015.98",JOVIAL PRIVATE HIRE.
Children and Young Peoples Services,CYPS - Local Authority,Supplies and Services,364320,Grants to Voluntary Organisations,03-Aug-2012,2478208-HT/C,500.00,MICHAEL BAULCH T/A KEYLINE PROPERTY.
Children and Young Peoples Services,CYPS - Local Authority,Transport,230007,Contract Hire,03-Aug-2012,2478214-2,"1,526.42",MR D KEMP T/A ACE EXECUTIVE.
Children and Young Peoples Services,CYPS - Local Authority,Transport,230007,Contract Hire,03-Aug-2012,2478214-3-22/7/12,"1,800.00",MR D KEMP T/A ACE EXECUTIVE.
Children and Young Peoples Services,CYPS - Local Authority,Transport,230007,Contract Hire,03-Aug-2012,2478215-228-30/6/12,"2,071.36",MR E PEVERLEY.
Children and Young Peoples Services,CYPS - Local Authority,Transport,230007,Contract Hire,03-Aug-2012,2478215-228-31/7/12,"1,812.44",MR E PEVERLEY.
Children and Young Peoples Services,CYPS - Local Authority,Transport,230007,Contract Hire,03-Aug-2012,2478216-64,"1,603.56",MR GN ROBBINS.
Children and Young Peoples Services,CYPS - Local Authority,Transport,230007,Contract Hire,03-Aug-2012,2478216-65,"1,045.10",MR GN ROBBINS.
Children and Young Peoples Services,CYPS - Local Authority,Transport,230007,Contract Hire,03-Aug-2012,2478217-3-20/7/12,600.00,MR GS ANDERSON.
Children and Young Peoples Services,CYPS - Local Authority,Transport,230007,Contract Hire,03-Aug-2012,2478223-0031,"1,305.00",MR P CAHILL.
Children and Young Peoples Services,CYPS - Local Authority,Transport,230007,Contract Hire,03-Aug-2012,2478223-0033,"2,395.54",MR P CAHILL.
Children and Young Peoples Services,CYPS - Local Authority,Transport,230007,Contract Hire,03-Aug-2012,2478223-0034,"2,336.25",MR P CAHILL.
Children and Young Peoples Services,CYPS - Local Authority,Transport,230007,Contract Hire,03-Aug-2012,2478223-0035,"2,100.00",MR P CAHILL.
Children and Young Peoples Services,CYPS - Local Authority,Transport,230007,Contract Hire,03-Aug-2012,2478281-HUNW/JULY/12,"1,424.10",WEARDALE MOTOR SERVICES LTD.
Children and Young Peoples Services,CYPS - Local Authority,Transport,230007,Contract Hire,03-Aug-2012,2478281-STAIN/JULY/12,"1,455.00",WEARDALE MOTOR SERVICES LTD.
Children and Young Peoples Services,CYPS - Local Authority,Transport,230007,Contract Hire,03-Aug-2012,2478281-SJ/WIL/J/12,"1,425.00",WEARDALE MOTOR SERVICES LTD.
Children and Young Peoples Services,CYPS - Local Authority,Transport,230007,Contract Hire,03-Aug-2012,2478281-SJ/JULY/12,"1,650.00",WEARDALE MOTOR SERVICES LTD.
Children and Young Peoples Services,Dedicated Schools Grant,Employees,080025,Agency Staff,03-Aug-2012,2478195-16563,"1,850.00",KEYSTAGE RECRUITMENT LTD.
Children and Young Peoples Services,Dedicated Schools Grant,Transport,230007,Contract Hire,03-Aug-2012,2478213-BC-07-12,"2,190.00",MR CT WALKER T/A COLIN`S TAXIS.
Children and Young Peoples Services,Dedicated Schools Grant,Transport,230007,Contract Hire,03-Aug-2012,2478218-0060712,"1,204.00",MR JOHN CHISHOLM.
Children and Young Peoples Services,Dedicated Schools Grant,Supplies and Services,324093,Provisions,03-Aug-2012,2478265-SI-TSW-1009163,877.50,TAYLOR SHAW LTD.
Children and Young Peoples Services,Dedicated Schools Grant,Employees,080025,Agency Staff,03-Aug-2012,2478266-748879,925.00,TEACHING PERSONNEL LTD.
Children and Young Peoples Services,Dedicated Schools Grant,Employees,080025,Agency Staff,03-Aug-2012,2478266-750715,"1,150.00",TEACHING PERSONNEL LTD.
Children and Young Peoples Services,Dedicated Schools Grant,Employees,080025,Agency Staff,03-Aug-2012,2478266-750716,"1,448.00",TEACHING PERSONNEL LTD.
Children and Young Peoples Services,Dedicated Schools Grant,Employees,080025,Agency Staff,03-Aug-2012,2478266-750717,740.00,TEACHING PERSONNEL LTD.
Children and Young Peoples Services,Dedicated Schools Grant,Employees,080025,Agency Staff,03-Aug-2012,2478266-750718,"1,920.00",TEACHING PERSONNEL LTD.
Children and Young Peoples Services,Dedicated Schools Grant,Employees,080025,Agency Staff,03-Aug-2012,2478266-750719,"1,200.00",TEACHING PERSONNEL LTD.
Children and Young Peoples Services,Dedicated Schools Grant,Employees,080025,Agency Staff,03-Aug-2012,2478266-752521,575.00,TEACHING PERSONNEL LTD.
Children and Young Peoples Services,Dedicated Schools Grant,Employees,080025,Agency Staff,03-Aug-2012,2478266-752522,750.00,TEACHING PERSONNEL LTD.
Children and Young Peoples Services,Dedicated Schools Grant,Employees,080025,Agency Staff,03-Aug-2012,2478266-752523,960.00,TEACHING PERSONNEL LTD.
Children and Young Peoples Services,Dedicated Schools Grant,Employees,080025,Agency Staff,03-Aug-2012,2478266-752524,600.00,TEACHING PERSONNEL LTD.
Children and Young Peoples Services,Dedicated Schools Grant,Employees,080025,Agency Staff,03-Aug-2012,2478266-754217,575.00,TEACHING PERSONNEL LTD.
Children and Young Peoples Services,Dedicated Schools Grant,Employees,080025,Agency Staff,03-Aug-2012,2478266-754220,600.00,TEACHING PERSONNEL LTD.
Corporate Resources,Human Resources Total,Supplies and Services,338210,Services,03-Aug-2012,2478147-173201,"1,485.00",FIRSTASSIST SERVICES LTD.
Corporate Resources,Human Resources Total,Supplies and Services,384199,Miscellaneous Expenses,03-Aug-2012,2478238-I2135937,850.00,NORTHGATE INFORMATION SOLUTIONS UK LTD.
Corporate Resources,ICT Services incl. Design and Print,Supplies and Services,344033,Telephones,03-Aug-2012,2478091-VP16860270Q08201,"213,133.27",BRITISH TELECOMMUNICATIONS PLC.
Corporate Resources,ICT Services incl. Design and Print,Supplies and Services,342051,Computers and Communications,03-Aug-2012,2478166-IV1013,"1,295.00",HCL COMMUNICATIONS.
Corporate Resources,ICT Services incl. Design and Print,Supplies and Services,342215,Computers and Communications,03-Aug-2012,2478198-64343,"6,496.75",KNOWLEDGE IT.
Neighbourhood Services,Direct Services,Supplies and Services,324117,Provisions,03-Aug-2012,2478087-23798466,668.31,BRAKE BROS FOODSERVICE LTD.
Neighbourhood Services,Direct Services,Supplies and Services,324117,Provisions,03-Aug-2012,2478087-23819612,962.68,BRAKE BROS FOODSERVICE LTD.
Neighbourhood Services,Direct Services,Supplies and Services,304259,Equipment and Materials,03-Aug-2012,2478094-INV097027,"2,816.00",BROXAP LTD.
Neighbourhood Services,Direct Services,Supplies and Services,324117,Provisions,03-Aug-2012,2478100-MB31720,505.77,CAFFE VINCI.
Neighbourhood Services,Direct Services,Premises,106099,Centrally Controlled Rep and Maint,03-Aug-2012,2478110-I663423,"5,018.78",CHLORIDE ELECTRONICS LTD.
Neighbourhood Services,Direct Services,Supplies and Services,304221,Equipment and Materials,03-Aug-2012,2478140-059-099470,"6,713.14",EDMUNDSON ELECTRICAL LTD.
Neighbourhood Services,Direct Services,Supplies and Services,304221,Equipment and Materials,03-Aug-2012,2478140-059-100976,"1,431.99",EDMUNDSON ELECTRICAL LTD.
Neighbourhood Services,Direct Services,Supplies and Services,304221,Equipment and Materials,03-Aug-2012,2478140-059-101322,863.26,EDMUNDSON ELECTRICAL LTD.
Neighbourhood Services,Direct Services,Stock,926900,Stock in hand-Inventory system,03-Aug-2012,2478140-059-101698,"2,287.27",EDMUNDSON ELECTRICAL LTD.
Neighbourhood Services,Direct Services,Supplies and Services,304221,Equipment and Materials,03-Aug-2012,2478140-059-101791,"1,516.14",EDMUNDSON ELECTRICAL LTD.
Neighbourhood Services,Direct Services,Stock,926900,Stock in hand-Inventory system,03-Aug-2012,2478140-059-102394,"1,405.70",EDMUNDSON ELECTRICAL LTD.
Neighbourhood Services,Direct Services,Supplies and Services,338099,Services,03-Aug-2012,2478144-RS43,"1,470.00",FARNLEY FARM PARTNERS.
Neighbourhood Services,Direct Services,Premises,145023,Cleaning and Domestic Supplies,03-Aug-2012,2478163-06/421373,620.09,GREENHAM TRADING LTD.
Neighbourhood Services,Direct Services,Stock,926900,Stock in hand-Inventory system,03-Aug-2012,2478189-STI365510,"1,953.30",JT DOVE LTD.
Neighbourhood Services,Direct Services,Stock,926900,Stock in hand-Inventory system,03-Aug-2012,2478237-0379829,"1,125.00",NORTHERN TOOLS & ACCESSORIES.
Neighbourhood Services,Direct Services,Stock,926900,Stock in hand-Inventory system,03-Aug-2012,2478255-19822,"4,048.00",SG BAKER LTD.
Neighbourhood Services,Direct Services,Stock,926900,Stock in hand-Inventory system,03-Aug-2012,2478270-N/IN76626,"2,107.31",THOMAS OWEN & SONS (NEWCASTLE) LTD.
Neighbourhood Services,Direct Services,Stock,926900,Stock in hand-Inventory system,03-Aug-2012,2478270-N/IN76830,669.70,THOMAS OWEN & SONS (NEWCASTLE) LTD.
Neighbourhood Services,Sport & Leisure,Supplies and Services,324001,Provisions,03-Aug-2012,2478103-EW52998647,550.36,CARLSBERG UK LTD.
Neighbourhood Services,Sport & Leisure,Supplies and Services,324001,Provisions,03-Aug-2012,2478103-EW53041578,741.93,CARLSBERG UK LTD.
Neighbourhood Services,Sport & Leisure,Supplies and Services,352001,Conference Expenses,03-Aug-2012,2478157-DCC3,"2,495.00",GF INTERNATIONAL SOLUTIONS.
Neighbourhood Services,Sport & Leisure,Premises,106099,Centrally Controlled Rep and Maint,03-Aug-2012,2478173-113053,595.00,HUTCHINSON DRAINAGE LTD.
Neighbourhood Services,Sport & Leisure,Third Party Payments,430100,Rendered by Private Contractors,03-Aug-2012,2478200-SI-001509,"434,898.50",LEISUREWORKS.
Neighbourhood Services,Sport & Leisure,Premises,106099,Centrally Controlled Rep and Maint,03-Aug-2012,2478233-10020166,759.27,NORSTEAD.
Neighbourhood Services,Sport & Leisure,Third Party Payments,460305,Contract Payments,03-Aug-2012,2478247-3706769,"4,232.62",PERFORMING RIGHTS SOCIETY LTD.
Neighbourhood Services,Technical Services,Supplies and Services,304221,Equipment and Materials,03-Aug-2012,2478072-16741651,"1,103.69",AGGREGATE INDUSTRIES UK LTD.
Neighbourhood Services,Technical Services,Supplies and Services,304221,Equipment and Materials,03-Aug-2012,2478072-16741655,562.74,AGGREGATE INDUSTRIES UK LTD.
Neighbourhood Services,Technical Services,Supplies and Services,304221,Equipment and Materials,03-Aug-2012,2478072-16748270,818.22,AGGREGATE INDUSTRIES UK LTD.
Neighbourhood Services,Technical Services,Supplies and Services,304221,Equipment and Materials,03-Aug-2012,2478072-16748271,"1,155.99",AGGREGATE INDUSTRIES UK LTD.
Neighbourhood Services,Technical Services,Third Party Payments,460256,Contract Payments,03-Aug-2012,2478078-IWSN1165,"11,687.00",ANDEL LTD.
Neighbourhood Services,Technical Services,Third Party Payments,430100,Rendered by Private Contractors,03-Aug-2012,2478122-14740,"1,753.03",COUPE LINE LTD.
Neighbourhood Services,Technical Services,Third Party Payments,460053,Contract Payments,03-Aug-2012,2478122-14764,767.14,COUPE LINE LTD.
Neighbourhood Services,Technical Services,Third Party Payments,460053,Contract Payments,03-Aug-2012,2478122-14771,"2,267.65",COUPE LINE LTD.
Neighbourhood Services,Technical Services,Third Party Payments,460053,Contract Payments,03-Aug-2012,2478122-14772,"2,560.60",COUPE LINE LTD.
RED HRA,Housing Revenue Account,Supplies and Services,338027,Services,03-Aug-2012,2478241-1248,"3,417.27",OPEN COMMUNITIES LTD.
RED HRA,HRA Capital,Construction Work,908105,Construction work,03-Aug-2012,2478248-M12073,"1,110.00",PIMSS DATA SYSTEMS LTD.
RED HRA,HRA Capital,Construction Work,908105,Construction work,03-Aug-2012,2478259-G0521502,525.00,SITEXORBIS LTD.
RED HRA,HRA Capital,Construction Work,908105,Construction work,03-Aug-2012,2478259-G0526729,600.00,SITEXORBIS LTD.
RED HRA,HRA Control Codes,Creditors,952184,Creditor-tenants contents insurance,03-Aug-2012,2478205-5982282,"2,147.51",MARSH LTD UK.
Regeneration & Economic Development,Economic Development and Housing,Cap Exp on Grants & Other Financial Assistance (REFCUS),918401,Capital grants,03-Aug-2012,2478077-G,895.00,ALLISONS OF FERRYHILL.
Regeneration & Economic Development,Economic Development and Housing,Premises,120021,Energy Costs,03-Aug-2012,2478121-07387222,640.82,CORONA ENERGY RETAIL 2 LTD.
Regeneration & Economic Development,Economic Development and Housing,Supplies and Services,384540,Miscellaneous Expenses,03-Aug-2012,2478132-1499,"1,100.00",DIVERSITON LTD.
Regeneration & Economic Development,Economic Development and Housing,Supplies and Services,384700,Miscellaneous Expenses,03-Aug-2012,2478146-Y1-W-S,"1,425.60",FINLEY STRUCTURES LTD.
Regeneration & Economic Development,Economic Development and Housing,Cap Exp on Grants & Other Financial Assistance (REFCUS),918401,Capital grants,03-Aug-2012,2478256-GC,"1,500.00",SHERBURN HILL COMMUNITY ASSOCIATION.
Regeneration & Economic Development,Housing General Fund,Cap Exp on Grants & Other Financial Assistance (REFCUS),918401,Capital grants,03-Aug-2012,2478199-DFG89/12,"3,612.42",L & M  BUILDING SOLUTIONS LTD.
Regeneration & Economic Development,"Spatial Policy, Planning, Assets & Environment",Premises,120021,Energy Costs,03-Aug-2012,2478089-280173259,"1,542.59",BRITISH GAS BUSINESS.
Regeneration & Economic Development,"Spatial Policy, Planning, Assets & Environment",Supplies and Services,384199,Miscellaneous Expenses,03-Aug-2012,2478236-50017758,899.00,NORTHERN POWERGRID (NORTHEAST) LTD..
Regeneration & Economic Development,Transport,Construction Work,908105,Construction work,03-Aug-2012,2478096-18650,"3,653.56",BUS SHELTERS LTD.
Regeneration & Economic Development,Transport,Supplies and Services,338027,Services,03-Aug-2012,2478279-25000019732012,"2,380.00",VALUATION OFFICE AGENCY ADMINISTRATION.
Adults Wellbeing and Health,Commissioning inc Supporting People,Supplies and Services,338047,Services,06-Aug-2012,2478640-R2001323,"2,171.36",PARAMOUNT PICTURES UK.
Adults Wellbeing and Health,Commissioning inc Supporting People,Supplies and Services,338047,Services,06-Aug-2012,2478640-R2001328,"1,657.61",PARAMOUNT PICTURES UK.
Adults Wellbeing and Health,Commissioning inc Supporting People,Supplies and Services,384540,Miscellaneous Expenses,06-Aug-2012,2478675-BRM01,"1,500.00",REMEMBER MEDIA LTD.
Adults Wellbeing and Health,Commissioning inc Supporting People,Third Party Payments,479111,Purchase of Care,06-Aug-2012,2478407-CWNCS57-16/7/12,"12,022.73",DURHAM CITIZENS ADVICE BUREAU.
Adults Wellbeing and Health,Commissioning inc Supporting People,Premises,120037,Energy Costs,06-Aug-2012,2478461-8080222,"1,480.83",GB OILS T/A BRETT FUELS.
Adults Wellbeing and Health,Head of Adults,Third Party Payments,472101,Purchase of Care,06-Aug-2012,2478438-5142,"9,940.00",ESPA.
Adults Wellbeing and Health,Head of Adults,Third Party Payments,472101,Purchase of Care,06-Aug-2012,2478438-5144,"11,531.25",ESPA.
Adults Wellbeing and Health,Head of Adults,Supplies and Services,324117,Provisions,06-Aug-2012,2478527-L39376,"1,215.07",JR HOLLAND FOOD SERVICES LTD.
Adults Wellbeing and Health,Head of Adults,Summary reporting level,720033,Fees and Charges,06-Aug-2012,2478586-OPC,"2,522.22",REDACTED - PAYMENT TO INDIVIDUAL
Adults Wellbeing and Health,Social Inclusion,Premises,120009,Energy Costs,06-Aug-2012,2478501-5516,"2,657.12",IMPALA ESTATES LTD.
Adults Wellbeing and Health,Social Inclusion,Supplies and Services,384199,Miscellaneous Expenses,06-Aug-2012,2478576-2082,"2,775.00",MID NITE EXPRESS.
Adults Wellbeing and Health,Social Inclusion,Premises,108099,Service Repairs and Maintenance,06-Aug-2012,2478419-SINV/00002782,"4,774.15",EAST DURHAM HOMES.
Assistant Chief Executive,Assistant Chief Executive Financing,Supplies and Services,340001,Postages,06-Aug-2012,2478688-9039074526,"6,387.25",ROYAL MAIL GROUP PLC.
Assistant Chief Executive,Partnerships & Community Engagement Div.,Supplies and Services,384086,Miscellaneous Expenses,06-Aug-2012,2478327-12NB-EDRC003-AP,"5,000.00",BOWBURN BANNER GROUP.
Assistant Chief Executive,Partnerships & Community Engagement Div.,Cap Exp on Grants & Other Financial Assistance (REFCUS),918004,Contributions to other bodies,06-Aug-2012,2478378-12-NB-EDRC001,"3,923.00",COXHOE ALLOTMENT ASSOCIATION.
Children and Young Peoples Services,CYPS - Local Authority,Employees,057109,Insurance and Medical fees,06-Aug-2012,2478312-JUNE2012,"1,203.00",AYCLIFFE PHYSIOTHERAPY.
Children and Young Peoples Services,CYPS - Local Authority,Transfer Payments,510026,School Children,06-Aug-2012,2478402-096/13/1287,"27,500.00",DISC LTD.
Children and Young Peoples Services,CYPS - Local Authority,Transfer Payments,510033,School Children,06-Aug-2012,2478413-242341,"55,250.00",DURHAM UNIVERSITY.
Children and Young Peoples Services,CYPS - Local Authority,Transport,230005,Contract Hire,06-Aug-2012,2478436-D393902U832,504.07,ENTERPRISE RAC UK LTD.
Children and Young Peoples Services,CYPS - Local Authority,Supplies and Services,364352,Grants to Voluntary Organisations,06-Aug-2012,2478450-3703,"1,433.84",FOUNDATION.
Children and Young Peoples Services,CYPS - Local Authority,Transport,230007,Contract Hire,06-Aug-2012,2478460-14597,"2,114.00",GARNETTS LTD (COACHES).
Children and Young Peoples Services,CYPS - Local Authority,Transport,230007,Contract Hire,06-Aug-2012,2478460-14602,"2,311.40",GARNETTS LTD (COACHES).
Children and Young Peoples Services,CYPS - Local Authority,Supplies and Services,384199,Miscellaneous Expenses,06-Aug-2012,2478494-CH2012-9/7/12,"2,028.95",HIGHER EDUCATION FOR ME.
Children and Young Peoples Services,CYPS - Local Authority,Transport,230007,Contract Hire,06-Aug-2012,2478518-6E/S004AJUL12,988.54,JL EBDON.
Children and Young Peoples Services,CYPS - Local Authority,Transport,230007,Contract Hire,06-Aug-2012,2478531-00206,"1,000.00",KENNAS CABS.
Children and Young Peoples Services,CYPS - Local Authority,Transport,230007,Contract Hire,06-Aug-2012,2478531-00211,780.00,KENNAS CABS.
Children and Young Peoples Services,CYPS - Local Authority,Transport,230007,Contract Hire,06-Aug-2012,2478531-00212,"1,260.00",KENNAS CABS.
Children and Young Peoples Services,CYPS - Local Authority,Fees,901002,Professional Fees,06-Aug-2012,2478566-3405/01,"2,112.00",LUMSDON WOOD PARTNERSHIP.
Children and Young Peoples Services,CYPS - Local Authority,Supplies and Services,384073,Miscellaneous Expenses,06-Aug-2012,2478567-FB09408,875.00,MANOR HOUSE HOTEL.
Children and Young Peoples Services,CYPS - Local Authority,Supplies and Services,338057,Services,06-Aug-2012,2478624-526448,"8,727.00",NORTHUMBERLAND TYNE & WEAR NHS TRUST.
Children and Young Peoples Services,CYPS - Local Authority,Transport,230007,Contract Hire,06-Aug-2012,2478647-8,616.00,PETER HOLMES.
Children and Young Peoples Services,CYPS - Local Authority,Supplies and Services,338078,Services,06-Aug-2012,2478666-2630,"15,421.44",QW SECURITY LTD.
Children and Young Peoples Services,CYPS - Local Authority,Third Party Payments,486021,Service Level Agreements,06-Aug-2012,2478672-2515,"22,231.21",REACH OUT CARE SUPPORT SERVICES LTD.
Children and Young Peoples Services,CYPS - Local Authority,Third Party Payments,440056,Other Third Party Payments,06-Aug-2012,2478672-2521,"2,152.73",REACH OUT CARE SUPPORT SERVICES LTD.
Children and Young Peoples Services,CYPS - Local Authority,Supplies and Services,340001,Postages,06-Aug-2012,2478688-1801354722,750.00,ROYAL MAIL GROUP PLC.
Children and Young Peoples Services,CYPS - Local Authority,Supplies and Services,384199,Miscellaneous Expenses,06-Aug-2012,2478691-20125,500.00,RSVP.
Children and Young Peoples Services,CYPS - Local Authority,Transport,240045,Car Allowances,06-Aug-2012,2478717-2401,"69,218.36",SOCIAL RESOURCE CENTRE LTD.
Children and Young Peoples Services,CYPS - Local Authority,Third Party Payments,425021,Rendered by Voluntary Organisations,06-Aug-2012,2478732-2486,"31,012.00",ST OSWALD`S HOSPICE.
Children and Young Peoples Services,CYPS - Local Authority,Supplies and Services,364352,Grants to Voluntary Organisations,06-Aug-2012,2478738-70002743-6/7/12,587.68,STONHAM HOUSING ASSOCIATION LTD.
Children and Young Peoples Services,CYPS - Local Authority,Supplies and Services,364352,Grants to Voluntary Organisations,06-Aug-2012,2478755-015/LC/2012,"1,063.38",TEES VALLEY HOUSING LTD.
Children and Young Peoples Services,CYPS - Local Authority,Supplies and Services,364352,Grants to Voluntary Organisations,06-Aug-2012,2478755-016/LC/2012,"1,063.38",TEES VALLEY HOUSING LTD.
Children and Young Peoples Services,Dedicated Schools Grant,Employees,080025,Agency Staff,06-Aug-2012,2478344-03513140,540.00,CAPITA EDUCATION RESOURCING.
Children and Young Peoples Services,Dedicated Schools Grant,Employees,080025,Agency Staff,06-Aug-2012,2478344-03513141,995.00,CAPITA EDUCATION RESOURCING.
Children and Young Peoples Services,Dedicated Schools Grant,Employees,080025,Agency Staff,06-Aug-2012,2478344-03515499,"1,200.00",CAPITA EDUCATION RESOURCING.
Children and Young Peoples Services,Dedicated Schools Grant,Employees,080025,Agency Staff,06-Aug-2012,2478344-03515500,995.00,CAPITA EDUCATION RESOURCING.
Children and Young Peoples Services,Dedicated Schools Grant,Employees,080025,Agency Staff,06-Aug-2012,2478344-03518099,995.00,CAPITA EDUCATION RESOURCING.
Children and Young Peoples Services,Dedicated Schools Grant,Employees,080025,Agency Staff,06-Aug-2012,2478344-03518100,"1,200.00",CAPITA EDUCATION RESOURCING.
Children and Young Peoples Services,Dedicated Schools Grant,Employees,080025,Agency Staff,06-Aug-2012,2478344-03518101,995.00,CAPITA EDUCATION RESOURCING.
Children and Young Peoples Services,Dedicated Schools Grant,Third Party Payments,410037,Rendered by Other Local Authorities,06-Aug-2012,2478361-2807013266,"34,450.84",CITY OF SUNDERLAND.
Children and Young Peoples Services,Dedicated Schools Grant,Premises,125009,Rents,06-Aug-2012,2478395-3060,"1,923.33",DEAN BANK & FERRYHILL LITERARY INSTITUTE.
Children and Young Peoples Services,Dedicated Schools Grant,Transport,230007,Contract Hire,06-Aug-2012,2478531-00213,"1,460.00",KENNAS CABS.
Children and Young Peoples Services,Dedicated Schools Grant,Employees,080025,Agency Staff,06-Aug-2012,2478532-16496,"1,850.00",KEYSTAGE RECRUITMENT LTD.
Children and Young Peoples Services,Dedicated Schools Grant,Employees,080025,Agency Staff,06-Aug-2012,2478532-16532,"1,850.00",KEYSTAGE RECRUITMENT LTD.
Children and Young Peoples Services,Dedicated Schools Grant,Employees,080025,Agency Staff,06-Aug-2012,2478753-754218,750.00,TEACHING PERSONNEL LTD.
Children and Young Peoples Services,Dedicated Schools Grant,Employees,080025,Agency Staff,06-Aug-2012,2478753-754219,960.00,TEACHING PERSONNEL LTD.
Corporate Resources,Corporate Services Financing,Debtors,930031,Debtor-outstand insur claims,06-Aug-2012,2478364-99504,"3,380.69",CLANCY CONSULTING LTD.
Corporate Resources,ICT Services incl. Design and Print,Supplies and Services,344033,Telephones,06-Aug-2012,2478336-VP71577270Q02201,"5,139.36",BRITISH TELECOMMUNICATIONS PLC.
Corporate Resources,ICT Services incl. Design and Print,Supplies and Services,342225,Computers and Communications,06-Aug-2012,2478441-2220548-UK,765.67,EXPANSYS UK LTD.
Corporate Resources,ICT Services incl. Design and Print,Supplies and Services,344033,Telephones,06-Aug-2012,2478609-200998,"17,111.54",NETWORKS 2 BUSINESS LTD.
Corporate Resources,ICT Services incl. Design and Print,Supplies and Services,384199,Miscellaneous Expenses,06-Aug-2012,2478616-10020104,594.00,NORSTEAD.
Corporate Resources,ICT Services incl. Design and Print,Supplies and Services,344014,Telephones,06-Aug-2012,2478627-SB14461206,640.49,O2 (UK) LTD.
Corporate Resources,ICT Services incl. Design and Print,Supplies and Services,384156,Miscellaneous Expenses,06-Aug-2012,2478774-103205,648.39,TP ELECTRICAL SUPPLIES & FIXINGS LTD.
Corporate Resources,ICT Services incl. Design and Print,Supplies and Services,304259,Equipment and Materials,06-Aug-2012,2478810-AF418445,"7,500.24",XEROX (UK) LTD.
Neighbourhood Services,Direct Services,Premises,145051,Cleaning and Domestic Supplies,06-Aug-2012,2478284-2012041,"19,754.32",A & E THOMPSON.
Neighbourhood Services,Direct Services,Premises,145051,Cleaning and Domestic Supplies,06-Aug-2012,2478284-2012061,"27,660.40",A & E THOMPSON.
Neighbourhood Services,Direct Services,Third Party Payments,430100,Rendered by Private Contractors,06-Aug-2012,2478308-AG/12/450281,"1,762.00",ASSET ADVANTAGE LTD.
Neighbourhood Services,Direct Services,Third Party Payments,430100,Rendered by Private Contractors,06-Aug-2012,2478400-210755,586.96,DENNIS EAGLE LTD.
Neighbourhood Services,Direct Services,Third Party Payments,430100,Rendered by Private Contractors,06-Aug-2012,2478400-211533,530.00,DENNIS EAGLE LTD.
Neighbourhood Services,Direct Services,Third Party Payments,430100,Rendered by Private Contractors,06-Aug-2012,2478415-72933,"1,350.00",DYER ENGINEERING LTD.
Neighbourhood Services,Direct Services,Supplies and Services,304259,Equipment and Materials,06-Aug-2012,2478421-2171424,848.40,EAST RIDING HORTICULTURE LTD.
Neighbourhood Services,Direct Services,Stock,926900,Stock in hand-Inventory system,06-Aug-2012,2478433-18SI/155449,"1,052.24",ENCON INSULATION LTD.
Neighbourhood Services,Direct Services,Third Party Payments,430100,Rendered by Private Contractors,06-Aug-2012,2478434-17457,775.97,ENTERPRISE ACCIDENT REPAIR CENTRE LTD.
Neighbourhood Services,Direct Services,Stock,926004,Stock,06-Aug-2012,2478461-8070753,"11,053.00",GB OILS T/A BRETT FUELS.
Neighbourhood Services,Direct Services,Stock,926004,Stock,06-Aug-2012,2478461-8078764,"1,913.44",GB OILS T/A BRETT FUELS.
Neighbourhood Services,Direct Services,Stock,926004,Stock,06-Aug-2012,2478461-8082122,"1,262.60",GB OILS T/A BRETT FUELS.
Neighbourhood Services,Direct Services,Supplies and Services,304221,Equipment and Materials,06-Aug-2012,2478482-SI-663,653.88,HARELAW SAWMILL LTD.
Neighbourhood Services,Direct Services,Supplies and Services,304221,Equipment and Materials,06-Aug-2012,2478488-4381471,871.20,HEADLAM (FLOORCOVERING DISTRIBUTORS) LTD.
Neighbourhood Services,Direct Services,Third Party Payments,430100,Rendered by Private Contractors,06-Aug-2012,2478515-00044938,550.00,JCB FINANCE (LEASING) LTD.
Neighbourhood Services,Direct Services,Third Party Payments,430100,Rendered by Private Contractors,06-Aug-2012,2478540-348,667.00,KTD NE LTD.
Neighbourhood Services,Direct Services,"Vehicles, Equipment, Furniture and Fittings",912541,Purchase-vehicles,06-Aug-2012,2478619-225566,"34,265.00",NORTH EAST TRUCK & VAN LTD.
Neighbourhood Services,Direct Services,Third Party Payments,430100,Rendered by Private Contractors,06-Aug-2012,2478681-2585,522.00,RINGLAND SCAFFOLDING.
Neighbourhood Services,Direct Services,Transport,210057,Repair and Maintenance of Vehicles,06-Aug-2012,2478696-00184989,598.50,S JENNINGS LTD.
Neighbourhood Services,Direct Services,Stock,926900,Stock in hand-Inventory system,06-Aug-2012,2478741-5154796,701.76,SUPPLIES TEAM LTD.
Neighbourhood Services,Direct Services,Transport,210057,Repair and Maintenance of Vehicles,06-Aug-2012,2478758-96269219,585.91,TERBERG MATEC (UK) LTD.
Neighbourhood Services,Direct Services,Transport,210057,Repair and Maintenance of Vehicles,06-Aug-2012,2478758-96269253,571.41,TERBERG MATEC (UK) LTD.
Neighbourhood Services,"Environment,Health & Consumer Protection",Employees,040149,"Recruitment, Instruction and Training",06-Aug-2012,2478543-TOM-002198,860.00,LANTRA.
Neighbourhood Services,Projects and Business services,Third Party Payments,430103,Rendered by Private Contractors,06-Aug-2012,2478420-RCC2,"1,919.59",EAST DURHAM PARTNERSHIP.
Neighbourhood Services,Sport & Leisure,Supplies and Services,304639,Equipment and Materials,06-Aug-2012,2478453-03072012014,660.00,FX PRODUCTIONS LTD.
Neighbourhood Services,Sport & Leisure,Supplies and Services,384199,Miscellaneous Expenses,06-Aug-2012,2478687-785/12,754.88,ROCK IT CLIMBING.
Neighbourhood Services,Technical Services,Supplies and Services,304511,Equipment and Materials,06-Aug-2012,2478291-16621953,533.08,AGGREGATE INDUSTRIES UK LTD.
Neighbourhood Services,Technical Services,Supplies and Services,304511,Equipment and Materials,06-Aug-2012,2478291-16627778,741.23,AGGREGATE INDUSTRIES UK LTD.
Neighbourhood Services,Technical Services,Supplies and Services,304357,Equipment and Materials,06-Aug-2012,2478458-DCC290712,"7,935.12",GAP GROUP LTD.
Neighbourhood Services,Technical Services,Supplies and Services,304358,Equipment and Materials,06-Aug-2012,2478524-12206,945.95,JOHN R BUTTERFIELD LTD.
Neighbourhood Services,Technical Services,Construction Work,908105,Construction work,06-Aug-2012,2478704-SIL/D1461/2180,"15,696.22",SEALANE INSHORE LTD.
Neighbourhood Services,Technical Services,Supplies and Services,304357,Equipment and Materials,06-Aug-2012,2478772-125369,504.00,TOOL TIME LTD.
RED HRA,Housing Revenue Account,Supplies and Services,358011,Housing Revenue Account,06-Aug-2012,2478353-2754,"3,015.00",CENTREPOINT SOHO.
RED HRA,Housing Revenue Account,Supplies and Services,358002,Housing Revenue Account,06-Aug-2012,2478621-91201011,"2,072.21",NORTHGATE INFORMATION SOLUTIONS UK LTD.
RED HRA,Housing Revenue Account,Supplies and Services,358002,Housing Revenue Account,06-Aug-2012,2478621-91212711,"1,300.00",NORTHGATE INFORMATION SOLUTIONS UK LTD.
RED HRA,HRA Capital,Construction Work,908105,Construction work,06-Aug-2012,2478578-CON54732,518.00,MIS ENVIRONMENTAL LTD.
RED HRA,HRA Capital,Construction Work,908105,Construction work,06-Aug-2012,2478590-031,675.00,MR KARL WALKER T/A KEPIER ENERGY CONNECTIONS.
Regeneration & Economic Development,Economic Development and Housing,Supplies and Services,384199,Miscellaneous Expenses,06-Aug-2012,2478572-INV09074,500.00,MEDIAWORKS UK LTD.
Regeneration & Economic Development,Economic Development and Housing,Supplies and Services,384199,Miscellaneous Expenses,06-Aug-2012,2478611-4255,"3,600.00",NEWCASTLE GATESHEAD INITIATIVE.
Regeneration & Economic Development,Economic Development and Housing,Fees,901002,Professional Fees,06-Aug-2012,2478806-78,"8,775.00",WITHAM REDEVELOPMENT FUND.
Regeneration & Economic Development,Economic Development and Housing,Fees,901002,Professional Fees,06-Aug-2012,2478806-79,"4,767.79",WITHAM REDEVELOPMENT FUND.
Regeneration & Economic Development,Housing General Fund,Cap Exp on Grants & Other Financial Assistance (REFCUS),918401,Capital grants,06-Aug-2012,2478530-2569,"6,534.50",K HARRISON (BUILDER) NE LTD.
Regeneration & Economic Development,Housing General Fund,Cap Exp on Grants & Other Financial Assistance (REFCUS),918401,Capital grants,06-Aug-2012,2478602-DG-DFG52/12,"4,853.00",N COOK BUILDING CONTRACTOR LTD.
Regeneration & Economic Development,Housing General Fund,Cap Exp on Grants & Other Financial Assistance (REFCUS),918401,Capital grants,06-Aug-2012,2478768-SIP-119449,"1,495.00",THYSSENKRUPP ENCASA LTD.
Regeneration & Economic Development,Housing General Fund,Cap Exp on Grants & Other Financial Assistance (REFCUS),918401,Capital grants,06-Aug-2012,2478768-SIP-119462,"1,325.00",THYSSENKRUPP ENCASA LTD.
Regeneration & Economic Development,Housing General Fund,Cap Exp on Grants & Other Financial Assistance (REFCUS),918401,Capital grants,06-Aug-2012,2478768-SIP-119506,"1,495.00",THYSSENKRUPP ENCASA LTD.
Regeneration & Economic Development,"Spatial Policy, Planning, Assets & Environment",Supplies and Services,384199,Miscellaneous Expenses,06-Aug-2012,2478447-10-BS,"1,800.00",FIONA CORBY.
Regeneration & Economic Development,"Spatial Policy, Planning, Assets & Environment",Supplies and Services,336005,Advertising,06-Aug-2012,2478562-86,500.00,LONGSTONE PUBLIC RELATIONS.
Regeneration & Economic Development,"Spatial Policy, Planning, Assets & Environment",Supplies and Services,384199,Miscellaneous Expenses,06-Aug-2012,2478710-201206024,500.00,SIMPSON & BROWN.
Regeneration & Economic Development,Strategy Programmes and Performance,Supplies and Services,384899,Miscellaneous Expenses,06-Aug-2012,2478577-NPD168,"27,297.84",MIDDLETON IN TEESDALE FARMER`S MART LTD.
Regeneration & Economic Development,Strategy Programmes and Performance,Supplies and Services,384899,Miscellaneous Expenses,06-Aug-2012,2478720-NPD/DCC001B/01/2,"3,665.69",SOUTH DURHAM ENTERPRISE AGENCY LTD.
Regeneration & Economic Development,Transport,Supplies and Services,338027,Services,06-Aug-2012,2478623-059121,"3,408.25",NORTHUMBERLAND COUNTY COUNCIL.
Regeneration & Economic Development,Transport,Construction Work,908105,Construction work,06-Aug-2012,2478654-SI14188A,"1,520.00",PIPS TECHNOLOGY.
Regeneration & Economic Development,Transport,Supplies and Services,384159,Miscellaneous Expenses,06-Aug-2012,2478664-53430,991.27,PROTECTOR SECURITY GROUP LTD.
Adults Wellbeing and Health,Commissioning inc Supporting People,Third Party Payments,442002,Supporting People,07-Aug-2012,2479496-1943526,"3,820.28",DERWENTSIDE DOMESTIC ABUSE SERVICE.
Adults Wellbeing and Health,Commissioning inc Supporting People,Supplies and Services,338099,Services,07-Aug-2012,2479551-3926,"1,456.50",HANDS ON PRODUCTIONS SERVICES LTD.
Adults Wellbeing and Health,Commissioning inc Supporting People,Summary reporting level,715699,Sales,07-Aug-2012,2479851-01/06-30/06/2012,"1,052.80",WEST END THEATRE MANAGERS LTD.
Adults Wellbeing and Health,Commissioning inc Supporting People,Supplies and Services,384199,Miscellaneous Expenses,07-Aug-2012,2479545-001,500.00,GRESHAUNA SANDERS.
Adults Wellbeing and Health,Commissioning inc Supporting People,Supplies and Services,384199,Miscellaneous Expenses,07-Aug-2012,2479731-12/07/2012,"2,424.25",ONYX BRASS.
Adults Wellbeing and Health,Commissioning inc Supporting People,Supplies and Services,384540,Miscellaneous Expenses,07-Aug-2012,2479457-5411869,866.00,CBS OUTDOOR LTD.
Adults Wellbeing and Health,Commissioning inc Supporting People,Supplies and Services,384540,Miscellaneous Expenses,07-Aug-2012,2479457-5411993,"1,200.00",CBS OUTDOOR LTD.
Adults Wellbeing and Health,Commissioning inc Supporting People,Third Party Payments,479102,Purchase of Care,07-Aug-2012,2479468-3136856,"21,722.00",CO DURHAM & DARLINGTON NHS FOUNDATION TRUST.
Adults Wellbeing and Health,Commissioning inc Supporting People,Third Party Payments,443001,Supporting People,07-Aug-2012,2479475-1943059,"1,200.00",COMMUNITY INTEGRATED CARE LTD.
Adults Wellbeing and Health,Commissioning inc Supporting People,Third Party Payments,443001,Supporting People,07-Aug-2012,2479475-1943062,"1,600.00",COMMUNITY INTEGRATED CARE LTD.
Adults Wellbeing and Health,Commissioning inc Supporting People,Third Party Payments,443001,Supporting People,07-Aug-2012,2479475-1943066,"2,800.00",COMMUNITY INTEGRATED CARE LTD.
Adults Wellbeing and Health,Commissioning inc Supporting People,Third Party Payments,443001,Supporting People,07-Aug-2012,2479475-1943070,"3,200.00",COMMUNITY INTEGRATED CARE LTD.
Adults Wellbeing and Health,Commissioning inc Supporting People,Third Party Payments,443001,Supporting People,07-Aug-2012,2479492-1943398,"4,456.80",DEACONSTAR LTD.
Adults Wellbeing and Health,Commissioning inc Supporting People,Third Party Payments,442002,Supporting People,07-Aug-2012,2479500-1943454,"48,391.04",DISC LTD.
Adults Wellbeing and Health,Commissioning inc Supporting People,Third Party Payments,443001,Supporting People,07-Aug-2012,2479504-1943431,"1,576.40",DURHAM ACTION ON SINGLE HOUSING.
Adults Wellbeing and Health,Commissioning inc Supporting People,Third Party Payments,443001,Supporting People,07-Aug-2012,2479504-1943433,"1,576.40",DURHAM ACTION ON SINGLE HOUSING.
Adults Wellbeing and Health,Commissioning inc Supporting People,Third Party Payments,443001,Supporting People,07-Aug-2012,2479504-1943434,"1,576.40",DURHAM ACTION ON SINGLE HOUSING.
Adults Wellbeing and Health,Commissioning inc Supporting People,Third Party Payments,441001,Supporting People,07-Aug-2012,2479504-1943441,"19,417.64",DURHAM ACTION ON SINGLE HOUSING.
Adults Wellbeing and Health,Commissioning inc Supporting People,Third Party Payments,443001,Supporting People,07-Aug-2012,2479590-1943055,"1,125.72",INTEGRATION TRUST.
Adults Wellbeing and Health,Commissioning inc Supporting People,Third Party Payments,443001,Supporting People,07-Aug-2012,2479631-1943379,"16,166.28",KINDSTREAM CARE LTD.
Adults Wellbeing and Health,Commissioning inc Supporting People,Third Party Payments,443001,Supporting People,07-Aug-2012,2479631-1943387,"4,135.56",KINDSTREAM CARE LTD.
Adults Wellbeing and Health,Commissioning inc Supporting People,Third Party Payments,443001,Supporting People,07-Aug-2012,2479660-1943139,"2,484.76",MENCAP.
Adults Wellbeing and Health,Commissioning inc Supporting People,Third Party Payments,443001,Supporting People,07-Aug-2012,2479660-1943243,"2,524.44",MENCAP.
Adults Wellbeing and Health,Commissioning inc Supporting People,Third Party Payments,443001,Supporting People,07-Aug-2012,2479660-1943244,907.96,MENCAP.
Adults Wellbeing and Health,Commissioning inc Supporting People,Third Party Payments,442002,Supporting People,07-Aug-2012,2479662-1943527,"7,460.12",MENTAL HEALTH MATTERS.
Adults Wellbeing and Health,Commissioning inc Supporting People,Third Party Payments,442002,Supporting People,07-Aug-2012,2479674-1943450,"5,561.68",MOVING ON.
Adults Wellbeing and Health,Commissioning inc Supporting People,Third Party Payments,442002,Supporting People,07-Aug-2012,2479553-1943260,"4,883.56",HARBOUR SUPPORT SV.
Adults Wellbeing and Health,Commissioning inc Supporting People,Third Party Payments,441001,Supporting People,07-Aug-2012,2479553-1943459,"9,190.44",HARBOUR SUPPORT SV.
Adults Wellbeing and Health,Commissioning inc Supporting People,Third Party Payments,444002,Supporting People,07-Aug-2012,2479749-1943362,"4,432.56",RICHMOND FELLOWSHIP.
Adults Wellbeing and Health,Commissioning inc Supporting People,Third Party Payments,441001,Supporting People,07-Aug-2012,2479749-1943374,"9,923.84",RICHMOND FELLOWSHIP.
Adults Wellbeing and Health,Commissioning inc Supporting People,Third Party Payments,442002,Supporting People,07-Aug-2012,2479749-1943528,"9,214.24",RICHMOND FELLOWSHIP.
Adults Wellbeing and Health,Commissioning inc Supporting People,Third Party Payments,441001,Supporting People,07-Aug-2012,2479509-1943375,"5,402.40",EAST DURHAM COMMUNITY INITIATIVES LTD.
Adults Wellbeing and Health,Commissioning inc Supporting People,Third Party Payments,442002,Supporting People,07-Aug-2012,2479774-1943452,"9,994.32",SHAID.
Adults Wellbeing and Health,Commissioning inc Supporting People,Third Party Payments,442002,Supporting People,07-Aug-2012,2479795-1943455,"30,454.80",STONHAM HOUSING ASSOCIATION LTD.
Adults Wellbeing and Health,Commissioning inc Supporting People,Third Party Payments,442002,Supporting People,07-Aug-2012,2479795-1943456,"187,378.52",STONHAM HOUSING ASSOCIATION LTD.
Adults Wellbeing and Health,Commissioning inc Supporting People,Third Party Payments,441001,Supporting People,07-Aug-2012,2479795-1943487,"5,753.44",STONHAM HOUSING ASSOCIATION LTD.
Adults Wellbeing and Health,Commissioning inc Supporting People,Third Party Payments,443001,Supporting People,07-Aug-2012,2479795-1943488,"8,170.17",STONHAM HOUSING ASSOCIATION LTD.
Adults Wellbeing and Health,Commissioning inc Supporting People,Third Party Payments,441001,Supporting People,07-Aug-2012,2479795-1943499,"56,325.28",STONHAM HOUSING ASSOCIATION LTD.
Adults Wellbeing and Health,Commissioning inc Supporting People,Third Party Payments,443001,Supporting People,07-Aug-2012,2479795-1943500,"22,036.56",STONHAM HOUSING ASSOCIATION LTD.
Adults Wellbeing and Health,Commissioning inc Supporting People,Third Party Payments,443001,Supporting People,07-Aug-2012,2479795-1943520,"1,049.36",STONHAM HOUSING ASSOCIATION LTD.
Adults Wellbeing and Health,Commissioning inc Supporting People,Third Party Payments,441001,Supporting People,07-Aug-2012,2479809-1943376,"88,843.37",TEES VALLEY HOUSING LTD.
Adults Wellbeing and Health,Commissioning inc Supporting People,Third Party Payments,444002,Supporting People,07-Aug-2012,2479727-1943261,864.00,OAKLEA TRUST.
Adults Wellbeing and Health,Commissioning inc Supporting People,Third Party Payments,444002,Supporting People,07-Aug-2012,2479727-1943263,"5,184.00",OAKLEA TRUST.
Adults Wellbeing and Health,Commissioning inc Supporting People,Third Party Payments,444002,Supporting People,07-Aug-2012,2479727-1943265,"1,728.00",OAKLEA TRUST.
Adults Wellbeing and Health,Commissioning inc Supporting People,Third Party Payments,444002,Supporting People,07-Aug-2012,2479727-1943276,"1,296.00",OAKLEA TRUST.
Adults Wellbeing and Health,Commissioning inc Supporting People,Third Party Payments,444002,Supporting People,07-Aug-2012,2479727-1943281,"1,296.00",OAKLEA TRUST.
Adults Wellbeing and Health,Commissioning inc Supporting People,Third Party Payments,441001,Supporting People,07-Aug-2012,2479819-1943039,"11,615.57",THREE RIVERS HOUSING ASSOCIATION LTD.
Adults Wellbeing and Health,Commissioning inc Supporting People,Third Party Payments,442002,Supporting People,07-Aug-2012,2479819-1943129,863.24,THREE RIVERS HOUSING ASSOCIATION LTD.
Adults Wellbeing and Health,Commissioning inc Supporting People,Third Party Payments,442002,Supporting People,07-Aug-2012,2479819-1943377,"8,976.12",THREE RIVERS HOUSING ASSOCIATION LTD.
Adults Wellbeing and Health,Commissioning inc Supporting People,Third Party Payments,441001,Supporting People,07-Aug-2012,2479819-1943394,"6,395.16",THREE RIVERS HOUSING ASSOCIATION LTD.
Adults Wellbeing and Health,Commissioning inc Supporting People,Third Party Payments,442002,Supporting People,07-Aug-2012,2479819-1943426,"43,230.76",THREE RIVERS HOUSING ASSOCIATION LTD.
Adults Wellbeing and Health,Commissioning inc Supporting People,Third Party Payments,442002,Supporting People,07-Aug-2012,2479819-1943529,"3,835.60",THREE RIVERS HOUSING ASSOCIATION LTD.
Adults Wellbeing and Health,Commissioning inc Supporting People,Third Party Payments,444002,Supporting People,07-Aug-2012,2479843-1943153,556.00,WADDINGTON STREET CENTRE LTD.
Adults Wellbeing and Health,Commissioning inc Supporting People,Third Party Payments,443001,Supporting People,07-Aug-2012,2479843-1943389,"1,378.20",WADDINGTON STREET CENTRE LTD.
Adults Wellbeing and Health,Commissioning inc Supporting People,Third Party Payments,441001,Supporting People,07-Aug-2012,2479843-1943460,"5,004.88",WADDINGTON STREET CENTRE LTD.
Adults Wellbeing and Health,Commissioning inc Supporting People,Third Party Payments,441001,Supporting People,07-Aug-2012,2479848-1943482,"9,535.12",WEAR VALLEY WOMENS AID.
Adults Wellbeing and Health,Commissioning inc Supporting People,Supplies and Services,384199,Miscellaneous Expenses,07-Aug-2012,2479700-D/T2012,"5,050.00",NEIGHBOURHOOD WATCH STILTS INTERNATIONAL.
Adults Wellbeing and Health,Commissioning inc Supporting People,Supplies and Services,384199,Miscellaneous Expenses,07-Aug-2012,2479700-D/T2012-P2,"4,500.00",NEIGHBOURHOOD WATCH STILTS INTERNATIONAL.
Adults Wellbeing and Health,Commissioning inc Supporting People,Supplies and Services,384199,Miscellaneous Expenses,07-Aug-2012,2479821-1640,"2,250.00",TINARTS.
Adults Wellbeing and Health,Commissioning inc Supporting People,Supplies and Services,384199,Miscellaneous Expenses,07-Aug-2012,2479821-1641,"2,250.00",TINARTS.
Adults Wellbeing and Health,Commissioning inc Supporting People,Third Party Payments,442002,Supporting People,07-Aug-2012,2479428-1943440,"19,676.48",BID SERVICES WITH DEAF PEOPLE.
Adults Wellbeing and Health,Commissioning inc Supporting People,Third Party Payments,442002,Supporting People,07-Aug-2012,2479481-1943564,"20,739.96",CREATIVE SUPPORT LTD.
Adults Wellbeing and Health,Commissioning inc Supporting People,Third Party Payments,443001,Supporting People,07-Aug-2012,2479568-1943344,"1,045.20",HOME HOUSING ASSOCIATION LTD.
Adults Wellbeing and Health,Commissioning inc Supporting People,Third Party Payments,441001,Supporting People,07-Aug-2012,2479713-1943429,"8,360.88",NORCARE LTD.
Adults Wellbeing and Health,Commissioning inc Supporting People,Third Party Payments,441001,Supporting People,07-Aug-2012,2479713-1943430,"10,977.08",NORCARE LTD.
Adults Wellbeing and Health,Commissioning inc Supporting People,Third Party Payments,442002,Supporting People,07-Aug-2012,2479713-1943437,"3,181.20",NORCARE LTD.
Adults Wellbeing and Health,Commissioning inc Supporting People,Third Party Payments,442002,Supporting People,07-Aug-2012,2479713-1943438,"2,021.08",NORCARE LTD.
Adults Wellbeing and Health,Commissioning inc Supporting People,Third Party Payments,443001,Supporting People,07-Aug-2012,2479792-1943252,"9,593.28",ST ANNES SHELTER & HOUSING ACTION.
Adults Wellbeing and Health,Commissioning inc Supporting People,Third Party Payments,443001,Supporting People,07-Aug-2012,2479691-1943392,733.76,REDACTED - PAYMENT TO INDIVIDUAL
Adults Wellbeing and Health,Commissioning inc Supporting People,Third Party Payments,442002,Supporting People,07-Aug-2012,2479527-1943530,"26,122.88",FOUNDATION.
Adults Wellbeing and Health,Commissioning inc Supporting People,Third Party Payments,443001,Supporting People,07-Aug-2012,2479560-1943194,"10,886.40",HIGHLEA CARE LTD.
Adults Wellbeing and Health,Commissioning inc Supporting People,Third Party Payments,441001,Supporting People,07-Aug-2012,2479813-1943393,"19,231.20",THE CYRENIANS LTD.
Adults Wellbeing and Health,Commissioning inc Supporting People,Supplies and Services,384199,Miscellaneous Expenses,07-Aug-2012,2479591-0106,"1,250.00",INTEROPERA.
Adults Wellbeing and Health,Commissioning inc Supporting People,Supplies and Services,324001,Provisions,07-Aug-2012,2479454-EW53107033,"1,130.70",CARLSBERG UK LTD.
Adults Wellbeing and Health,Head of Adults,Transport,230005,Contract Hire,07-Aug-2012,2479470-12DW092JUL12,"1,110.00",COLIN E GLEAVE.
Adults Wellbeing and Health,Head of Adults,Transport,230005,Contract Hire,07-Aug-2012,2479472-0000892,"1,340.00",COLORS TAXIS LTD.
Adults Wellbeing and Health,Head of Adults,Transport,230005,Contract Hire,07-Aug-2012,2479472-0000893,"2,472.00",COLORS TAXIS LTD.
Adults Wellbeing and Health,Head of Adults,Transport,230005,Contract Hire,07-Aug-2012,2479603-89,"1,200.00",JDS PRIVATE HIRE.
Adults Wellbeing and Health,Head of Adults,Transport,230005,Contract Hire,07-Aug-2012,2479603-90,"1,274.00",JDS PRIVATE HIRE.
Adults Wellbeing and Health,Head of Adults,Transport,230005,Contract Hire,07-Aug-2012,2479603-92,"1,080.00",JDS PRIVATE HIRE.
Adults Wellbeing and Health,Head of Adults,Transport,230005,Contract Hire,07-Aug-2012,2479603-93,"1,418.00",JDS PRIVATE HIRE.
Adults Wellbeing and Health,Head of Adults,Third Party Payments,478111,Purchase of Care,07-Aug-2012,2479661-1710495,"1,501.20",MENCAP.
Adults Wellbeing and Health,Head of Adults,Transport,230005,Contract Hire,07-Aug-2012,2479671-210,902.00,MOLLYS TAXIS.
Adults Wellbeing and Health,Head of Adults,Transport,230005,Contract Hire,07-Aug-2012,2479671-216,"1,040.00",MOLLYS TAXIS.
Adults Wellbeing and Health,Head of Adults,Transport,230005,Contract Hire,07-Aug-2012,2479688-2692,728.00,MR S BOWERS.
Adults Wellbeing and Health,Head of Adults,Transport,230005,Contract Hire,07-Aug-2012,2479708-1945,775.00,NIGHTINGALE COACHES.
Adults Wellbeing and Health,Head of Adults,Supplies and Services,304259,Equipment and Materials,07-Aug-2012,2479728-CN18034605,670.26,OCS GROUP UK LTD T/A CANNON HYGIENE.
Adults Wellbeing and Health,Head of Adults,Transport,230005,Contract Hire,07-Aug-2012,2479742-120755,"1,392.96",PRATTS TAXIS.
Adults Wellbeing and Health,Head of Adults,Supplies and Services,338365,Services,07-Aug-2012,2479400-SIN410742,620.69,ACTION ON HEARING LOSS.
Adults Wellbeing and Health,Head of Adults,Supplies and Services,338365,Services,07-Aug-2012,2479759-OP/I226358,584.80,ROYAL NATIONAL INSTITUTE FOR THE BLIND.
Adults Wellbeing and Health,Head of Adults,Supplies and Services,338365,Services,07-Aug-2012,2479766-184023,"1,063.58",SARABEC LTD.
Adults Wellbeing and Health,Head of Adults,Transport,230005,Contract Hire,07-Aug-2012,2479477-058,"1,144.60",CONNORS MINI BUSES.
Adults Wellbeing and Health,Head of Adults,Transport,230005,Contract Hire,07-Aug-2012,2479477-059,540.00,CONNORS MINI BUSES.
Adults Wellbeing and Health,Head of Adults,Transport,230005,Contract Hire,07-Aug-2012,2479734-0195,"1,370.00",PETER`S PRIVATE HIRE/PETER BEST.
Adults Wellbeing and Health,Head of Adults,Transport,230005,Contract Hire,07-Aug-2012,2479396-CLS041JULY12,"1,100.00",ABA LOCAL TAXIS LTD.
Adults Wellbeing and Health,Head of Adults,Transport,230005,Contract Hire,07-Aug-2012,2479471-184,870.00,COLIN HOLMES.
Adults Wellbeing and Health,Head of Adults,Transport,230005,Contract Hire,07-Aug-2012,2479814-28,684.00,THE TAXI CO.
Adults Wellbeing and Health,Head of Adults,Transport,230005,Contract Hire,07-Aug-2012,2479569-78-27/7/12,"1,360.00",HORNDALE AJ`S TAXIS.
Adults Wellbeing and Health,Social Inclusion,Supplies and Services,384999,Miscellaneous Expenses,07-Aug-2012,2479429-00010,"12,337.26",BISHOP CATERING LTD.
Assistant Chief Executive,Partnerships & Community Engagement Div.,Transfer Payments,525030,Other,07-Aug-2012,2479421-GAF-17/7/12,"1,048.00",BARNINGHAM VILLAGE HALL ASSOCIATION.
Assistant Chief Executive,Partnerships & Community Engagement Div.,Transfer Payments,525030,Other,07-Aug-2012,2479431-CBG2012/2013,"3,500.00",BLACKHILL COMMUNITY ASSOCIATION.
Assistant Chief Executive,Partnerships & Community Engagement Div.,Transfer Payments,525030,Other,07-Aug-2012,2479497-MDUR008-AB11-SK,"5,000.00",DERWENTSIDE HOMES LTD.
Assistant Chief Executive,Partnerships & Community Engagement Div.,Transfer Payments,525030,Other,07-Aug-2012,2479522-GA-2012-13,"2,000.00",EVENWOOD & RAMSHAW COMMUNITY ASSOCIATION.
Assistant Chief Executive,Partnerships & Community Engagement Div.,Transfer Payments,525030,Other,07-Aug-2012,2479548-GA-2012/13,"1,112.00",HAMSTEELS COMMUNITY ASSOCIATION.
Assistant Chief Executive,Partnerships & Community Engagement Div.,Supplies and Services,384086,Miscellaneous Expenses,07-Aug-2012,2479704-12NB-DCTY009-FD,"2,000.00",NEW DURHAM RESIDENTS ASSOCIATION.
Assistant Chief Executive,Partnerships & Community Engagement Div.,Supplies and Services,384086,Miscellaneous Expenses,07-Aug-2012,2479726-12NB-3TWN011,"2,000.00",OAKENSHAW COMMUNITY ASSOCIATION.
Assistant Chief Executive,Partnerships & Community Engagement Div.,Supplies and Services,384086,Miscellaneous Expenses,07-Aug-2012,2479778-21NB-EDUR009,"2,000.00",SHOTTON PARTNERSHIP 2000 LTD.
Assistant Chief Executive,Partnerships & Community Engagement Div.,Transfer Payments,525030,Other,07-Aug-2012,2479788-12AB-TEES001-BS,"5,000.00",SOUTH DURHAM ENTERPRISE AGENCY LTD.
Assistant Chief Executive,Partnerships & Community Engagement Div.,Transfer Payments,525030,Other,07-Aug-2012,2479856-GAF,"1,194.00",WITTON LE WEAR COMMUNITY ASSOCIATION.
Children and Young Peoples Services,CYPS - Local Authority,Third Party Payments,440027,Other Third Party Payments,07-Aug-2012,2478925-820420,642.88,REDACTED - PAYMENT TO INDIVIDUAL
Children and Young Peoples Services,CYPS - Local Authority,Third Party Payments,440001,Other Third Party Payments,07-Aug-2012,2478927-819193,534.47,REDACTED - PAYMENT TO INDIVIDUAL
Children and Young Peoples Services,CYPS - Local Authority,Third Party Payments,440001,Other Third Party Payments,07-Aug-2012,2479028-819185,528.75,REDACTED - PAYMENT TO INDIVIDUAL
Children and Young Peoples Services,CYPS - Local Authority,Third Party Payments,440015,Other Third Party Payments,07-Aug-2012,2479203-820764,673.25,REDACTED - PAYMENT TO INDIVIDUAL
Children and Young Peoples Services,CYPS - Local Authority,Third Party Payments,440015,Other Third Party Payments,07-Aug-2012,2479203-820765,673.25,REDACTED - PAYMENT TO INDIVIDUAL
Children and Young Peoples Services,CYPS - Local Authority,Third Party Payments,440015,Other Third Party Payments,07-Aug-2012,2479203-820766,523.10,REDACTED - PAYMENT TO INDIVIDUAL
Children and Young Peoples Services,CYPS - Local Authority,Third Party Payments,440028,Other Third Party Payments,07-Aug-2012,2479364-820756,706.23,REDACTED - PAYMENT TO INDIVIDUAL
Children and Young Peoples Services,CYPS - Local Authority,Transport,230007,Contract Hire,07-Aug-2012,2479392-435,700.00,A BARKER.
Children and Young Peoples Services,CYPS - Local Authority,Transport,230007,Contract Hire,07-Aug-2012,2479392-436,"1,050.00",A BARKER.
Children and Young Peoples Services,CYPS - Local Authority,Transport,230007,Contract Hire,07-Aug-2012,2479392-437,"1,050.00",A BARKER.
Children and Young Peoples Services,CYPS - Local Authority,Transport,230007,Contract Hire,07-Aug-2012,2479395-AA452JUL12,973.00,AA MINIBUS HIRE.
Children and Young Peoples Services,CYPS - Local Authority,Construction Work,908105,Construction work,07-Aug-2012,2479397-INS6-SSS,"5,792.68",ABLE CONSTRUCTION LTD.
Children and Young Peoples Services,CYPS - Local Authority,Transport,230007,Contract Hire,07-Aug-2012,2479398-471,675.00,AC TAXIS.
Children and Young Peoples Services,CYPS - Local Authority,Transport,230007,Contract Hire,07-Aug-2012,2479398-472,750.00,AC TAXIS.
Children and Young Peoples Services,CYPS - Local Authority,Supplies and Services,304259,Equipment and Materials,07-Aug-2012,2479410-224598,597.00,ANN ARBOR PUBLISHERS.
Children and Young Peoples Services,CYPS - Local Authority,Transport,230007,Contract Hire,07-Aug-2012,2479424-339,"1,723.20",BEELINE MINI BUSES.
Children and Young Peoples Services,CYPS - Local Authority,Transfer Payments,510032,School Children,07-Aug-2012,2479442-DFE-S2012-AP,"1,644.15",BUDDIES CHILDCARE CENTRE.
Children and Young Peoples Services,CYPS - Local Authority,Supplies and Services,384491,Miscellaneous Expenses,07-Aug-2012,2479448-C23,870.00,BUTTERCUP NURSERIES LTD.
Children and Young Peoples Services,CYPS - Local Authority,Transport,230007,Contract Hire,07-Aug-2012,2479449-BIL0011,940.95,CA MUSGROVE.
Children and Young Peoples Services,CYPS - Local Authority,Transport,230007,Contract Hire,07-Aug-2012,2479466-531,"1,500.00",CLIVE HUBERY.
Children and Young Peoples Services,CYPS - Local Authority,Transport,230007,Contract Hire,07-Aug-2012,2479466-532,"2,051.10",CLIVE HUBERY.
Children and Young Peoples Services,CYPS - Local Authority,Transport,230007,Contract Hire,07-Aug-2012,2479466-533,"1,736.55",CLIVE HUBERY.
Children and Young Peoples Services,CYPS - Local Authority,Transport,230005,Contract Hire,07-Aug-2012,2479467-12-021,686.00,CLUBMAN CABS.
Children and Young Peoples Services,CYPS - Local Authority,Transfer Payments,510032,School Children,07-Aug-2012,2479491-DFE2YR/S2012,800.25,DAYPARK LTD.
Children and Young Peoples Services,CYPS - Local Authority,Supplies and Services,338045,Services,07-Aug-2012,2479502-SC/CB84,516.75,DR SUSAN COOPER.
Children and Young Peoples Services,CYPS - Local Authority,Transport,230007,Contract Hire,07-Aug-2012,2479515-4107/0712,969.60,ELLIOTTS OF TRIMDON.
Children and Young Peoples Services,CYPS - Local Authority,Transport,230007,Contract Hire,07-Aug-2012,2479515-E014/0712,"1,301.02",ELLIOTTS OF TRIMDON.
Children and Young Peoples Services,CYPS - Local Authority,Supplies and Services,364352,Grants to Voluntary Organisations,07-Aug-2012,2479527-3707,"1,433.84",FOUNDATION.
Children and Young Peoples Services,CYPS - Local Authority,Transport,230007,Contract Hire,07-Aug-2012,2479529-07/12,"1,275.00",FREEDOM PRIVATE HIRE.
Children and Young Peoples Services,CYPS - Local Authority,Transfer Payments,510026,School Children,07-Aug-2012,2479540-7663RN,"1,143.76",GIANT STEPS LTD.
Children and Young Peoples Services,CYPS - Local Authority,Supplies and Services,304259,Equipment and Materials,07-Aug-2012,2479542-890695,"1,989.71",GRANADA LEARNING LTD.
Children and Young Peoples Services,CYPS - Local Authority,Transport,230007,Contract Hire,07-Aug-2012,2479555-HT18,952.00,HARRY`S TAXI`S.
Children and Young Peoples Services,CYPS - Local Authority,Transfer Payments,510032,School Children,07-Aug-2012,2479564-DFE-S2012-AP,989.20,HIPPITOTS LTD.
Children and Young Peoples Services,CYPS - Local Authority,Supplies and Services,338045,Services,07-Aug-2012,2479565-SDPC-RM,"2,225.00",HMCTS.
Children and Young Peoples Services,CYPS - Local Authority,Transport,230007,Contract Hire,07-Aug-2012,2479566-008440,"1,739.08",HODGSONS COACH OPERATORS LTD.
Children and Young Peoples Services,CYPS - Local Authority,Transport,230007,Contract Hire,07-Aug-2012,2479566-008441,"2,935.20",HODGSONS COACH OPERATORS LTD.
Children and Young Peoples Services,CYPS - Local Authority,Transfer Payments,510032,School Children,07-Aug-2012,2479572-DFE-S2012-AP,"4,146.75",HOUSE OF EDEN CHILDRENS NURSERY.
Children and Young Peoples Services,CYPS - Local Authority,Transport,230007,Contract Hire,07-Aug-2012,2479578-IR1207020,"1,650.00",I & R EXECUTIVE TRAVEL.
Children and Young Peoples Services,CYPS - Local Authority,Construction Work,908105,Construction work,07-Aug-2012,2479587-DURH/0254,"801,678.00",INSPIREDSPACES DURHAM LTD.
Children and Young Peoples Services,CYPS - Local Authority,Construction Work,908105,Construction work,07-Aug-2012,2479587-DURH/0260,"798,360.00",INSPIREDSPACES DURHAM LTD.
Children and Young Peoples Services,CYPS - Local Authority,Transport,230007,Contract Hire,07-Aug-2012,2479597-EVS-22,"1,500.00",J & C COACHES.
Children and Young Peoples Services,CYPS - Local Authority,Transport,230007,Contract Hire,07-Aug-2012,2479600-0131JUL12,"1,223.70",JA SHORT.
Children and Young Peoples Services,CYPS - Local Authority,Transport,230007,Contract Hire,07-Aug-2012,2479603-80,"1,164.45",JDS PRIVATE HIRE.
Children and Young Peoples Services,CYPS - Local Authority,Transport,230007,Contract Hire,07-Aug-2012,2479603-81,"1,020.00",JDS PRIVATE HIRE.
Children and Young Peoples Services,CYPS - Local Authority,Transport,230007,Contract Hire,07-Aug-2012,2479603-82,"1,110.00",JDS PRIVATE HIRE.
Children and Young Peoples Services,CYPS - Local Authority,Transport,230007,Contract Hire,07-Aug-2012,2479603-84,915.00,JDS PRIVATE HIRE.
Children and Young Peoples Services,CYPS - Local Authority,Transport,230007,Contract Hire,07-Aug-2012,2479603-85,"1,200.00",JDS PRIVATE HIRE.
Children and Young Peoples Services,CYPS - Local Authority,Transport,230007,Contract Hire,07-Aug-2012,2479603-86,780.00,JDS PRIVATE HIRE.
Children and Young Peoples Services,CYPS - Local Authority,Transport,230007,Contract Hire,07-Aug-2012,2479603-87,540.00,JDS PRIVATE HIRE.
Children and Young Peoples Services,CYPS - Local Authority,Transport,230007,Contract Hire,07-Aug-2012,2479603-88,"1,140.00",JDS PRIVATE HIRE.
Children and Young Peoples Services,CYPS - Local Authority,Transport,230007,Contract Hire,07-Aug-2012,2479604-2022,"2,772.45",JEFF ANDERSON COACHES LTD.
Children and Young Peoples Services,CYPS - Local Authority,Transport,230007,Contract Hire,07-Aug-2012,2479604-2024,"1,355.10",JEFF ANDERSON COACHES LTD.
Children and Young Peoples Services,CYPS - Local Authority,Transport,230007,Contract Hire,07-Aug-2012,2479607-19,"1,092.00",JOE`S TAXIS.
Children and Young Peoples Services,CYPS - Local Authority,Transport,230007,Contract Hire,07-Aug-2012,2479621-7,840.00,K & B TAXIS.
Children and Young Peoples Services,CYPS - Local Authority,Transport,230007,Contract Hire,07-Aug-2012,2479625-6,"1,125.00",KD TAXIS.
Children and Young Peoples Services,CYPS - Local Authority,Transport,230007,Contract Hire,07-Aug-2012,2479627-9-20/7/12,570.00,KEVIN PARKIN.
Children and Young Peoples Services,CYPS - Local Authority,Transport,230007,Contract Hire,07-Aug-2012,2479633-070,"1,950.00",LD TAXIS.
Children and Young Peoples Services,CYPS - Local Authority,Transport,230007,Contract Hire,07-Aug-2012,2479633-071,"1,200.00",LD TAXIS.
Children and Young Peoples Services,CYPS - Local Authority,Transport,230007,Contract Hire,07-Aug-2012,2479633-072,810.00,LD TAXIS.
Children and Young Peoples Services,CYPS - Local Authority,Transport,230007,Contract Hire,07-Aug-2012,2479633-073,600.00,LD TAXIS.
Children and Young Peoples Services,CYPS - Local Authority,Transport,230007,Contract Hire,07-Aug-2012,2479636-15988,"2,714.88",LEES COACHES.
Children and Young Peoples Services,CYPS - Local Authority,Transport,230007,Contract Hire,07-Aug-2012,2479636-16156,"8,454.04",LEES COACHES.
Children and Young Peoples Services,CYPS - Local Authority,Transport,230007,Contract Hire,07-Aug-2012,2479636-16158,"1,890.00",LEES COACHES.
Children and Young Peoples Services,CYPS - Local Authority,Transfer Payments,510032,School Children,07-Aug-2012,2479637-DFES2012-AP,591.70,LEISUREWORKS.
Children and Young Peoples Services,CYPS - Local Authority,Transport,230007,Contract Hire,07-Aug-2012,2479640-2713,"1,552.00",LINCAB TAXIS.
Children and Young Peoples Services,CYPS - Local Authority,Transport,230007,Contract Hire,07-Aug-2012,2479640-2716,"1,168.00",LINCAB TAXIS.
Children and Young Peoples Services,CYPS - Local Authority,Transport,230007,Contract Hire,07-Aug-2012,2479640-2728,"1,455.00",LINCAB TAXIS.
Children and Young Peoples Services,CYPS - Local Authority,Transport,230007,Contract Hire,07-Aug-2012,2479640-2730,"1,095.00",LINCAB TAXIS.
Children and Young Peoples Services,CYPS - Local Authority,Transport,230007,Contract Hire,07-Aug-2012,2479645-1153,"1,646.40",LOCAL TRANSPORT LTD.
Children and Young Peoples Services,CYPS - Local Authority,Transport,230007,Contract Hire,07-Aug-2012,2479645-1154,"1,813.05",LOCAL TRANSPORT LTD.
Children and Young Peoples Services,CYPS - Local Authority,Transport,230007,Contract Hire,07-Aug-2012,2479645-1156,"1,200.00",LOCAL TRANSPORT LTD.
Children and Young Peoples Services,CYPS - Local Authority,Transport,230007,Contract Hire,07-Aug-2012,2479645-1157,"2,006.10",LOCAL TRANSPORT LTD.
Children and Young Peoples Services,CYPS - Local Authority,Transport,230005,Contract Hire,07-Aug-2012,2479645-1166,"3,711.00",LOCAL TRANSPORT LTD.
Children and Young Peoples Services,CYPS - Local Authority,Transport,230005,Contract Hire,07-Aug-2012,2479645-1168,"2,016.00",LOCAL TRANSPORT LTD.
Children and Young Peoples Services,CYPS - Local Authority,Transport,230005,Contract Hire,07-Aug-2012,2479645-1170,"1,064.00",LOCAL TRANSPORT LTD.
Children and Young Peoples Services,CYPS - Local Authority,Transport,230007,Contract Hire,07-Aug-2012,2479647-63-20/7/12,975.00,LORRAINES TAXIS.
Children and Young Peoples Services,CYPS - Local Authority,Transport,230007,Contract Hire,07-Aug-2012,2479647-64-20/7/12,"1,785.00",LORRAINES TAXIS.
Children and Young Peoples Services,CYPS - Local Authority,Transport,230007,Contract Hire,07-Aug-2012,2479648-954-18/7/12,"1,200.00",LP TRAVEL LTD.
Children and Young Peoples Services,CYPS - Local Authority,Transport,230007,Contract Hire,07-Aug-2012,2479648-955-18/7/12,"1,500.00",LP TRAVEL LTD.
Children and Young Peoples Services,CYPS - Local Authority,Transport,230007,Contract Hire,07-Aug-2012,2479648-956,"1,800.00",LP TRAVEL LTD.
Children and Young Peoples Services,CYPS - Local Authority,Supplies and Services,304259,Equipment and Materials,07-Aug-2012,2479650-1574,"1,054.99",LYNCH HEALTHCARE LTD.
Children and Young Peoples Services,CYPS - Local Authority,Transport,230007,Contract Hire,07-Aug-2012,2479669-KDC010512-20/7/12,"2,045.00",MJ TIMNEY.
Children and Young Peoples Services,CYPS - Local Authority,Transport,230007,Contract Hire,07-Aug-2012,2479669-KDC020712,"1,861.05",MJ TIMNEY.
Children and Young Peoples Services,CYPS - Local Authority,Transport,230007,Contract Hire,07-Aug-2012,2479675-18,525.00,MR DAVID CULLEN.
Children and Young Peoples Services,CYPS - Local Authority,Transport,230007,Contract Hire,07-Aug-2012,2479676-007,570.00,MR DEREK HENDERSON.
Children and Young Peoples Services,CYPS - Local Authority,Transport,230007,Contract Hire,07-Aug-2012,2479677-7A,"1,190.00",MR G FREELAND.
Children and Young Peoples Services,CYPS - Local Authority,Transport,230007,Contract Hire,07-Aug-2012,2479680-0022,900.00,MR JR FORT.
Children and Young Peoples Services,CYPS - Local Authority,Transport,230007,Contract Hire,07-Aug-2012,2479686-8,"1,320.56",MR PHILIP YOUNG.
Children and Young Peoples Services,CYPS - Local Authority,Transport,230007,Contract Hire,07-Aug-2012,2479689-AA186,"1,581.75",MR T GUNN.
Children and Young Peoples Services,CYPS - Local Authority,Transport,230007,Contract Hire,07-Aug-2012,2479689-AA187,"2,200.00",MR T GUNN.
Children and Young Peoples Services,CYPS - Local Authority,Transport,230007,Contract Hire,07-Aug-2012,2479689-AA188,"1,899.51",MR T GUNN.
Children and Young Peoples Services,CYPS - Local Authority,Transport,230007,Contract Hire,07-Aug-2012,2479768-1367,"25,258.84",SCARLET BAND MOTOR SERVICES.
Children and Young Peoples Services,CYPS - Local Authority,Transport,230005,Contract Hire,07-Aug-2012,2479779-51025,630.00,SHOTTON PRIVATE HIRE.
Children and Young Peoples Services,CYPS - Local Authority,Transport,230005,Contract Hire,07-Aug-2012,2479779-51030,921.00,SHOTTON PRIVATE HIRE.
Children and Young Peoples Services,CYPS - Local Authority,Transport,230005,Contract Hire,07-Aug-2012,2479779-51037,689.00,SHOTTON PRIVATE HIRE.
Children and Young Peoples Services,CYPS - Local Authority,Transport,230005,Contract Hire,07-Aug-2012,2479779-51039,865.00,SHOTTON PRIVATE HIRE.
Children and Young Peoples Services,CYPS - Local Authority,Transport,230005,Contract Hire,07-Aug-2012,2479779-51040,710.00,SHOTTON PRIVATE HIRE.
Children and Young Peoples Services,CYPS - Local Authority,Transport,230005,Contract Hire,07-Aug-2012,2479779-51046,707.00,SHOTTON PRIVATE HIRE.
Children and Young Peoples Services,CYPS - Local Authority,Transport,230005,Contract Hire,07-Aug-2012,2479779-51052,545.00,SHOTTON PRIVATE HIRE.
Children and Young Peoples Services,CYPS - Local Authority,Transport,230005,Contract Hire,07-Aug-2012,2479779-51058,886.00,SHOTTON PRIVATE HIRE.
Children and Young Peoples Services,CYPS - Local Authority,Supplies and Services,338045,Services,07-Aug-2012,2479784-RO-ML,"1,041.88",SMITH & GRAHAM SOLICITORS.
Children and Young Peoples Services,CYPS - Local Authority,Construction Work,908105,Construction work,07-Aug-2012,2479790-1967,"1,585.00",SPECIALIST VENTILATION SERVICES LTD.
Children and Young Peoples Services,CYPS - Local Authority,Transfer Payments,510026,School Children,07-Aug-2012,2479796-7936,930.00,SUNSHINE DAY NURSERY.
Children and Young Peoples Services,CYPS - Local Authority,Transfer Payments,510026,School Children,07-Aug-2012,2479796-7937,638.40,SUNSHINE DAY NURSERY.
Children and Young Peoples Services,CYPS - Local Authority,Third Party Payments,425040,Rendered by Voluntary Organisations,07-Aug-2012,2479801-116206,"1,069.00",SWIIS FOSTER CARE LTD.
Children and Young Peoples Services,CYPS - Local Authority,Third Party Payments,425040,Rendered by Voluntary Organisations,07-Aug-2012,2479801-116213,911.00,SWIIS FOSTER CARE LTD.
Children and Young Peoples Services,CYPS - Local Authority,Transport,230005,Contract Hire,07-Aug-2012,2479825-501,"1,428.00",TONYS TAXIS (A BIRCH).
Children and Young Peoples Services,CYPS - Local Authority,Transport,230005,Contract Hire,07-Aug-2012,2479825-514,829.00,TONYS TAXIS (A BIRCH).
Children and Young Peoples Services,CYPS - Local Authority,Transport,230005,Contract Hire,07-Aug-2012,2479825-518,890.00,TONYS TAXIS (A BIRCH).
Children and Young Peoples Services,CYPS - Local Authority,Transport,230005,Contract Hire,07-Aug-2012,2479825-524A,693.00,TONYS TAXIS (A BIRCH).
Children and Young Peoples Services,CYPS - Local Authority,Transport,230005,Contract Hire,07-Aug-2012,2479825-525A,624.00,TONYS TAXIS (A BIRCH).
Children and Young Peoples Services,CYPS - Local Authority,Transport,230005,Contract Hire,07-Aug-2012,2479825-528A,710.00,TONYS TAXIS (A BIRCH).
Children and Young Peoples Services,CYPS - Local Authority,Transport,230005,Contract Hire,07-Aug-2012,2479825-528B,546.00,TONYS TAXIS (A BIRCH).
Children and Young Peoples Services,CYPS - Local Authority,Transport,230005,Contract Hire,07-Aug-2012,2479825-528C,538.00,TONYS TAXIS (A BIRCH).
Children and Young Peoples Services,CYPS - Local Authority,Transport,230005,Contract Hire,07-Aug-2012,2479825-528D,560.00,TONYS TAXIS (A BIRCH).
Children and Young Peoples Services,CYPS - Local Authority,Transport,230005,Contract Hire,07-Aug-2012,2479825-537,525.00,TONYS TAXIS (A BIRCH).
Children and Young Peoples Services,CYPS - Local Authority,Transport,230005,Contract Hire,07-Aug-2012,2479825-RES2,780.00,TONYS TAXIS (A BIRCH).
Children and Young Peoples Services,CYPS - Local Authority,Supplies and Services,352001,Conference Expenses,07-Aug-2012,2479832-715,650.00,TRAINING LADDER LTD.
Children and Young Peoples Services,CYPS - Local Authority,Transport,235073,Public Transport,07-Aug-2012,2479847-3-30/4/12-46650,620.00,WE AR CABS.
Children and Young Peoples Services,CYPS - Local Authority,Transfer Payments,510032,School Children,07-Aug-2012,2479849-DFE2YROLD/S2012,931.20,WEARDALE AM/PM SCAMPS LTD.
Children and Young Peoples Services,CYPS - Local Authority,Supplies and Services,304649,Equipment and Materials,07-Aug-2012,2479860-62569,536.24,WY EDUCATION EQUIPMENT LTD.
Children and Young Peoples Services,Dedicated Schools Grant,Supplies and Services,304259,Equipment and Materials,07-Aug-2012,2479650-1572,"1,054.00",LYNCH HEALTHCARE LTD.
Children and Young Peoples Services,Dedicated Schools Grant,Transport,230007,Contract Hire,07-Aug-2012,2479677-7C,"1,050.00",MR G FREELAND.
Children and Young Peoples Services,Dedicated Schools Grant,Transport,230007,Contract Hire,07-Aug-2012,2479684-0032,"1,205.00",MR P CAHILL.
Corporate Resources,Corporate Services Financing,Debtors,930031,Debtor-outstand insur claims,07-Aug-2012,2479458-QT22977/1/KP,672.00,CERAM RESEARCH LTD.
Corporate Resources,Financing- Resources,Supplies and Services,332047,"Printing, Stationery and Gen Off Exps",07-Aug-2012,2479800-5066515,903.00,SUPPLIES TEAM LTD.
Corporate Resources,ICT Services incl. Design and Print,Supplies and Services,344033,Telephones,07-Aug-2012,2479450-11197833,"1,750.57",CABLE & WIRELESS UK.
Corporate Resources,ICT Services incl. Design and Print,Supplies and Services,344033,Telephones,07-Aug-2012,2479450-11211113,"1,751.91",CABLE & WIRELESS UK.
Corporate Resources,ICT Services incl. Design and Print,"Vehicles, Equipment, Furniture and Fittings",912701,Computer equipment,07-Aug-2012,2479450-UK10/052012/5409,999.00,CABLE & WIRELESS UK.
Corporate Resources,ICT Services incl. Design and Print,"Vehicles, Equipment, Furniture and Fittings",912701,Computer equipment,07-Aug-2012,2479450-UK10/072012/4042,"3,012.61",CABLE & WIRELESS UK.
Corporate Resources,ICT Services incl. Design and Print,Supplies and Services,304303,Equipment and Materials,07-Aug-2012,2479546-INV0144834,639.00,GV MULTI MEDIA LTD.
Corporate Resources,ICT Services incl. Design and Print,Stock,926900,Stock in hand-Inventory system,07-Aug-2012,2479546-INV0144836,"2,870.00",GV MULTI MEDIA LTD.
Corporate Resources,ICT Services incl. Design and Print,Stock,926900,Stock in hand-Inventory system,07-Aug-2012,2479546-INV0144837,"2,199.24",GV MULTI MEDIA LTD.
Corporate Resources,ICT Services incl. Design and Print,Stock,926900,Stock in hand-Inventory system,07-Aug-2012,2479546-INV0144838,974.24,GV MULTI MEDIA LTD.
Corporate Resources,ICT Services incl. Design and Print,Supplies and Services,304303,Equipment and Materials,07-Aug-2012,2479586-11798545,610.00,INSIGHT DIRECT (UK) LTD.
Corporate Resources,ICT Services incl. Design and Print,Stock,926900,Stock in hand-Inventory system,07-Aug-2012,2479586-11798584,"2,345.00",INSIGHT DIRECT (UK) LTD.
Corporate Resources,ICT Services incl. Design and Print,Stock,926900,Stock in hand-Inventory system,07-Aug-2012,2479586-11798608,"2,345.00",INSIGHT DIRECT (UK) LTD.
Corporate Resources,ICT Services incl. Design and Print,Supplies and Services,342553,Computers and Communications,07-Aug-2012,2479624-35529,"1,035.00",KBR IT & NETWORKING SOLUTIONS.
Corporate Resources,ICT Services incl. Design and Print,Supplies and Services,384199,Miscellaneous Expenses,07-Aug-2012,2479624-35539,"1,427.00",KBR IT & NETWORKING SOLUTIONS.
Corporate Resources,ICT Services incl. Design and Print,Stock,926900,Stock in hand-Inventory system,07-Aug-2012,2479800-5151413,893.52,SUPPLIES TEAM LTD.
Corporate Resources,ICT Services incl. Design and Print,Employees,040149,"Recruitment, Instruction and Training",07-Aug-2012,2479838-4035560,"4,500.00",UNIVERSITY OF SUNDERLAND ENTERPRISES LTD.
Corporate Resources,Legal & Democratic Services,Supplies and Services,384965,Miscellaneous Expenses,07-Aug-2012,2479697-1124,565.00,NAME DROP PROMOTIONS LTD.
Corporate Resources,Legal & Democratic Services,Supplies and Services,336005,Advertising,07-Aug-2012,2479822-100000898927,730.36,TMP (UK) LTD (RECRUITMENT).
Neighbourhood Services,Direct Services,Premises,145051,Cleaning and Domestic Supplies,07-Aug-2012,2479390-2012080,"29,001.00",A & E THOMPSON.
Neighbourhood Services,Direct Services,Supplies and Services,304221,Equipment and Materials,07-Aug-2012,2479393-LLI255291,957.92,A THOMPSON & SONS LTD.
Neighbourhood Services,Direct Services,Stock,926900,Stock in hand-Inventory system,07-Aug-2012,2479412-114364,996.00,AQUALOGIC (WC) LTD.
Neighbourhood Services,Direct Services,Supplies and Services,304221,Equipment and Materials,07-Aug-2012,2479419-70967,517.48,B & R GLAZING CO LTD.
Neighbourhood Services,Direct Services,Supplies and Services,304221,Equipment and Materials,07-Aug-2012,2479440-4028073,"16,349.48",BROAG LTD.
Neighbourhood Services,Direct Services,Supplies and Services,304221,Equipment and Materials,07-Aug-2012,2479441-1650/0135879,"1,179.90",BSS GROUP PLC.
Neighbourhood Services,Direct Services,Third Party Payments,430100,Rendered by Private Contractors,07-Aug-2012,2479456-12647,"1,073.01",CATHEDRAL LOCK & SAFE SERVICES LTD.
Neighbourhood Services,Direct Services,Stock,926900,Stock in hand-Inventory system,07-Aug-2012,2479459-0318738,870.48,CHAMBERLAIN DOORS LTD.
Neighbourhood Services,Direct Services,Supplies and Services,304221,Equipment and Materials,07-Aug-2012,2479490-168557,926.22,DAVID DIXON GARDEN MACHINERY CENTRE.
Neighbourhood Services,Direct Services,Third Party Payments,430100,Rendered by Private Contractors,07-Aug-2012,2479495-211826,603.21,DENNIS EAGLE LTD.
Neighbourhood Services,Direct Services,Third Party Payments,430100,Rendered by Private Contractors,07-Aug-2012,2479495-211827,"2,180.25",DENNIS EAGLE LTD.
Neighbourhood Services,Direct Services,Supplies and Services,304221,Equipment and Materials,07-Aug-2012,2479511-2190398,600.00,EAST RIDING HORTICULTURE LTD.
Neighbourhood Services,Direct Services,Stock,926004,Stock,07-Aug-2012,2479512-S176554,729.22,ECON ENGINEERING LTD.
Neighbourhood Services,Direct Services,Third Party Payments,430100,Rendered by Private Contractors,07-Aug-2012,2479519-17507,"1,521.64",ENTERPRISE ACCIDENT REPAIR CENTRE LTD.
Neighbourhood Services,Direct Services,Third Party Payments,430100,Rendered by Private Contractors,07-Aug-2012,2479520-Y01127201,"2,641.00",ENVIRONMENT AGENCY.
Neighbourhood Services,Direct Services,Stock,926900,Stock in hand-Inventory system,07-Aug-2012,2479525-OP/I260985,765.05,FLEMING & CO (MACHINERY) LTD.
Neighbourhood Services,Direct Services,Stock,926004,Stock,07-Aug-2012,2479535-8067636,"1,262.60",GB OILS T/A BRETT FUELS.
Neighbourhood Services,Direct Services,Stock,926004,Stock,07-Aug-2012,2479535-8115790,"11,297.00",GB OILS T/A BRETT FUELS.
Neighbourhood Services,Direct Services,Stock,926004,Stock,07-Aug-2012,2479535-8122755,"40,475.70",GB OILS T/A BRETT FUELS.
Neighbourhood Services,Direct Services,Stock,926004,Stock,07-Aug-2012,2479535-8130174,"11,302.65",GB OILS T/A BRETT FUELS.
Neighbourhood Services,Direct Services,Stock,926004,Stock,07-Aug-2012,2479535-8130177,"1,962.49",GB OILS T/A BRETT FUELS.
Neighbourhood Services,Direct Services,Stock,926004,Stock,07-Aug-2012,2479537-B75561,893.94,GEESINK NORBA LTD.
Neighbourhood Services,Direct Services,Stock,926004,Stock,07-Aug-2012,2479537-B75822,"1,144.69",GEESINK NORBA LTD.
Neighbourhood Services,Direct Services,Supplies and Services,304252,Equipment and Materials,07-Aug-2012,2479538-335870,"1,075.00",GEMCO EQUIPMENT LTD.
Neighbourhood Services,Direct Services,Supplies and Services,304357,Equipment and Materials,07-Aug-2012,2479544-100113,500.00,GREENLAY (GRASS MACHINERY) LTD.
Neighbourhood Services,Direct Services,Supplies and Services,304221,Equipment and Materials,07-Aug-2012,2479549-OP/I145508,"1,167.22",HAMWORTHY HEATING LTD.
Neighbourhood Services,Direct Services,Supplies and Services,304259,Equipment and Materials,07-Aug-2012,2479571-DOC07945,"1,935.00",HORTISYSTEMS UK LTD.
Neighbourhood Services,Direct Services,Supplies and Services,304221,Equipment and Materials,07-Aug-2012,2479574-B33/0042943,738.80,HOWDEN JOINERY LTD.
Neighbourhood Services,Direct Services,Supplies and Services,304221,Equipment and Materials,07-Aug-2012,2479574-B33/0043169,668.80,HOWDEN JOINERY LTD.
Neighbourhood Services,Direct Services,Supplies and Services,304221,Equipment and Materials,07-Aug-2012,2479574-B33/0043197,692.20,HOWDEN JOINERY LTD.
Neighbourhood Services,Direct Services,Supplies and Services,304221,Equipment and Materials,07-Aug-2012,2479574-B33/0043482,728.72,HOWDEN JOINERY LTD.
Neighbourhood Services,Direct Services,Stock,926900,Stock in hand-Inventory system,07-Aug-2012,2479588-379802,"1,492.40",INSTARMAC GROUP PLC.
Neighbourhood Services,Direct Services,Stock,926900,Stock in hand-Inventory system,07-Aug-2012,2479588-379803,"2,984.80",INSTARMAC GROUP PLC.
Neighbourhood Services,Direct Services,Stock,926900,Stock in hand-Inventory system,07-Aug-2012,2479593-059736,"1,426.60",INTUMESCENT SYSTEMS LTD.
Neighbourhood Services,Direct Services,Third Party Payments,430100,Rendered by Private Contractors,07-Aug-2012,2479632-12204,"17,662.56",LANGUARD LTD.
Neighbourhood Services,Direct Services,Supplies and Services,304259,Equipment and Materials,07-Aug-2012,2479693-130560,672.00,MTS BOBCAT.
Neighbourhood Services,Direct Services,Transport,210057,Repair and Maintenance of Vehicles,07-Aug-2012,2479699-INVHE1167,662.95,NE TRUCK SPARES LTD.
Neighbourhood Services,Direct Services,Transport,230005,Contract Hire,07-Aug-2012,2479711-62208,"4,875.00",NOBLET MUNICIPAL SERVICES LTD.
Neighbourhood Services,Direct Services,Transport,210057,Repair and Maintenance of Vehicles,07-Aug-2012,2479715-21640690,"1,773.77",NORTH EAST TRUCK & VAN LTD.
Neighbourhood Services,Direct Services,Debtors,930046,Debtor-leasing,07-Aug-2012,2479715-225540,"58,688.00",NORTH EAST TRUCK & VAN LTD.
Neighbourhood Services,Direct Services,"Vehicles, Equipment, Furniture and Fittings",912541,Purchase-vehicles,07-Aug-2012,2479715-225567,"34,265.00",NORTH EAST TRUCK & VAN LTD.
Neighbourhood Services,Direct Services,Stock,926004,Stock,07-Aug-2012,2479733-104168,768.10,PENNY HYDRAULICS.
Neighbourhood Services,Direct Services,Stock,926004,Stock,07-Aug-2012,2479735-13949,639.95,PHOENIX SEATING LTD.
Neighbourhood Services,Direct Services,Supplies and Services,304221,Equipment and Materials,07-Aug-2012,2479739-4120/135823,604.39,PLUMBING TRADE SUPPLIES LTD.
Neighbourhood Services,Direct Services,Supplies and Services,304221,Equipment and Materials,07-Aug-2012,2479740-4120/135495,710.32,PLUMBING TRADE SUPPLIES LTD.
Neighbourhood Services,Direct Services,Supplies and Services,304221,Equipment and Materials,07-Aug-2012,2479740-4120/135611,961.26,PLUMBING TRADE SUPPLIES LTD.
Neighbourhood Services,Direct Services,Supplies and Services,304221,Equipment and Materials,07-Aug-2012,2479740-4120/135690,772.36,PLUMBING TRADE SUPPLIES LTD.
Neighbourhood Services,Direct Services,Supplies and Services,304221,Equipment and Materials,07-Aug-2012,2479740-4120/135691,798.71,PLUMBING TRADE SUPPLIES LTD.
Neighbourhood Services,Direct Services,Supplies and Services,304221,Equipment and Materials,07-Aug-2012,2479740-4120/135751,784.47,PLUMBING TRADE SUPPLIES LTD.
Neighbourhood Services,Direct Services,Supplies and Services,304221,Equipment and Materials,07-Aug-2012,2479740-4120/135752,667.15,PLUMBING TRADE SUPPLIES LTD.
Neighbourhood Services,Direct Services,Third Party Payments,430100,Rendered by Private Contractors,07-Aug-2012,2479754-SLINV/00042824,"2,510.57",RIVERSIDE TRUCK RENTAL LTD.
Neighbourhood Services,Direct Services,Third Party Payments,430100,Rendered by Private Contractors,07-Aug-2012,2479754-SLINV/00042825,596.36,RIVERSIDE TRUCK RENTAL LTD.
Neighbourhood Services,Direct Services,Debtors,930046,Debtor-leasing,07-Aug-2012,2479762-10010126,"25,075.00",S JENNINGS LTD.
Neighbourhood Services,Direct Services,Third Party Payments,430100,Rendered by Private Contractors,07-Aug-2012,2479770-224683,"1,060.00",SEAWARD GROUP LTD.
Neighbourhood Services,Direct Services,Transport,210057,Repair and Maintenance of Vehicles,07-Aug-2012,2479807-25122277,599.05,TC HARRISON JCB.
Neighbourhood Services,Direct Services,Stock,926900,Stock in hand-Inventory system,07-Aug-2012,2479816-0037173698,"1,754.00",THOMAS & BETTS NETHERLANDS BV.
Neighbourhood Services,Direct Services,Stock,926900,Stock in hand-Inventory system,07-Aug-2012,2479817-N/IN78512,"1,273.80",THOMAS OWEN & SONS (NEWCASTLE) LTD.
Neighbourhood Services,Direct Services,Third Party Payments,430100,Rendered by Private Contractors,07-Aug-2012,2479829-1475,"2,972.10",TOTAL PARTITIONS & CEILINGS LTD.
Neighbourhood Services,Direct Services,Supplies and Services,304252,Equipment and Materials,07-Aug-2012,2479857-11-1177,575.80,WM O SILMON LTD.
Neighbourhood Services,Direct Services,Stock,926004,Stock,07-Aug-2012,2479858-237973,742.20,WM SMITH & SONS (BARNARD CASTLE) LTD.
Neighbourhood Services,Direct Services,Supplies and Services,304221,Equipment and Materials,07-Aug-2012,2479859-74849035,"1,730.46",WOLSELEY UK LTD.
Neighbourhood Services,Direct Services,Stock,926900,Stock in hand-Inventory system,07-Aug-2012,2479859-74879371,"1,175.92",WOLSELEY UK LTD.
Neighbourhood Services,"Environment,Health & Consumer Protection",Employees,040149,"Recruitment, Instruction and Training",07-Aug-2012,2479682-T16/17JULY2012,500.00,MR M RIDPATH.
Neighbourhood Services,"Environment,Health & Consumer Protection",Employees,040149,"Recruitment, Instruction and Training",07-Aug-2012,2479864-YSJY39,"3,000.00",YOUR SALES UK LTD.
Neighbourhood Services,Projects and Business services,Supplies and Services,340001,Postages,07-Aug-2012,2479757-9039480124,"4,633.59",ROYAL MAIL GROUP PLC.
Neighbourhood Services,Sport & Leisure,Supplies and Services,336005,Advertising,07-Aug-2012,2479389-2B8,"1,500.00",2B COMMUNICATIONS LTD.
Neighbourhood Services,Sport & Leisure,Supplies and Services,304254,Equipment and Materials,07-Aug-2012,2479583-001/12/0770996,630.00,ING LEASE (UK) LTD.
Neighbourhood Services,Sport & Leisure,Premises,145015,Cleaning and Domestic Supplies,07-Aug-2012,2479709-420981,500.00,NILFISK ADVANCE LTD.
Neighbourhood Services,Sport & Leisure,Supplies and Services,338027,Services,07-Aug-2012,2479789-732/03,"1,316.67",SOUTHERN GREEN LTD.
Neighbourhood Services,Sport & Leisure,Supplies and Services,304221,Equipment and Materials,07-Aug-2012,2479808-12006637,"16,434.40",TECHNOGYM UK LTD.
Neighbourhood Services,Sport & Leisure,Supplies and Services,304221,Equipment and Materials,07-Aug-2012,2479811-10429336,940.80,TENNYSON INSURANCE LTD.
Neighbourhood Services,Technical Services,Supplies and Services,304221,Equipment and Materials,07-Aug-2012,2479394-LLI255152,739.75,A THOMPSON & SONS LTD.
Neighbourhood Services,Technical Services,Supplies and Services,304221,Equipment and Materials,07-Aug-2012,2479404-16757623,"1,327.96",AGGREGATE INDUSTRIES UK LTD.
Neighbourhood Services,Technical Services,Construction Work,908105,Construction work,07-Aug-2012,2479479-14749,"1,432.38",COUPE LINE LTD.
Neighbourhood Services,Technical Services,Third Party Payments,430100,Rendered by Private Contractors,07-Aug-2012,2479479-14751,"2,420.41",COUPE LINE LTD.
Neighbourhood Services,Technical Services,Construction Work,908105,Construction work,07-Aug-2012,2479479-14763,"6,475.10",COUPE LINE LTD.
Neighbourhood Services,Technical Services,Third Party Payments,460053,Contract Payments,07-Aug-2012,2479479-14767,"1,783.69",COUPE LINE LTD.
Neighbourhood Services,Technical Services,Third Party Payments,430100,Rendered by Private Contractors,07-Aug-2012,2479479-14770,"1,853.60",COUPE LINE LTD.
Neighbourhood Services,Technical Services,Supplies and Services,384199,Miscellaneous Expenses,07-Aug-2012,2479533-GHU38,787.50,GAVIN HUTCHINSON.
Neighbourhood Services,Technical Services,Supplies and Services,384199,Miscellaneous Expenses,07-Aug-2012,2479534-GRI38,945.00,GAVIN RIDDLE.
Neighbourhood Services,Technical Services,Creditors,952024,Creditor-sub contractors retention,07-Aug-2012,2479552-AW9656A-F,"7,447.42",HANSON CONTRACTING.
Neighbourhood Services,Technical Services,Creditors,952024,Creditor-sub contractors retention,07-Aug-2012,2479552-AW9664A-F,"1,007.22",HANSON CONTRACTING.
Neighbourhood Services,Technical Services,Supplies and Services,304358,Equipment and Materials,07-Aug-2012,2479609-12124,824.67,JOHN R BUTTERFIELD LTD.
Neighbourhood Services,Technical Services,Supplies and Services,304358,Equipment and Materials,07-Aug-2012,2479609-12154,596.97,JOHN R BUTTERFIELD LTD.
Neighbourhood Services,Technical Services,Supplies and Services,304358,Equipment and Materials,07-Aug-2012,2479609-12182,694.98,JOHN R BUTTERFIELD LTD.
Neighbourhood Services,Technical Services,Supplies and Services,304358,Equipment and Materials,07-Aug-2012,2479609-12184,810.81,JOHN R BUTTERFIELD LTD.
Neighbourhood Services,Technical Services,Supplies and Services,304358,Equipment and Materials,07-Aug-2012,2479609-12186,744.48,JOHN R BUTTERFIELD LTD.
Neighbourhood Services,Technical Services,Supplies and Services,304358,Equipment and Materials,07-Aug-2012,2479609-12208,960.80,JOHN R BUTTERFIELD LTD.
Neighbourhood Services,Technical Services,Supplies and Services,304358,Equipment and Materials,07-Aug-2012,2479609-12212,694.98,JOHN R BUTTERFIELD LTD.
Neighbourhood Services,Technical Services,Supplies and Services,304358,Equipment and Materials,07-Aug-2012,2479609-12213,694.98,JOHN R BUTTERFIELD LTD.
Neighbourhood Services,Technical Services,Supplies and Services,304358,Equipment and Materials,07-Aug-2012,2479609-12214,810.81,JOHN R BUTTERFIELD LTD.
Neighbourhood Services,Technical Services,Construction Work,908108,Capital - Surface Dressing,07-Aug-2012,2479629-11520,"493,945.18",KIELY BROS LTD.
Neighbourhood Services,Technical Services,Supplies and Services,304221,Equipment and Materials,07-Aug-2012,2479643-IN012011,"4,914.80",LIONWELD KENNEDY HIGHWAYS.
Neighbourhood Services,Technical Services,Supplies and Services,304221,Equipment and Materials,07-Aug-2012,2479655-ZBB0286995,"3,301.00",MARSHALLS MONO LTD.
Neighbourhood Services,Technical Services,Supplies and Services,384199,Miscellaneous Expenses,07-Aug-2012,2479687-RBR38,"1,281.55",MR R BROWN.
Neighbourhood Services,Technical Services,Third Party Payments,430100,Rendered by Private Contractors,07-Aug-2012,2479743-120593,"7,621.03",PREMIER TRAFFIC MANAGEMENT LTD.
Neighbourhood Services,Technical Services,Third Party Payments,430100,Rendered by Private Contractors,07-Aug-2012,2479743-120594,"4,158.01",PREMIER TRAFFIC MANAGEMENT LTD.
Neighbourhood Services,Technical Services,Third Party Payments,430100,Rendered by Private Contractors,07-Aug-2012,2479743-120595,"6,906.18",PREMIER TRAFFIC MANAGEMENT LTD.
Neighbourhood Services,Technical Services,Third Party Payments,430100,Rendered by Private Contractors,07-Aug-2012,2479743-120601,"4,718.95",PREMIER TRAFFIC MANAGEMENT LTD.
Neighbourhood Services,Technical Services,Supplies and Services,384199,Miscellaneous Expenses,07-Aug-2012,2479748-RHU38,630.00,REX HUDSON.
Neighbourhood Services,Technical Services,Third Party Payments,460155,Contract Payments,07-Aug-2012,2479769-SIL/D262/2182,"4,719.00",SEALANE INSHORE LTD.
Neighbourhood Services,Technical Services,Supplies and Services,304358,Equipment and Materials,07-Aug-2012,2479777-2012074,"1,944.00",SHIREHAVEN LTD.
Neighbourhood Services,Technical Services,Third Party Payments,460350,Contract Payments,07-Aug-2012,2479842-33445,"1,181.00",W MARLEY AGRICULTURAL CONTRACTORS LTD.
Neighbourhood Services,Technical Services,Third Party Payments,460350,Contract Payments,07-Aug-2012,2479842-33543,"3,035.00",W MARLEY AGRICULTURAL CONTRACTORS LTD.
Neighbourhood Services,Technical Services,Third Party Payments,460350,Contract Payments,07-Aug-2012,2479842-33630,868.00,W MARLEY AGRICULTURAL CONTRACTORS LTD.
RED HRA,Housing Revenue Account,Third Party Payments,430100,Rendered by Private Contractors,07-Aug-2012,2479510-SINV/00002804,"1,031,917.00",EAST DURHAM HOMES.
RED HRA,HRA Capital,Fees,901001,Internal fees,07-Aug-2012,2479510-SINV/00002805,"77,474.00",EAST DURHAM HOMES.
RED HRA,HRA Capital,Fees,901001,Internal fees,07-Aug-2012,2479510-SINV/00002806,"25,680.17",EAST DURHAM HOMES.
RED HRA,HRA Capital,Construction Work,908105,Construction work,07-Aug-2012,2479614-147979,"8,562.61",JOINERY & TIMBER CREATIONS (65) LTD.
RED HRA,HRA Capital,Construction Work,908105,Construction work,07-Aug-2012,2479614-147980,"6,414.04",JOINERY & TIMBER CREATIONS (65) LTD.
RED HRA,HRA Capital,Construction Work,908105,Construction work,07-Aug-2012,2479615-147961,"6,643.99",JOINERY & TIMBER CREATIONS (65) LTD.
RED HRA,HRA Capital,Construction Work,908105,Construction work,07-Aug-2012,2479663-148524,"7,498.13",MGM LTD.
RED HRA,HRA Capital,Construction Work,908105,Construction work,07-Aug-2012,2479798-148518,"40,216.50",SUNTER LTD.
Regeneration & Economic Development,Economic Development and Housing,Fees,901003,Capital - Contract Supervision,07-Aug-2012,2479403-60155102-84,"3,840.00",AECOM LTD.
Regeneration & Economic Development,Economic Development and Housing,Fees,901002,Professional Fees,07-Aug-2012,2479414-AE07I12,869.25,ARCHAEO ENVIRONMENT LTD.
Regeneration & Economic Development,Economic Development and Housing,Supplies and Services,368008,Incentives to Industrialists,07-Aug-2012,2479434-318,"2,056.00",BOWMAN SOLUTIONS LTD.
Regeneration & Economic Development,Economic Development and Housing,Fees,901002,Professional Fees,07-Aug-2012,2479452-92529626,"6,964.00",CAPITA SYMONDS LTD.
Regeneration & Economic Development,Economic Development and Housing,Other Expenses,914001,Other capital expenses,07-Aug-2012,2479464-003,"4,290.00",CLARE JAMES LTD.
Regeneration & Economic Development,Economic Development and Housing,Other Expenses,914001,Other capital expenses,07-Aug-2012,2479465-559512,"4,291.59",CLARKE WILLMOTT LLP.
Regeneration & Economic Development,Economic Development and Housing,Supplies and Services,338099,Services,07-Aug-2012,2479474-CIE007,960.00,COMMUNITY IMPACT ENTERPRISE (CIE) LTD.
Regeneration & Economic Development,Economic Development and Housing,Fees,901002,Professional Fees,07-Aug-2012,2479498-4120742,"3,154.00",DICKINSON DEES LLP.
Regeneration & Economic Development,Economic Development and Housing,Supplies and Services,340001,Postages,07-Aug-2012,2479528-0430827,907.20,FP TELESET.
Regeneration & Economic Development,Economic Development and Housing,Supplies and Services,372009,Subscriptions,07-Aug-2012,2479531-3776,750.00,FSP RETAIL BUSINESS CONSULTANTS.
Regeneration & Economic Development,Economic Development and Housing,Cap Exp on Grants & Other Financial Assistance (REFCUS),918401,Capital grants,07-Aug-2012,2479599-1-3CS,"2,712.00",REDACTED - PAYMENT TO INDIVIDUAL
Regeneration & Economic Development,Economic Development and Housing,Supplies and Services,384437,Miscellaneous Expenses,07-Aug-2012,2479745-150452,"1,502.50",RADISSON BLUE HOTEL DURHAM.
Regeneration & Economic Development,Economic Development and Housing,Supplies and Services,384437,Miscellaneous Expenses,07-Aug-2012,2479746-10360,"1,107.00",RCD H&N YOUTH MINISTRY TEAM.
Regeneration & Economic Development,Housing General Fund,Supplies and Services,338027,Services,07-Aug-2012,2479539-SIGN/00029992,"10,819.33",GENTOO CONSTRUCTION LTD.
Regeneration & Economic Development,Housing General Fund,Supplies and Services,338027,Services,07-Aug-2012,2479539-SIGN/00030002,"2,000.00",GENTOO CONSTRUCTION LTD.
Regeneration & Economic Development,Housing General Fund,Cap Exp on Grants & Other Financial Assistance (REFCUS),918401,Capital grants,07-Aug-2012,2479596-DFG528/11,"5,193.00",J & B NELSON CONSTRUCTION.
Regeneration & Economic Development,Housing General Fund,Cap Exp on Grants & Other Financial Assistance (REFCUS),918401,Capital grants,07-Aug-2012,2479623-DFG415/11-JUL12,"1,673.85",KASON CONSTRUCTION LTD.
Regeneration & Economic Development,Housing General Fund,Cap Exp on Grants & Other Financial Assistance (REFCUS),918401,Capital grants,07-Aug-2012,2479820-SIP-119450,"1,470.00",THYSSENKRUPP ENCASA LTD.
Regeneration & Economic Development,Housing General Fund,Cap Exp on Grants & Other Financial Assistance (REFCUS),918401,Capital grants,07-Aug-2012,2479820-SIP-119452,"3,315.00",THYSSENKRUPP ENCASA LTD.
Regeneration & Economic Development,Housing General Fund,Cap Exp on Grants & Other Financial Assistance (REFCUS),918401,Capital grants,07-Aug-2012,2479820-SIP-119502,"4,140.00",THYSSENKRUPP ENCASA LTD.
Regeneration & Economic Development,Transport,Transport,230005,Contract Hire,07-Aug-2012,2479671-214,"1,540.00",MOLLYS TAXIS.
Regeneration & Economic Development,Transport,Third Party Payments,430106,Rendered by Private Contractors,07-Aug-2012,2479718-4902252,"28,747.16",NORTH YORKSHIRE COUNTY COUNCIL.
Regeneration & Economic Development,Transport,Supplies and Services,342053,Computers and Communications,07-Aug-2012,2479780-M0612052PASWDURH/LCR,750.00,SIAS LTD.
Adults Wellbeing and Health,Commissioning inc Supporting People,Supplies and Services,384302,Miscellaneous Expenses,08-Aug-2012,2480108-GTSS019,789.45,JS MUSIC SOLUTIONS.
Adults Wellbeing and Health,Commissioning inc Supporting People,Supplies and Services,338047,Services,08-Aug-2012,2480295-938684-1,712.12,SONY PICTURES RELEASING.
Adults Wellbeing and Health,Commissioning inc Supporting People,Supplies and Services,338047,Services,08-Aug-2012,2480295-939109-1,"2,428.75",SONY PICTURES RELEASING.
Adults Wellbeing and Health,Commissioning inc Supporting People,Supplies and Services,324117,Provisions,08-Aug-2012,210339-22/2884382,726.19,PALMER & HARVEY MCLANE LTD.
Adults Wellbeing and Health,Commissioning inc Supporting People,Supplies and Services,338047,Services,08-Aug-2012,2480245-2012060,"4,000.00",RAM (ROTHERY ARTIST MANAGEMENT).
Adults Wellbeing and Health,Commissioning inc Supporting People,Supplies and Services,384199,Miscellaneous Expenses,08-Aug-2012,2479892-59,500.00,AETHER & HEMERA.
Adults Wellbeing and Health,Commissioning inc Supporting People,Supplies and Services,312010,"Newspapers, Books and Periodicals",08-Aug-2012,2479894-2001,"2,340.00",AHA MARKETING & MEDIA LTD.
Adults Wellbeing and Health,Commissioning inc Supporting People,Supplies and Services,384302,Miscellaneous Expenses,08-Aug-2012,210405-5819,920.00,WIGS UP NORTH.
Adults Wellbeing and Health,Commissioning inc Supporting People,Supplies and Services,384199,Miscellaneous Expenses,08-Aug-2012,2480095-07/07/2012-22/07/2012,560.00,JAZZ IN MY PANTS.
Adults Wellbeing and Health,Commissioning inc Supporting People,Supplies and Services,384199,Miscellaneous Expenses,08-Aug-2012,2480132-2012/007,"1,250.00",LUCY JENKINS.
Adults Wellbeing and Health,Commissioning inc Supporting People,Third Party Payments,479101,Purchase of Care,08-Aug-2012,2480003-2340,"53,393.00",DURHAM COUNTY CARERS SUPPORT.
